Workbook

Sheet compte
B1: 0
C8: BIENVENUE SUR LA BASE DE DONNEES IBP
C10: =Translation!C40 -> Identifiant utilisateur (= adresse mail)
C11: =Translation!C41 -> Prénom
C12: =Translation!C42 -> Nom
C13: =Translation!C43 -> Organisme
C15: =Translation!C44 -> Il est conseillé de remplir ces informations qui stockées dans votre fichier. Elles servent à identifier votre fichier et sécuriser vos échanges de fichiers. Pensez à renommer votre fichier, par ex. en ajoutant un identifiant court au nom initial (Ex. : IBP_BD_21.xlsm --> IBP_BD_21_PG.xlsm). Nom actuel :
C16: IBP BD v231001.t1.xlsm
C19: =Translation!C45&Translation!C47 -> Si vous souhaitez contribuer à la base de données nationale des relevés IBP, merci d'envoyer votre fichier à : pierre.gonin@cnpf.fr

Sheet Start (hidden)
A1: ► | L1: simple
A9: ►
A23: © CNPF, 2023
A24: =Translation!C31 -> Version : | B24: v231001.t1
A25: =Translation!C32 -> contact informatique
A26: =Translation!C33 -> pierre.gonin@cnpf.fr
A27: =Translation!C34 -> contact IBP
A28: =Translation!C35 -> pierre.gonin@cnpf.fr laurent.larrieu@cnpf.fr

Sheet Notice (hidden)
C1: MODIFICATIONS ENTRE LES VERSIONS DU FICHIER EXCEL
C2: nom du fichier et date de diffusion | D2: modifications par rapport à la version précédente
C3: IBP BD 210126.t1.xlsm version provisioire de travail diffusée le 26/01/20
C4: IBP BD 220303.t1.xlsm version initiale diffusée le 03/03/22 | D4: ATTENTION : pour importer les relevés Tot1 et Tot2 saisis dans "IBP BD 210126.t1.xlsm" en utilisant les macros "import", corriger les feuilles Export_Tot1 et Export_Tot2 de ce précédent fichier avant importation (à cause de la modification des typologies milieux aquatiques et rocheux) : insérer 5 lignes en dessous de la ligne 284 (vérifier que Score J est en ligne 295) colonne A : rajouter do dans les 5 nouvelles lignes insérées colonne D : modifier les n° à partir de 283 pour avoir une série continue jusqu'à la ligne 295
C5: IBP BD 221010.t1.xlsm 1e mise à jour du 10/10/22 | D5: ATTENTION : pour importer les données "Data" du fichier "IBP BD 220303.t1.xlsm" dans la nouvelle version (221010) avec la macro Import de la feuille Import_Data, changer dans cette feuille la valeur de la cellule CW3 de 290 en 295 (pas de problème avec la fonction copier-coller "valeurs")
D6: correction de 2 macros pour permettre d'utiliser des noms de relevé/subdivision du type 1.1 : "Sub copie_donnees_select" et "Sub Afficher_résultats_sel"
D7: ajout d'un critère de validation des données de surface qui doivent être des décimales supérieures ou égales à 0 (saisie du type "1 ha" impossible), dans les feuilles Tot1 Tot2 et Data
D8: feuille "Tot2", ligne 235 et colonnes "REGROUPEMENT - calcul" : correction formules avec valeur 235 remplacée par 234
D9: feuille "Tot2" & ligne 24 : valeur f (colonnes "REGROUPEMENT - calcul") remplacée par valeur do ; cette modifiation permet de conserver les valeurs de cette colonne lors de l'exportation vers la feuille "Export_Tot2" (contrairement à la version précédente), mais ces valeurs ne sont pas importées avec la macro importation de la feuille "Import_Tot2" pour éviter d'écraser les formules
D10: feuille "Data" & colonnes CC à CH : format de cellule standart remplacé par le format pourcentage
D11: feuille "Fig." - graphique "IBP contexte & IBP peuplement et gestion, par relevé" : titre et légende déplacés hors du graphique ; conditionner l’affichage de la légende à plusieurs relevés ; texte de légende modifié en supprimant "des relevés (> surf. parcourue des relevés)"
D12: feuille "Translation" - modification des phases dynamiques : suppression de "régénération en cours" et remplacement de "régénération acquise" par "régénération"
D13: feuille "Translation" - modification de la traduction des phases dynamiques : "Envelliment / Col·lapse" à la place de "Apogeu / Decaiment" (catalan) ; "Envejecimiento / Colapso" à la place de "Apogeo / Decaimiento" (espagnol)
D14: feuille "Translation" - modification de la traduction des classes : "Baixa /Mitjana-baixa / Mitjana / Mitjana-alta /Alta" à la place de "baix/força baix/mitjà/força alt/alt" (catalan) ; "Baja / Media-baja / Media / Media-alta / Alta" à la place de "bajo/bastante bajo/medio/bastante alto/alto" (espagnol)
D15: feuille "Translation" - corrections mineures de traduction en espagnol et catalan (T. Baiges)
D16: feuille "Translation" - remplacement de "classe" par "capacité d'accueil (classe)" et mofication des traductions en catalan et espagnol
D17: feuilles "Translation" / "Data" - correction "id-var_xlx" (ligne 665 / colonne CB) : 290 remplacé par 295
D18: feuille "Translation" : modification et ajout de langues (colonne A = langue pays + code iso ; B = en anglais)
D19: feuille "Translation" : modification et ajout de pays (country name in the original language + iso 3166 code)
D20: feuille "Translation" : ajout d'essences (insertion de 20 lignes)
D21: feuille "Translation" : ajout de 5 régions biogéographiques et de l'étage "oroméditerranéen" (+ insertion de 10 lignes)
D22: feuille "Translation" : quelques corrections de noms de dendromicrohabitat en espagnol, catalan, italien
C23: IBP BD 230323.t1.xlsm 2e mise à jour du 23/03/23 | D23: macro "RoseDiagram" : correction du bug d'affichage du graphique radar (ajout code : SECURITE SEBASTIEN le 04/01/2023), lié à un problème de copier/coller de la légende du graphique (Legende1) qui de manière alléatoire peut disparaître, sans doute lié à l'utilisation du Presse-papier de Windows --> ajout d'une autre légende (Legende2) dans la feuille filtre qui est utilisée en cas de problème, avec ajout d'un temps d'arrêt pour permettre l'exécution du copier/coller.
D24: macro "Export Data" : correction d'un bug lorsque les filtres sont activés dans la feuille Data
D25: macro dans Fig : correction d'un bug lors de l'affichage de données sélectionées dans Data lignes après 2008
D26: liste des champs : ajout d'un champ "Droits et conditions d'utilisation des données IBP" pour indiquer les conidtions de diffusion et d'utilisation par un tiers des relevés IBP, id_var_xlms = 33 (à la place de "nom groupe 2")
D27: feuille "Compte" et "Start" : modification de l'emplacement du bouton "choix langue"
D28: corrections de traduction
C29: IBP BD 230323.t2.xlsm | D29: ajout traduction English
C30: 3e mise à jour du 22/06/2023
C37: IBP BD 231001.t1.xlsm | D37: modification des formules dans Tot2 pour faciliter le traitement de groupe composés de plsu de 10 placettes
C38: 4e mise à jour du 01/10/2023

Sheet Tot1 (hidden)
A1: =COUNTA(F28:XFD28)&"/1000" -> 0/1000 | B1: =Translation!$C65 -> Relevés IBP | E1: =Translation!$C793 -> Remplir UNIQUEMENT les cellules en vert : - vert foncé : obligatoire (noter le score en fonction des résultats et de la définition IBP) ; devient rouge en cas de données importantes oubliées ou d'erreur - vert clair : facultative ou fonction des données recueillies - intitulé en gras : données reportées dans Fig. ATTENTION - orange : formule à ne pas effacer
C20: TEST lignes 30 et 31 remplies | E20: =IF(E31*E30=0,IF(E28="","VIDE","ERREUR"),"OK_NON_VIDE") -> OK_NON_VIDE | F20: VIDE | G20: VIDE | H20: VIDE | I20: VIDE | J20: VIDE | K20: VIDE | L20: VIDE | M20: VIDE | N20: VIDE | O20: VIDE | P20: VIDE | Q20: VIDE | R20: VIDE | S20: VIDE | T20: VIDE | U20: VIDE | V20: VIDE | W20: VIDE | X20: VIDE | Y20: VIDE | Z20: VIDE | AA20: VIDE | AB20: VIDE | AC20: VIDE | AD20: VIDE | AE20: VIDE | AF20: VIDE | AG20: VIDE | AH20: VIDE | AI20: VIDE | AJ20: VIDE | AK20: VIDE | AL20: VIDE | AM20: VIDE | AN20: VIDE | AO20: VIDE | AP20: VIDE | AQ20: VIDE | AR20: VIDE | AS20: VIDE | AT20: VIDE | AU20: VIDE | AV20: VIDE | AW20: VIDE | AX20: VIDE | AY20: VIDE | AZ20: VIDE | BA20: VIDE | BB20: VIDE | BC20: VIDE | BD20: VIDE | BE20: VIDE | BF20: VIDE | BG20: VIDE | BH20: VIDE | BI20: VIDE | BJ20: VIDE | BK20: VIDE | BL20: VIDE | BM20: VIDE | BN20: VIDE | BO20: VIDE | BP20: VIDE | BQ20: =IF(BQ31*BQ30=0,IF(BQ28="","VIDE","ERREUR"),"OK_NON_VIDE") -> VIDE | BR20: VIDE | BS20: VIDE | BT20: VIDE | BU20: VIDE | BV20: VIDE | BW20: VIDE | BX20: VIDE | BY20: VIDE | BZ20: VIDE | CA20: VIDE | CB20: VIDE | CC20: VIDE | CD20: VIDE | CE20: VIDE | CF20: VIDE | CG20: VIDE | CH20: VIDE | CI20: VIDE | CJ20: VIDE | CK20: VIDE | CL20: VIDE | CM20: VIDE | CN20: VIDE | CO20: VIDE | CP20: VIDE | CQ20: VIDE | CR20: VIDE | CS20: VIDE | CT20: VIDE | CU20: VIDE | CV20: VIDE | CW20: VIDE | CX20: VIDE | CY20: VIDE | CZ20: VIDE | DA20: VIDE | DB20: VIDE | DC20: VIDE | DD20: VIDE | DE20: VIDE | DF20: VIDE | DG20: VIDE | DH20: VIDE | DI20: VIDE | DJ20: VIDE | DK20: VIDE | DL20: VIDE | DM20: VIDE | DN20: VIDE | DO20: VIDE | DP20: VIDE | DQ20: VIDE | DR20: VIDE | DS20: VIDE | DT20: VIDE | DU20: VIDE | DV20: VIDE | DW20: VIDE | DX20: VIDE | DY20: VIDE | DZ20: VIDE | EA20: VIDE | EB20: VIDE | EC20: =IF(EC31*EC30=0,IF(EC28="","VIDE","ERREUR"),"OK_NON_VIDE") -> VIDE | ED20: VIDE | EE20: VIDE | EF20: VIDE | EG20: VIDE | EH20: VIDE | EI20: VIDE | EJ20: VIDE | EK20: VIDE | EL20: VIDE | EM20: VIDE | EN20: VIDE | EO20: VIDE | EP20: VIDE | EQ20: VIDE | ER20: VIDE | ES20: VIDE | ET20: VIDE | EU20: VIDE | EV20: VIDE | EW20: VIDE | EX20: VIDE | EY20: VIDE | EZ20: VIDE | FA20: VIDE | FB20: VIDE | FC20: VIDE | FD20: VIDE | FE20: VIDE | FF20: VIDE | FG20: VIDE | FH20: VIDE | FI20: VIDE | FJ20: VIDE | FK20: VIDE | FL20: VIDE | FM20: VIDE | FN20: VIDE | FO20: VIDE | FP20: VIDE | FQ20: VIDE | FR20: VIDE | FS20: VIDE | FT20: VIDE | FU20: VIDE | FV20: VIDE | FW20: VIDE | FX20: VIDE | FY20: VIDE | FZ20: VIDE | GA20: VIDE | GB20: VIDE | GC20: VIDE | GD20: VIDE | GE20: VIDE | GF20: VIDE | GG20: VIDE | GH20: VIDE | GI20: VIDE | GJ20: VIDE | GK20: VIDE | GL20: VIDE | GM20: VIDE | GN20: VIDE | GO20: =IF(GO31*GO30=0,IF(GO28="","VIDE","ERREUR"),"OK_NON_VIDE") -> VIDE | GP20: VIDE | GQ20: VIDE | GR20: VIDE | GS20: VIDE | GT20: VIDE | GU20: VIDE | GV20: VIDE | GW20: VIDE | GX20: VIDE | GY20: VIDE | GZ20: VIDE | HA20: VIDE | HB20: VIDE | HC20: VIDE | HD20: VIDE | HE20: VIDE | HF20: VIDE | HG20: VIDE | HH20: VIDE | HI20: VIDE | HJ20: VIDE | HK20: VIDE | HL20: VIDE | HM20: VIDE | HN20: VIDE | HO20: VIDE | HP20: VIDE | HQ20: VIDE | HR20: VIDE | HS20: VIDE | HT20: VIDE | HU20: VIDE | HV20: VIDE | HW20: VIDE | HX20: VIDE | HY20: VIDE | HZ20: VIDE | IA20: VIDE | IB20: VIDE | IC20: VIDE | ID20: VIDE | IE20: VIDE | IF20: VIDE | IG20: VIDE | IH20: VIDE | II20: VIDE | IJ20: VIDE | IK20: VIDE | IL20: VIDE | IM20: VIDE | IN20: VIDE | IO20: VIDE | IP20: VIDE | IQ20: VIDE | IR20: VIDE | IS20: VIDE | IT20: VIDE | IU20: VIDE | IV20: VIDE | IW20: VIDE | IX20: VIDE | IY20: VIDE | IZ20: VIDE | JA20: =IF(JA31*JA30=0,IF(JA28="","VIDE","ERREUR"),"OK_NON_VIDE") -> VIDE | JB20: VIDE | JC20: VIDE | JD20: VIDE | JE20: VIDE | JF20: VIDE | JG20: VIDE | JH20: VIDE | JI20: VIDE | JJ20: VIDE | JK20: VIDE | JL20: VIDE | JM20: VIDE | JN20: VIDE | JO20: VIDE | JP20: VIDE | JQ20: VIDE | JR20: VIDE | JS20: VIDE | JT20: VIDE | JU20: VIDE | JV20: VIDE | JW20: VIDE | JX20: VIDE | JY20: VIDE | JZ20: VIDE | KA20: VIDE | KB20: VIDE | KC20: VIDE | KD20: VIDE | KE20: VIDE | KF20: VIDE | KG20: VIDE | KH20: VIDE | KI20: VIDE | KJ20: VIDE | KK20: VIDE | KL20: VIDE | KM20: VIDE | KN20: VIDE | KO20: VIDE | KP20: VIDE | KQ20: VIDE | KR20: VIDE | KS20: VIDE | KT20: VIDE | KU20: VIDE | KV20: VIDE | KW20: VIDE | KX20: VIDE | KY20: VIDE | KZ20: VIDE | LA20: VIDE | LB20: VIDE | LC20: VIDE | LD20: VIDE | LE20: VIDE | LF20: VIDE | LG20: VIDE | LH20: VIDE | LI20: VIDE | LJ20: VIDE | LK20: VIDE | LL20: VIDE | LM20: =IF(LM31*LM30=0,IF(LM28="","VIDE","ERREUR"),"OK_NON_VIDE") -> VIDE | LN20: VIDE | LO20: VIDE | LP20: VIDE | LQ20: VIDE | LR20: VIDE | LS20: VIDE | LT20: VIDE | LU20: VIDE | LV20: VIDE | LW20: VIDE | LX20: VIDE | LY20: VIDE | LZ20: VIDE | MA20: VIDE | MB20: VIDE | MC20: VIDE | MD20: VIDE | ME20: VIDE | MF20: VIDE | MG20: VIDE | MH20: VIDE | MI20: VIDE | MJ20: VIDE | MK20: VIDE | ML20: VIDE | MM20: VIDE | MN20: VIDE | MO20: VIDE | MP20: VIDE | MQ20: VIDE | MR20: VIDE | MS20: VIDE | MT20: VIDE | MU20: VIDE | MV20: VIDE | MW20: VIDE | MX20: VIDE | MY20: VIDE | MZ20: VIDE | NA20: VIDE | NB20: VIDE | NC20: VIDE | ND20: VIDE | NE20: VIDE | NF20: VIDE | NG20: VIDE | NH20: VIDE | NI20: VIDE | NJ20: VIDE | NK20: VIDE | NL20: VIDE | NM20: VIDE | NN20: VIDE | NO20: VIDE | NP20: VIDE | NQ20: VIDE | NR20: VIDE | NS20: VIDE | NT20: VIDE | NU20: VIDE | NV20: VIDE | NW20: VIDE | NX20: VIDE | NY20: =IF(NY31*NY30=0,IF(NY28="","VIDE","ERREUR"),"OK_NON_VIDE") -> VIDE | NZ20: VIDE | OA20: VIDE | OB20: VIDE | OC20: VIDE | OD20: VIDE | OE20: VIDE | OF20: VIDE | OG20: VIDE | OH20: VIDE | OI20: VIDE | OJ20: VIDE | OK20: VIDE | OL20: VIDE | OM20: VIDE | ON20: VIDE | OO20: VIDE | OP20: VIDE | OQ20: VIDE | OR20: VIDE | OS20: VIDE | OT20: VIDE | OU20: VIDE | OV20: VIDE | OW20: VIDE | OX20: VIDE | OY20: VIDE | OZ20: VIDE | PA20: VIDE | PB20: VIDE | PC20: VIDE | PD20: VIDE | PE20: VIDE | PF20: VIDE | PG20: VIDE | PH20: VIDE | PI20: VIDE | PJ20: VIDE | PK20: VIDE | PL20: VIDE | PM20: VIDE | PN20: VIDE | PO20: VIDE | PP20: VIDE | PQ20: VIDE | PR20: VIDE | PS20: VIDE | PT20: VIDE | PU20: VIDE | PV20: VIDE | PW20: VIDE | PX20: VIDE | PY20: VIDE | PZ20: VIDE | QA20: VIDE | QB20: VIDE | QC20: VIDE | QD20: VIDE | QE20: VIDE | QF20: VIDE | QG20: VIDE | QH20: VIDE | QI20: VIDE | QJ20: VIDE | QK20: =IF(QK31*QK30=0,IF(QK28="","VIDE","ERREUR"),"OK_NON_VIDE") -> VIDE | QL20: VIDE | QM20: VIDE | QN20: VIDE | QO20: VIDE | QP20: VIDE | QQ20: VIDE | QR20: VIDE | QS20: VIDE | QT20: VIDE | QU20: VIDE | QV20: VIDE | QW20: VIDE | QX20: VIDE | QY20: VIDE | QZ20: VIDE | RA20: VIDE | RB20: VIDE | RC20: VIDE | RD20: VIDE | RE20: VIDE | RF20: VIDE | RG20: VIDE | RH20: VIDE | RI20: VIDE | RJ20: VIDE | RK20: VIDE | RL20: VIDE | RM20: VIDE | RN20: VIDE | RO20: VIDE | RP20: VIDE | RQ20: VIDE | RR20: VIDE | RS20: VIDE | RT20: VIDE | RU20: VIDE | RV20: VIDE | RW20: VIDE | RX20: VIDE | RY20: VIDE | RZ20: VIDE | SA20: VIDE | SB20: VIDE | SC20: VIDE | SD20: VIDE | SE20: VIDE | SF20: VIDE | SG20: VIDE | SH20: VIDE | SI20: VIDE | SJ20: VIDE | SK20: VIDE | SL20: VIDE | SM20: VIDE | SN20: VIDE | SO20: VIDE | SP20: VIDE | SQ20: VIDE | SR20: VIDE | SS20: VIDE | ST20: VIDE | SU20: VIDE | SV20: VIDE | SW20: =IF(SW31*SW30=0,IF(SW28="","VIDE","ERREUR"),"OK_NON_VIDE") -> VIDE | SX20: VIDE | SY20: VIDE | SZ20: VIDE | TA20: VIDE | TB20: VIDE | TC20: VIDE | TD20: VIDE | TE20: VIDE | TF20: VIDE | TG20: VIDE | TH20: VIDE | TI20: VIDE | TJ20: VIDE | TK20: VIDE | TL20: VIDE | TM20: VIDE | TN20: VIDE | TO20: VIDE | TP20: VIDE | TQ20: VIDE | TR20: VIDE | TS20: VIDE | TT20: VIDE | TU20: VIDE | TV20: VIDE | TW20: VIDE | TX20: VIDE | TY20: VIDE | TZ20: VIDE | UA20: VIDE | UB20: VIDE | UC20: VIDE | UD20: VIDE | UE20: VIDE | UF20: VIDE | UG20: VIDE | UH20: VIDE | UI20: VIDE | UJ20: VIDE | UK20: VIDE | UL20: VIDE | UM20: VIDE | UN20: VIDE | UO20: VIDE | UP20: VIDE | UQ20: VIDE | UR20: VIDE | US20: VIDE | UT20: VIDE | UU20: VIDE | UV20: VIDE | UW20: VIDE | UX20: VIDE | UY20: VIDE | UZ20: VIDE | VA20: VIDE | VB20: VIDE | VC20: VIDE | VD20: VIDE | VE20: VIDE | VF20: VIDE | VG20: VIDE | VH20: VIDE | VI20: =IF(VI31*VI30=0,IF(VI28="","VIDE","ERREUR"),"OK_NON_VIDE") -> VIDE | VJ20: VIDE | VK20: VIDE | VL20: VIDE | VM20: VIDE | VN20: VIDE | VO20: VIDE | VP20: VIDE | VQ20: VIDE | VR20: VIDE | VS20: VIDE | VT20: VIDE | VU20: VIDE | VV20: VIDE | VW20: VIDE | VX20: VIDE | VY20: VIDE | VZ20: VIDE | WA20: VIDE | WB20: VIDE | WC20: VIDE | WD20: VIDE | WE20: VIDE | WF20: VIDE | WG20: VIDE | WH20: VIDE | WI20: VIDE | WJ20: VIDE | WK20: VIDE | WL20: VIDE | WM20: VIDE | WN20: VIDE | WO20: VIDE | WP20: VIDE | WQ20: VIDE | WR20: VIDE | WS20: VIDE | WT20: VIDE | WU20: VIDE | WV20: VIDE | WW20: VIDE | WX20: VIDE | WY20: VIDE | WZ20: VIDE | XA20: VIDE | XB20: VIDE | XC20: VIDE | XD20: VIDE | XE20: VIDE | XF20: VIDE | XG20: VIDE | XH20: VIDE | XI20: VIDE | XJ20: VIDE | XK20: VIDE | XL20: VIDE | XM20: VIDE | XN20: VIDE | XO20: VIDE | XP20: VIDE | XQ20: VIDE | XR20: VIDE | XS20: VIDE | XT20: VIDE | XU20: =IF(XU31*XU30=0,IF(XU28="","VIDE","ERREUR"),"OK_NON_VIDE") -> VIDE | XV20: VIDE | XW20: VIDE | XX20: VIDE | XY20: VIDE | XZ20: VIDE | YA20: VIDE | YB20: VIDE | YC20: VIDE | YD20: VIDE | YE20: VIDE | YF20: VIDE | YG20: VIDE | YH20: VIDE | YI20: VIDE | YJ20: VIDE | YK20: VIDE | YL20: VIDE | YM20: VIDE | YN20: VIDE | YO20: VIDE | YP20: VIDE | YQ20: VIDE | YR20: VIDE | YS20: VIDE | YT20: VIDE | YU20: VIDE | YV20: VIDE | YW20: VIDE | YX20: VIDE | YY20: VIDE | YZ20: VIDE | ZA20: VIDE | ZB20: VIDE | ZC20: VIDE | ZD20: VIDE | ZE20: VIDE | ZF20: VIDE | ZG20: VIDE | ZH20: VIDE | ZI20: VIDE | ZJ20: VIDE | ZK20: VIDE | ZL20: VIDE | ZM20: VIDE | ZN20: VIDE | ZO20: VIDE | ZP20: VIDE | ZQ20: VIDE | ZR20: VIDE | ZS20: VIDE | ZT20: VIDE | ZU20: VIDE | ZV20: VIDE | ZW20: VIDE | ZX20: VIDE | ZY20: VIDE | ZZ20: VIDE | AAA20: VIDE | AAB20: VIDE | AAC20: VIDE | AAD20: VIDE | AAE20: VIDE | AAF20: VIDE | AAG20: =IF(AAG31*AAG30=0,IF(AAG28="","VIDE","ERREUR"),"OK_NON_VIDE") -> VIDE | AAH20: VIDE | AAI20: VIDE | AAJ20: VIDE | AAK20: VIDE | AAL20: VIDE | AAM20: VIDE | AAN20: VIDE | AAO20: VIDE | AAP20: VIDE | AAQ20: VIDE | AAR20: VIDE | AAS20: VIDE | AAT20: VIDE | AAU20: VIDE | AAV20: VIDE | AAW20: VIDE | AAX20: VIDE | AAY20: VIDE | AAZ20: VIDE | ABA20: VIDE | ABB20: VIDE | ABC20: VIDE | ABD20: VIDE | ABE20: VIDE | ABF20: VIDE | ABG20: VIDE | ABH20: VIDE | ABI20: VIDE | ABJ20: VIDE | ABK20: VIDE | ABL20: VIDE | ABM20: VIDE | ABN20: VIDE | ABO20: VIDE | ABP20: VIDE | ABQ20: VIDE | ABR20: VIDE | ABS20: VIDE | ABT20: VIDE | ABU20: VIDE | ABV20: VIDE | ABW20: VIDE | ABX20: VIDE | ABY20: VIDE | ABZ20: VIDE | ACA20: VIDE | ACB20: VIDE | ACC20: VIDE | ACD20: VIDE | ACE20: VIDE | ACF20: VIDE | ACG20: VIDE | ACH20: VIDE | ACI20: VIDE | ACJ20: VIDE | ACK20: VIDE | ACL20: VIDE | ACM20: VIDE | ACN20: VIDE | ACO20: VIDE | ACP20: VIDE | ACQ20: VIDE | ACR20: VIDE | ACS20: =IF(ACS31*ACS30=0,IF(ACS28="","VIDE","ERREUR"),"OK_NON_VIDE") -> VIDE | ACT20: VIDE | ACU20: VIDE | ACV20: VIDE | ACW20: VIDE | ACX20: VIDE | ACY20: VIDE | ACZ20: VIDE | ADA20: VIDE | ADB20: VIDE | ADC20: VIDE | ADD20: VIDE | ADE20: VIDE | ADF20: VIDE | ADG20: VIDE | ADH20: VIDE | ADI20: VIDE | ADJ20: VIDE | ADK20: VIDE | ADL20: VIDE | ADM20: VIDE | ADN20: VIDE | ADO20: VIDE | ADP20: VIDE | ADQ20: VIDE | ADR20: VIDE | ADS20: VIDE | ADT20: VIDE | ADU20: VIDE | ADV20: VIDE | ADW20: VIDE | ADX20: VIDE | ADY20: VIDE | ADZ20: VIDE | AEA20: VIDE | AEB20: VIDE | AEC20: VIDE | AED20: VIDE | AEE20: VIDE | AEF20: VIDE | AEG20: VIDE | AEH20: VIDE | AEI20: VIDE | AEJ20: VIDE | AEK20: VIDE | AEL20: VIDE | AEM20: VIDE | AEN20: VIDE | AEO20: VIDE | AEP20: VIDE | AEQ20: VIDE | AER20: VIDE | AES20: VIDE | AET20: VIDE | AEU20: VIDE | AEV20: VIDE | AEW20: VIDE | AEX20: VIDE | AEY20: VIDE | AEZ20: VIDE | AFA20: VIDE | AFB20: VIDE | AFC20: VIDE | AFD20: VIDE | AFE20: =IF(AFE31*AFE30=0,IF(AFE28="","VIDE","ERREUR"),"OK_NON_VIDE") -> VIDE | AFF20: VIDE | AFG20: VIDE | AFH20: VIDE | AFI20: VIDE | AFJ20: VIDE | AFK20: VIDE | AFL20: VIDE | AFM20: VIDE | AFN20: VIDE | AFO20: VIDE | AFP20: VIDE | AFQ20: VIDE | AFR20: VIDE | AFS20: VIDE | AFT20: VIDE | AFU20: VIDE | AFV20: VIDE | AFW20: VIDE | AFX20: VIDE | AFY20: VIDE | AFZ20: VIDE | AGA20: VIDE | AGB20: VIDE | AGC20: VIDE | AGD20: VIDE | AGE20: VIDE | AGF20: VIDE | AGG20: VIDE | AGH20: VIDE | AGI20: VIDE | AGJ20: VIDE | AGK20: VIDE | AGL20: VIDE | AGM20: VIDE | AGN20: VIDE | AGO20: VIDE | AGP20: VIDE | AGQ20: VIDE | AGR20: VIDE | AGS20: VIDE | AGT20: VIDE | AGU20: VIDE | AGV20: VIDE | AGW20: VIDE | AGX20: VIDE | AGY20: VIDE | AGZ20: VIDE | AHA20: VIDE | AHB20: VIDE | AHC20: VIDE | AHD20: VIDE | AHE20: VIDE | AHF20: VIDE | AHG20: VIDE | AHH20: VIDE | AHI20: VIDE | AHJ20: VIDE | AHK20: VIDE | AHL20: VIDE | AHM20: VIDE | AHN20: VIDE | AHO20: VIDE | AHP20: VIDE | AHQ20: =IF(AHQ31*AHQ30=0,IF(AHQ28="","VIDE","ERREUR"),"OK_NON_VIDE") -> VIDE | AHR20: VIDE | AHS20: VIDE | AHT20: VIDE | AHU20: VIDE | AHV20: VIDE | AHW20: VIDE | AHX20: VIDE | AHY20: VIDE | AHZ20: VIDE | AIA20: VIDE | AIB20: VIDE | AIC20: VIDE | AID20: VIDE | AIE20: VIDE | AIF20: VIDE | AIG20: VIDE | AIH20: VIDE | AII20: VIDE | AIJ20: VIDE | AIK20: VIDE | AIL20: VIDE | AIM20: VIDE | AIN20: VIDE | AIO20: VIDE | AIP20: VIDE | AIQ20: VIDE | AIR20: VIDE | AIS20: VIDE | AIT20: VIDE | AIU20: VIDE | AIV20: VIDE | AIW20: VIDE | AIX20: VIDE | AIY20: VIDE | AIZ20: VIDE | AJA20: VIDE | AJB20: VIDE | AJC20: VIDE | AJD20: VIDE | AJE20: VIDE | AJF20: VIDE | AJG20: VIDE | AJH20: VIDE | AJI20: VIDE | AJJ20: VIDE | AJK20: VIDE | AJL20: VIDE | AJM20: VIDE | AJN20: VIDE | AJO20: VIDE | AJP20: VIDE | AJQ20: VIDE | AJR20: VIDE | AJS20: VIDE | AJT20: VIDE | AJU20: VIDE | AJV20: VIDE | AJW20: VIDE | AJX20: VIDE | AJY20: VIDE | AJZ20: VIDE | AKA20: VIDE | AKB20: VIDE | AKC20: =IF(AKC31*AKC30=0,IF(AKC28="","VIDE","ERREUR"),"OK_NON_VIDE") -> VIDE | AKD20: VIDE | AKE20: VIDE | AKF20: VIDE | AKG20: VIDE | AKH20: VIDE | AKI20: VIDE | AKJ20: VIDE | AKK20: VIDE | AKL20: VIDE | AKM20: VIDE | AKN20: VIDE | AKO20: VIDE | AKP20: VIDE | AKQ20: VIDE | AKR20: VIDE | AKS20: VIDE | AKT20: VIDE | AKU20: VIDE | AKV20: VIDE | AKW20: VIDE | AKX20: VIDE | AKY20: VIDE | AKZ20: VIDE | ALA20: VIDE | ALB20: VIDE | ALC20: VIDE | ALD20: VIDE | ALE20: VIDE | ALF20: VIDE | ALG20: VIDE | ALH20: VIDE | ALI20: VIDE | ALJ20: VIDE | ALK20: VIDE | ALL20: VIDE | ALM20: VIDE | ALN20: VIDE | ALO20: VIDE | ALP20: VIDE | ALQ20: VIDE
A22: do | C22: =Translation!C62 -> Ordre de saisie | E22: 0 | F22: =E22+1 -> 1 | G22: =F22+1 -> 2 | H22: 3 | I22: 4 | J22: 5 | K22: 6 | L22: 7 | M22: 8 | N22: 9 | O22: 10 | P22: 11 | Q22: 12 | R22: 13 | S22: 14 | T22: 15 | U22: 16 | V22: 17 | W22: 18 | X22: 19 | Y22: 20 | Z22: 21 | AA22: 22 | AB22: 23 | AC22: 24 | AD22: 25 | AE22: 26 | AF22: 27 | AG22: 28 | AH22: 29 | AI22: 30 | AJ22: 31 | AK22: 32 | AL22: 33 | AM22: 34 | AN22: 35 | AO22: 36 | AP22: 37 | AQ22: 38 | AR22: 39 | AS22: 40 | AT22: 41 | AU22: 42 | AV22: 43 | AW22: 44 | AX22: 45 | AY22: 46 | AZ22: 47 | BA22: 48 | BB22: 49 | BC22: 50 | BD22: 51 | BE22: 52 | BF22: 53 | BG22: 54 | BH22: 55 | BI22: 56 | BJ22: 57 | BK22: 58 | BL22: 59 | BM22: 60 | BN22: 61 | BO22: 62 | BP22: 63 | BQ22: 64 | BR22: 65 | BS22: =BR22+1 -> 66 | BT22: 67 | BU22: 68 | BV22: 69 | BW22: 70 | BX22: 71 | BY22: 72 | BZ22: 73 | CA22: 74 | CB22: 75 | CC22: 76 | CD22: 77 | CE22: 78 | CF22: 79 | CG22: 80 | CH22: 81 | CI22: 82 | CJ22: 83 | CK22: 84 | CL22: 85 | CM22: 86 | CN22: 87 | CO22: 88 | CP22: 89 | CQ22: 90 | CR22: 91 | CS22: 92 | CT22: 93 | CU22: 94 | CV22: 95 | CW22: 96 | CX22: 97 | CY22: 98 | CZ22: 99 | DA22: 100 | DB22: 101 | DC22: 102 | DD22: 103 | DE22: 104 | DF22: 105 | DG22: 106 | DH22: 107 | DI22: 108 | DJ22: 109 | DK22: 110 | DL22: 111 | DM22: 112 | DN22: 113 | DO22: 114 | DP22: 115 | DQ22: 116 | DR22: 117 | DS22: 118 | DT22: 119 | DU22: 120 | DV22: 121 | DW22: 122 | DX22: 123 | DY22: 124 | DZ22: 125 | EA22: 126 | EB22: 127 | EC22: 128 | ED22: 129 | EE22: =ED22+1 -> 130 | EF22: 131 | EG22: 132 | EH22: 133 | EI22: 134 | EJ22: 135 | EK22: 136 | EL22: 137 | EM22: 138 | EN22: 139 | EO22: 140 | EP22: 141 | EQ22: 142 | ER22: 143 | ES22: 144 | ET22: 145 | EU22: 146 | EV22: 147 | EW22: 148 | EX22: 149 | EY22: 150 | EZ22: 151 | FA22: 152 | FB22: 153 | FC22: 154 | FD22: 155 | FE22: 156 | FF22: 157 | FG22: 158 | FH22: 159 | FI22: 160 | FJ22: 161 | FK22: 162 | FL22: 163 | FM22: 164 | FN22: 165 | FO22: 166 | FP22: 167 | FQ22: 168 | FR22: 169 | FS22: 170 | FT22: 171 | FU22: 172 | FV22: 173 | FW22: 174 | FX22: 175 | FY22: 176 | FZ22: 177 | GA22: 178 | GB22: 179 | GC22: 180 | GD22: 181 | GE22: 182 | GF22: 183 | GG22: 184 | GH22: 185 | GI22: 186 | GJ22: 187 | GK22: 188 | GL22: 189 | GM22: 190 | GN22: 191 | GO22: 192 | GP22: 193 | GQ22: =GP22+1 -> 194 | GR22: 195 | GS22: 196 | GT22: 197 | GU22: 198 | GV22: 199 | GW22: 200 | GX22: 201 | GY22: 202 | GZ22: 203 | HA22: 204 | HB22: 205 | HC22: 206 | HD22: 207 | HE22: 208 | HF22: 209 | HG22: 210 | HH22: 211 | HI22: 212 | HJ22: 213 | HK22: 214 | HL22: 215 | HM22: 216 | HN22: 217 | HO22: 218 | HP22: 219 | HQ22: 220 | HR22: 221 | HS22: 222 | HT22: 223 | HU22: 224 | HV22: 225 | HW22: 226 | HX22: 227 | HY22: 228 | HZ22: 229 | IA22: 230 | IB22: 231 | IC22: 232 | ID22: 233 | IE22: 234 | IF22: 235 | IG22: 236 | IH22: 237 | II22: 238 | IJ22: 239 | IK22: 240 | IL22: 241 | IM22: 242 | IN22: 243 | IO22: 244 | IP22: 245 | IQ22: 246 | IR22: 247 | IS22: 248 | IT22: 249 | IU22: 250 | IV22: 251 | IW22: 252 | IX22: 253 | IY22: 254 | IZ22: 255 | JA22: 256 | JB22: 257 | JC22: =JB22+1 -> 258 | JD22: 259 | JE22: 260 | JF22: 261 | JG22: 262 | JH22: 263 | JI22: 264 | JJ22: 265 | JK22: 266 | JL22: 267 | JM22: 268 | JN22: 269 | JO22: 270 | JP22: 271 | JQ22: 272 | JR22: 273 | JS22: 274 | JT22: 275 | JU22: 276 | JV22: 277 | JW22: 278 | JX22: 279 | JY22: 280 | JZ22: 281 | KA22: 282 | KB22: 283 | KC22: 284 | KD22: 285 | KE22: 286 | KF22: 287 | KG22: 288 | KH22: 289 | KI22: 290 | KJ22: 291 | KK22: 292 | KL22: 293 | KM22: 294 | KN22: 295 | KO22: 296 | KP22: 297 | KQ22: 298 | KR22: 299 | KS22: 300 | KT22: 301 | KU22: 302 | KV22: 303 | KW22: 304 | KX22: 305 | KY22: 306 | KZ22: 307 | LA22: 308 | LB22: 309 | LC22: 310 | LD22: 311 | LE22: 312 | LF22: 313 | LG22: 314 | LH22: 315 | LI22: 316 | LJ22: 317 | LK22: 318 | LL22: 319 | LM22: 320 | LN22: 321 | LO22: =LN22+1 -> 322 | LP22: 323 | LQ22: 324 | LR22: 325 | LS22: 326 | LT22: 327 | LU22: 328 | LV22: 329 | LW22: 330 | LX22: 331 | LY22: 332 | LZ22: 333 | MA22: 334 | MB22: 335 | MC22: 336 | MD22: 337 | ME22: 338 | MF22: 339 | MG22: 340 | MH22: 341 | MI22: 342 | MJ22: 343 | MK22: 344 | ML22: 345 | MM22: 346 | MN22: 347 | MO22: 348 | MP22: 349 | MQ22: 350 | MR22: 351 | MS22: 352 | MT22: 353 | MU22: 354 | MV22: 355 | MW22: 356 | MX22: 357 | MY22: 358 | MZ22: 359 | NA22: 360 | NB22: 361 | NC22: 362 | ND22: 363 | NE22: 364 | NF22: 365 | NG22: 366 | NH22: 367 | NI22: 368 | NJ22: 369 | NK22: 370 | NL22: 371 | NM22: 372 | NN22: 373 | NO22: 374 | NP22: 375 | NQ22: 376 | NR22: 377 | NS22: 378 | NT22: 379 | NU22: 380 | NV22: 381 | NW22: 382 | NX22: 383 | NY22: 384 | NZ22: 385 | OA22: =NZ22+1 -> 386 | OB22: 387 | OC22: 388 | OD22: 389 | OE22: 390 | OF22: 391 | OG22: 392 | OH22: 393 | OI22: 394 | OJ22: 395 | OK22: 396 | OL22: 397 | OM22: 398 | ON22: 399 | OO22: 400 | OP22: 401 | OQ22: 402 | OR22: 403 | OS22: 404 | OT22: 405 | OU22: 406 | OV22: 407 | OW22: 408 | OX22: 409 | OY22: 410 | OZ22: 411 | PA22: 412 | PB22: 413 | PC22: 414 | PD22: 415 | PE22: 416 | PF22: 417 | PG22: 418 | PH22: 419 | PI22: 420 | PJ22: 421 | PK22: 422 | PL22: 423 | PM22: 424 | PN22: 425 | PO22: 426 | PP22: 427 | PQ22: 428 | PR22: 429 | PS22: 430 | PT22: 431 | PU22: 432 | PV22: 433 | PW22: 434 | PX22: 435 | PY22: 436 | PZ22: 437 | QA22: 438 | QB22: 439 | QC22: 440 | QD22: 441 | QE22: 442 | QF22: 443 | QG22: 444 | QH22: 445 | QI22: 446 | QJ22: 447 | QK22: 448 | QL22: 449 | QM22: =QL22+1 -> 450 | QN22: 451 | QO22: 452 | QP22: 453 | QQ22: 454 | QR22: 455 | QS22: 456 | QT22: 457 | QU22: 458 | QV22: 459 | QW22: 460 | QX22: 461 | QY22: 462 | QZ22: 463 | RA22: 464 | RB22: 465 | RC22: 466 | RD22: 467 | RE22: 468 | RF22: 469 | RG22: 470 | RH22: 471 | RI22: 472 | RJ22: 473 | RK22: 474 | RL22: 475 | RM22: 476 | RN22: 477 | RO22: 478 | RP22: 479 | RQ22: 480 | RR22: 481 | RS22: 482 | RT22: 483 | RU22: 484 | RV22: 485 | RW22: 486 | RX22: 487 | RY22: 488 | RZ22: 489 | SA22: 490 | SB22: 491 | SC22: 492 | SD22: 493 | SE22: 494 | SF22: 495 | SG22: 496 | SH22: 497 | SI22: 498 | SJ22: 499 | SK22: 500 | SL22: 501 | SM22: 502 | SN22: 503 | SO22: 504 | SP22: 505 | SQ22: 506 | SR22: 507 | SS22: 508 | ST22: 509 | SU22: 510 | SV22: 511 | SW22: 512 | SX22: 513 | SY22: =SX22+1 -> 514 | SZ22: 515 | TA22: 516 | TB22: 517 | TC22: 518 | TD22: 519 | TE22: 520 | TF22: 521 | TG22: 522 | TH22: 523 | TI22: 524 | TJ22: 525 | TK22: 526 | TL22: 527 | TM22: 528 | TN22: 529 | TO22: 530 | TP22: 531 | TQ22: 532 | TR22: 533 | TS22: 534 | TT22: 535 | TU22: 536 | TV22: 537 | TW22: 538 | TX22: 539 | TY22: 540 | TZ22: 541 | UA22: 542 | UB22: 543 | UC22: 544 | UD22: 545 | UE22: 546 | UF22: 547 | UG22: 548 | UH22: 549 | UI22: 550 | UJ22: 551 | UK22: 552 | UL22: 553 | UM22: 554 | UN22: 555 | UO22: 556 | UP22: 557 | UQ22: 558 | UR22: 559 | US22: 560 | UT22: 561 | UU22: 562 | UV22: 563 | UW22: 564 | UX22: 565 | UY22: 566 | UZ22: 567 | VA22: 568 | VB22: 569 | VC22: 570 | VD22: 571 | VE22: 572 | VF22: 573 | VG22: 574 | VH22: 575 | VI22: 576 | VJ22: 577 | VK22: =VJ22+1 -> 578 | VL22: 579 | VM22: 580 | VN22: 581 | VO22: 582 | VP22: 583 | VQ22: 584 | VR22: 585 | VS22: 586 | VT22: 587 | VU22: 588 | VV22: 589 | VW22: 590 | VX22: 591 | VY22: 592 | VZ22: 593 | WA22: 594 | WB22: 595 | WC22: 596 | WD22: 597 | WE22: 598 | WF22: 599 | WG22: 600 | WH22: 601 | WI22: 602 | WJ22: 603 | WK22: 604 | WL22: 605 | WM22: 606 | WN22: 607 | WO22: 608 | WP22: 609 | WQ22: 610 | WR22: 611 | WS22: 612 | WT22: 613 | WU22: 614 | WV22: 615 | WW22: 616 | WX22: 617 | WY22: 618 | WZ22: 619 | XA22: 620 | XB22: 621 | XC22: 622 | XD22: 623 | XE22: 624 | XF22: 625 | XG22: 626 | XH22: 627 | XI22: 628 | XJ22: 629 | XK22: 630 | XL22: 631 | XM22: 632 | XN22: 633 | XO22: 634 | XP22: 635 | XQ22: 636 | XR22: 637 | XS22: 638 | XT22: 639 | XU22: 640 | XV22: 641 | XW22: =XV22+1 -> 642 | XX22: 643 | XY22: 644 | XZ22: 645 | YA22: 646 | YB22: 647 | YC22: 648 | YD22: 649 | YE22: 650 | YF22: 651 | YG22: 652 | YH22: 653 | YI22: 654 | YJ22: 655 | YK22: 656 | YL22: 657 | YM22: 658 | YN22: 659 | YO22: 660 | YP22: 661 | YQ22: 662 | YR22: 663 | YS22: 664 | YT22: 665 | YU22: 666 | YV22: 667 | YW22: 668 | YX22: 669 | YY22: 670 | YZ22: 671 | ZA22: 672 | ZB22: 673 | ZC22: 674 | ZD22: 675 | ZE22: 676 | ZF22: 677 | ZG22: 678 | ZH22: 679 | ZI22: 680 | ZJ22: 681 | ZK22: 682 | ZL22: 683 | ZM22: 684 | ZN22: 685 | ZO22: 686 | ZP22: 687 | ZQ22: 688 | ZR22: 689 | ZS22: 690 | ZT22: 691 | ZU22: 692 | ZV22: 693 | ZW22: 694 | ZX22: 695 | ZY22: 696 | ZZ22: 697 | AAA22: 698 | AAB22: 699 | AAC22: 700 | AAD22: 701 | AAE22: 702 | AAF22: 703 | AAG22: 704 | AAH22: 705 | AAI22: =AAH22+1 -> 706 | AAJ22: 707 | AAK22: 708 | AAL22: 709 | AAM22: 710 | AAN22: 711 | AAO22: 712 | AAP22: 713 | AAQ22: 714 | AAR22: 715 | AAS22: 716 | AAT22: 717 | AAU22: 718 | AAV22: 719 | AAW22: 720 | AAX22: 721 | AAY22: 722 | AAZ22: 723 | ABA22: 724 | ABB22: 725 | ABC22: 726 | ABD22: 727 | ABE22: 728 | ABF22: 729 | ABG22: 730 | ABH22: 731 | ABI22: 732 | ABJ22: 733 | ABK22: 734 | ABL22: 735 | ABM22: 736 | ABN22: 737 | ABO22: 738 | ABP22: 739 | ABQ22: 740 | ABR22: 741 | ABS22: 742 | ABT22: 743 | ABU22: 744 | ABV22: 745 | ABW22: 746 | ABX22: 747 | ABY22: 748 | ABZ22: 749 | ACA22: 750 | ACB22: 751 | ACC22: 752 | ACD22: 753 | ACE22: 754 | ACF22: 755 | ACG22: 756 | ACH22: 757 | ACI22: 758 | ACJ22: 759 | ACK22: 760 | ACL22: 761 | ACM22: 762 | ACN22: 763 | ACO22: 764 | ACP22: 765 | ACQ22: 766 | ACR22: 767 | ACS22: 768 | ACT22: 769 | ACU22: =ACT22+1 -> 770 | ACV22: 771 | ACW22: 772 | ACX22: 773 | ACY22: 774 | ACZ22: 775 | ADA22: 776 | ADB22: 777 | ADC22: 778 | ADD22: 779 | ADE22: 780 | ADF22: 781 | ADG22: 782 | ADH22: 783 | ADI22: 784 | ADJ22: 785 | ADK22: 786 | ADL22: 787 | ADM22: 788 | ADN22: 789 | ADO22: 790 | ADP22: 791 | ADQ22: 792 | ADR22: 793 | ADS22: 794 | ADT22: 795 | ADU22: 796 | ADV22: 797 | ADW22: 798 | ADX22: 799 | ADY22: 800 | ADZ22: 801 | AEA22: 802 | AEB22: 803 | AEC22: 804 | AED22: 805 | AEE22: 806 | AEF22: 807 | AEG22: 808 | AEH22: 809 | AEI22: 810 | AEJ22: 811 | AEK22: 812 | AEL22: 813 | AEM22: 814 | AEN22: 815 | AEO22: 816 | AEP22: 817 | AEQ22: 818 | AER22: 819 | AES22: 820 | AET22: 821 | AEU22: 822 | AEV22: 823 | AEW22: 824 | AEX22: 825 | AEY22: 826 | AEZ22: 827 | AFA22: 828 | AFB22: 829 | AFC22: 830 | AFD22: 831 | AFE22: 832 | AFF22: 833 | AFG22: =AFF22+1 -> 834 | AFH22: 835 | AFI22: 836 | AFJ22: 837 | AFK22: 838 | AFL22: 839 | AFM22: 840 | AFN22: 841 | AFO22: 842 | AFP22: 843 | AFQ22: 844 | AFR22: 845 | AFS22: 846 | AFT22: 847 | AFU22: 848 | AFV22: 849 | AFW22: 850 | AFX22: 851 | AFY22: 852 | AFZ22: 853 | AGA22: 854 | AGB22: 855 | AGC22: 856 | AGD22: 857 | AGE22: 858 | AGF22: 859 | AGG22: 860 | AGH22: 861 | AGI22: 862 | AGJ22: 863 | AGK22: 864 | AGL22: 865 | AGM22: 866 | AGN22: 867 | AGO22: 868 | AGP22: 869 | AGQ22: 870 | AGR22: 871 | AGS22: 872 | AGT22: 873 | AGU22: 874 | AGV22: 875 | AGW22: 876 | AGX22: 877 | AGY22: 878 | AGZ22: 879 | AHA22: 880 | AHB22: 881 | AHC22: 882 | AHD22: 883 | AHE22: 884 | AHF22: 885 | AHG22: 886 | AHH22: 887 | AHI22: 888 | AHJ22: 889 | AHK22: 890 | AHL22: 891 | AHM22: 892 | AHN22: 893 | AHO22: 894 | AHP22: 895 | AHQ22: 896 | AHR22: 897 | AHS22: =AHR22+1 -> 898 | AHT22: 899 | AHU22: 900 | AHV22: 901 | AHW22: 902 | AHX22: 903 | AHY22: 904 | AHZ22: 905 | AIA22: 906 | AIB22: 907 | AIC22: 908 | AID22: 909 | AIE22: 910 | AIF22: 911 | AIG22: 912 | AIH22: 913 | AII22: 914 | AIJ22: 915 | AIK22: 916 | AIL22: 917 | AIM22: 918 | AIN22: 919 | AIO22: 920 | AIP22: 921 | AIQ22: 922 | AIR22: 923 | AIS22: 924 | AIT22: 925 | AIU22: 926 | AIV22: 927 | AIW22: 928 | AIX22: 929 | AIY22: 930 | AIZ22: 931 | AJA22: 932 | AJB22: 933 | AJC22: 934 | AJD22: 935 | AJE22: 936 | AJF22: 937 | AJG22: 938 | AJH22: 939 | AJI22: 940 | AJJ22: 941 | AJK22: 942 | AJL22: 943 | AJM22: 944 | AJN22: 945 | AJO22: 946 | AJP22: 947 | AJQ22: 948 | AJR22: 949 | AJS22: 950 | AJT22: 951 | AJU22: 952 | AJV22: 953 | AJW22: 954 | AJX22: 955 | AJY22: 956 | AJZ22: 957 | AKA22: 958 | AKB22: 959 | AKC22: 960 | AKD22: 961 | AKE22: =AKD22+1 -> 962 | AKF22: 963 | AKG22: 964 | AKH22: 965 | AKI22: 966 | AKJ22: 967 | AKK22: 968 | AKL22: 969 | AKM22: 970 | AKN22: 971 | AKO22: 972 | AKP22: 973 | AKQ22: 974 | AKR22: 975 | AKS22: 976 | AKT22: 977 | AKU22: 978 | AKV22: 979 | AKW22: 980 | AKX22: 981 | AKY22: 982 | AKZ22: 983 | ALA22: 984 | ALB22: 985 | ALC22: 986 | ALD22: 987 | ALE22: 988 | ALF22: 989 | ALG22: 990 | ALH22: 991 | ALI22: 992 | ALJ22: 993 | ALK22: 994 | ALL22: 995 | ALM22: 996 | ALN22: 997 | ALO22: 998 | ALP22: 999 | ALQ22: 1000
A24: do | C24: type de donnée (do = données observées, f = formule sans données observées ou calculées, dc = données calculées) | D24: 24 | E24: do | F24: do | G24: do | H24: do | I24: do | J24: do | K24: do | L24: do | M24: do | N24: do | O24: do | P24: do | Q24: do | R24: do | S24: do | T24: do | U24: do | V24: do | W24: do | X24: do | Y24: do | Z24: do | AA24: do | AB24: do | AC24: do | AD24: do | AE24: do | AF24: do | AG24: do | AH24: do | AI24: do | AJ24: do | AK24: do | AL24: do | AM24: do | AN24: do | AO24: do | AP24: do | AQ24: do | AR24: do | AS24: do | AT24: do | AU24: do | AV24: do | AW24: do | AX24: do | AY24: do | AZ24: do | BA24: do | BB24: do | BC24: do | BD24: do | BE24: do | BF24: do | BG24: do | BH24: do | BI24: do | BJ24: do | BK24: do | BL24: do | BM24: do | BN24: do | BO24: do | BP24: do | BQ24: do | BR24: do | BS24: do | BT24: do | BU24: do | BV24: do | BW24: do | BX24: do | BY24: do | BZ24: do | CA24: do | CB24: do | CC24: do | CD24: do | CE24: do | CF24: do | CG24: do | CH24: do | CI24: do | CJ24: do | CK24: do | CL24: do | CM24: do | CN24: do | CO24: do | CP24: do | CQ24: do | CR24: do | CS24: do | CT24: do | CU24: do | CV24: do | CW24: do | CX24: do | CY24: do | CZ24: do | DA24: do | DB24: do | DC24: do | DD24: do | DE24: do | DF24: do | DG24: do | DH24: do | DI24: do | DJ24: do | DK24: do | DL24: do | DM24: do | DN24: do | DO24: do | DP24: do | DQ24: do | DR24: do | DS24: do | DT24: do | DU24: do | DV24: do | DW24: do | DX24: do | DY24: do | DZ24: do | EA24: do | EB24: do | EC24: do | ED24: do | EE24: do | EF24: do | EG24: do | EH24: do | EI24: do | EJ24: do | EK24: do | EL24: do | EM24: do | EN24: do | EO24: do | EP24: do | EQ24: do | ER24: do | ES24: do | ET24: do | EU24: do | EV24: do | EW24: do | EX24: do | EY24: do | EZ24: do | FA24: do | FB24: do | FC24: do | FD24: do | FE24: do | FF24: do | FG24: do | FH24: do | FI24: do | FJ24: do | FK24: do | FL24: do | FM24: do | FN24: do | FO24: do | FP24: do | FQ24: do | FR24: do | FS24: do | FT24: do | FU24: do | FV24: do | FW24: do | FX24: do | FY24: do | FZ24: do | GA24: do | GB24: do | GC24: do | GD24: do | GE24: do | GF24: do | GG24: do | GH24: do | GI24: do | GJ24: do | GK24: do | GL24: do | GM24: do | GN24: do | GO24: do | GP24: do | GQ24: do | GR24: do | GS24: do | GT24: do | GU24: do | GV24: do | GW24: do | GX24: do | GY24: do | GZ24: do | HA24: do | HB24: do | HC24: do | HD24: do | HE24: do | HF24: do | HG24: do | HH24: do | HI24: do | HJ24: do | HK24: do | HL24: do | HM24: do | HN24: do | HO24: do | HP24: do | HQ24: do | HR24: do | HS24: do | HT24: do | HU24: do | HV24: do | HW24: do | HX24: do | HY24: do | HZ24: do | IA24: do | IB24: do | IC24: do | ID24: do | IE24: do | IF24: do | IG24: do | IH24: do | II24: do | IJ24: do | IK24: do | IL24: do | IM24: do | IN24: do | IO24: do | IP24: do | IQ24: do | IR24: do | IS24: do | IT24: do | IU24: do | IV24: do | IW24: do | IX24: do | IY24: do | IZ24: do | JA24: do | JB24: do | JC24: do | JD24: do | JE24: do | JF24: do | JG24: do | JH24: do | JI24: do | JJ24: do | JK24: do | JL24: do | JM24: do | JN24: do | JO24: do | JP24: do | JQ24: do | JR24: do | JS24: do | JT24: do | JU24: do | JV24: do | JW24: do | JX24: do | JY24: do | JZ24: do | KA24: do | KB24: do | KC24: do | KD24: do | KE24: do | KF24: do | KG24: do | KH24: do | KI24: do | KJ24: do | KK24: do | KL24: do | KM24: do | KN24: do | KO24: do | KP24: do | KQ24: do | KR24: do | KS24: do | KT24: do | KU24: do | KV24: do | KW24: do | KX24: do | KY24: do | KZ24: do | LA24: do | LB24: do | LC24: do | LD24: do | LE24: do | LF24: do | LG24: do | LH24: do | LI24: do | LJ24: do | LK24: do | LL24: do | LM24: do | LN24: do | LO24: do | LP24: do | LQ24: do | LR24: do | LS24: do | LT24: do | LU24: do | LV24: do | LW24: do | LX24: do | LY24: do | LZ24: do | MA24: do | MB24: do | MC24: do | MD24: do | ME24: do | MF24: do | MG24: do | MH24: do | MI24: do | MJ24: do | MK24: do | ML24: do | MM24: do | MN24: do | MO24: do | MP24: do | MQ24: do | MR24: do | MS24: do | MT24: do | MU24: do | MV24: do | MW24: do | MX24: do | MY24: do | MZ24: do | NA24: do | NB24: do | NC24: do | ND24: do | NE24: do | NF24: do | NG24: do | NH24: do | NI24: do | NJ24: do | NK24: do | NL24: do | NM24: do | NN24: do | NO24: do | NP24: do | NQ24: do | NR24: do | NS24: do | NT24: do | NU24: do | NV24: do | NW24: do | NX24: do | NY24: do | NZ24: do | OA24: do | OB24: do | OC24: do | OD24: do | OE24: do | OF24: do | OG24: do | OH24: do | OI24: do | OJ24: do | OK24: do | OL24: do | OM24: do | ON24: do | OO24: do | OP24: do | OQ24: do | OR24: do | OS24: do | OT24: do | OU24: do | OV24: do | OW24: do | OX24: do | OY24: do | OZ24: do | PA24: do | PB24: do | PC24: do | PD24: do | PE24: do | PF24: do | PG24: do | PH24: do | PI24: do | PJ24: do | PK24: do | PL24: do | PM24: do | PN24: do | PO24: do | PP24: do | PQ24: do | PR24: do | PS24: do | PT24: do | PU24: do | PV24: do | PW24: do | PX24: do | PY24: do | PZ24: do | QA24: do | QB24: do | QC24: do | QD24: do | QE24: do | QF24: do | QG24: do | QH24: do | QI24: do | QJ24: do | QK24: do | QL24: do | QM24: do | QN24: do | QO24: do | QP24: do | QQ24: do | QR24: do | QS24: do | QT24: do | QU24: do | QV24: do | QW24: do | QX24: do | QY24: do | QZ24: do | RA24: do | RB24: do | RC24: do | RD24: do | RE24: do | RF24: do | RG24: do | RH24: do | RI24: do | RJ24: do | RK24: do | RL24: do | RM24: do | RN24: do | RO24: do | RP24: do | RQ24: do | RR24: do | RS24: do | RT24: do | RU24: do | RV24: do | RW24: do | RX24: do | RY24: do | RZ24: do | SA24: do | SB24: do | SC24: do | SD24: do | SE24: do | SF24: do | SG24: do | SH24: do | SI24: do | SJ24: do | SK24: do | SL24: do | SM24: do | SN24: do | SO24: do | SP24: do | SQ24: do | SR24: do | SS24: do | ST24: do | SU24: do | SV24: do | SW24: do | SX24: do | SY24: do | SZ24: do | TA24: do | TB24: do | TC24: do | TD24: do | TE24: do | TF24: do | TG24: do | TH24: do | TI24: do | TJ24: do | TK24: do | TL24: do | TM24: do | TN24: do | TO24: do | TP24: do | TQ24: do | TR24: do | TS24: do | TT24: do | TU24: do | TV24: do | TW24: do | TX24: do | TY24: do | TZ24: do | UA24: do | UB24: do | UC24: do | UD24: do | UE24: do | UF24: do | UG24: do | UH24: do | UI24: do | UJ24: do | UK24: do | UL24: do | UM24: do | UN24: do | UO24: do | UP24: do | UQ24: do | UR24: do | US24: do | UT24: do | UU24: do | UV24: do | UW24: do | UX24: do | UY24: do | UZ24: do | VA24: do | VB24: do | VC24: do | VD24: do | VE24: do | VF24: do | VG24: do | VH24: do | VI24: do | VJ24: do | VK24: do | VL24: do | VM24: do | VN24: do | VO24: do | VP24: do | VQ24: do | VR24: do | VS24: do | VT24: do | VU24: do | VV24: do | VW24: do | VX24: do | VY24: do | VZ24: do | WA24: do | WB24: do | WC24: do | WD24: do | WE24: do | WF24: do | WG24: do | WH24: do | WI24: do | WJ24: do | WK24: do | WL24: do | WM24: do | WN24: do | WO24: do | WP24: do | WQ24: do | WR24: do | WS24: do | WT24: do | WU24: do | WV24: do | WW24: do | WX24: do | WY24: do | WZ24: do | XA24: do | XB24: do | XC24: do | XD24: do | XE24: do | XF24: do | XG24: do | XH24: do | XI24: do | XJ24: do | XK24: do | XL24: do | XM24: do | XN24: do | XO24: do | XP24: do | XQ24: do | XR24: do | XS24: do | XT24: do | XU24: do | XV24: do | XW24: do | XX24: do | XY24: do | XZ24: do | YA24: do | YB24: do | YC24: do | YD24: do | YE24: do | YF24: do | YG24: do | YH24: do | YI24: do | YJ24: do | YK24: do | YL24: do | YM24: do | YN24: do | YO24: do | YP24: do | YQ24: do | YR24: do | YS24: do | YT24: do | YU24: do | YV24: do | YW24: do | YX24: do | YY24: do | YZ24: do | ZA24: do | ZB24: do | ZC24: do | ZD24: do | ZE24: do | ZF24: do | ZG24: do | ZH24: do | ZI24: do | ZJ24: do | ZK24: do | ZL24: do | ZM24: do | ZN24: do | ZO24: do | ZP24: do | ZQ24: do | ZR24: do | ZS24: do | ZT24: do | ZU24: do | ZV24: do | ZW24: do | ZX24: do | ZY24: do | ZZ24: do | AAA24: do | AAB24: do | AAC24: do | AAD24: do | AAE24: do | AAF24: do | AAG24: do | AAH24: do | AAI24: do | AAJ24: do | AAK24: do | AAL24: do | AAM24: do | AAN24: do | AAO24: do | AAP24: do | AAQ24: do | AAR24: do | AAS24: do | AAT24: do | AAU24: do | AAV24: do | AAW24: do | AAX24: do | AAY24: do | AAZ24: do | ABA24: do | ABB24: do | ABC24: do | ABD24: do | ABE24: do | ABF24: do | ABG24: do | ABH24: do | ABI24: do | ABJ24: do | ABK24: do | ABL24: do | ABM24: do | ABN24: do | ABO24: do | ABP24: do | ABQ24: do | ABR24: do | ABS24: do | ABT24: do | ABU24: do | ABV24: do | ABW24: do | ABX24: do | ABY24: do | ABZ24: do | ACA24: do | ACB24: do | ACC24: do | ACD24: do | ACE24: do | ACF24: do | ACG24: do | ACH24: do | ACI24: do | ACJ24: do | ACK24: do | ACL24: do | ACM24: do | ACN24: do | ACO24: do | ACP24: do | ACQ24: do | ACR24: do | ACS24: do | ACT24: do | ACU24: do | ACV24: do | ACW24: do | ACX24: do | ACY24: do | ACZ24: do | ADA24: do | ADB24: do | ADC24: do | ADD24: do | ADE24: do | ADF24: do | ADG24: do | ADH24: do | ADI24: do | ADJ24: do | ADK24: do | ADL24: do | ADM24: do | ADN24: do | ADO24: do | ADP24: do | ADQ24: do | ADR24: do | ADS24: do | ADT24: do | ADU24: do | ADV24: do | ADW24: do | ADX24: do | ADY24: do | ADZ24: do | AEA24: do | AEB24: do | AEC24: do | AED24: do | AEE24: do | AEF24: do | AEG24: do | AEH24: do | AEI24: do | AEJ24: do | AEK24: do | AEL24: do | AEM24: do | AEN24: do | AEO24: do | AEP24: do | AEQ24: do | AER24: do | AES24: do | AET24: do | AEU24: do | AEV24: do | AEW24: do | AEX24: do | AEY24: do | AEZ24: do | AFA24: do | AFB24: do | AFC24: do | AFD24: do | AFE24: do | AFF24: do | AFG24: do | AFH24: do | AFI24: do | AFJ24: do | AFK24: do | AFL24: do | AFM24: do | AFN24: do | AFO24: do | AFP24: do | AFQ24: do | AFR24: do | AFS24: do | AFT24: do | AFU24: do | AFV24: do | AFW24: do | AFX24: do | AFY24: do | AFZ24: do | AGA24: do | AGB24: do | AGC24: do | AGD24: do | AGE24: do | AGF24: do | AGG24: do | AGH24: do | AGI24: do | AGJ24: do | AGK24: do | AGL24: do | AGM24: do | AGN24: do | AGO24: do | AGP24: do | AGQ24: do | AGR24: do | AGS24: do | AGT24: do | AGU24: do | AGV24: do | AGW24: do | AGX24: do | AGY24: do | AGZ24: do | AHA24: do | AHB24: do | AHC24: do | AHD24: do | AHE24: do | AHF24: do | AHG24: do | AHH24: do | AHI24: do | AHJ24: do | AHK24: do | AHL24: do | AHM24: do | AHN24: do | AHO24: do | AHP24: do | AHQ24: do | AHR24: do | AHS24: do | AHT24: do | AHU24: do | AHV24: do | AHW24: do | AHX24: do | AHY24: do | AHZ24: do | AIA24: do | AIB24: do | AIC24: do | AID24: do | AIE24: do | AIF24: do | AIG24: do | AIH24: do | AII24: do | AIJ24: do | AIK24: do | AIL24: do | AIM24: do | AIN24: do | AIO24: do | AIP24: do | AIQ24: do | AIR24: do | AIS24: do | AIT24: do | AIU24: do | AIV24: do | AIW24: do | AIX24: do | AIY24: do | AIZ24: do | AJA24: do | AJB24: do | AJC24: do | AJD24: do | AJE24: do | AJF24: do | AJG24: do | AJH24: do | AJI24: do | AJJ24: do | AJK24: do | AJL24: do | AJM24: do | AJN24: do | AJO24: do | AJP24: do | AJQ24: do | AJR24: do | AJS24: do | AJT24: do | AJU24: do | AJV24: do | AJW24: do | AJX24: do | AJY24: do | AJZ24: do | AKA24: do | AKB24: do | AKC24: do | AKD24: do | AKE24: do | AKF24: do | AKG24: do | AKH24: do | AKI24: do | AKJ24: do | AKK24: do | AKL24: do | AKM24: do | AKN24: do | AKO24: do | AKP24: do | AKQ24: do | AKR24: do | AKS24: do | AKT24: do | AKU24: do | AKV24: do | AKW24: do | AKX24: do | AKY24: do | AKZ24: do | ALA24: do | ALB24: do | ALC24: do | ALD24: do | ALE24: do | ALF24: do | ALG24: do | ALH24: do | ALI24: do | ALJ24: do | ALK24: do | ALL24: do | ALM24: do | ALN24: do | ALO24: do | ALP24: do | ALQ24: do
A25: do | C25: nom feuille | D25: 25 | E25: =MID(CELL("filename",A1),FIND("]",CELL("filename",A1))+1,LEN(CELL("filename",A1))-FIND("]",CELL("filename",A1))) -> Tot1 | F25: =MID(CELL("filename",B1),FIND("]",CELL("filename",B1))+1,LEN(CELL("filename",B1))-FIND("]",CELL("filename",B1))) -> Tot1 | G25: =MID(CELL("filename",C1),FIND("]",CELL("filename",C1))+1,LEN(CELL("filename",C1))-FIND("]",CELL("filename",C1))) -> Tot1 | H25: Tot1 | I25: Tot1 | J25: Tot1 | K25: Tot1 | L25: Tot1 | M25: Tot1 | N25: Tot1 | O25: Tot1 | P25: Tot1 | Q25: Tot1 | R25: Tot1 | S25: Tot1 | T25: Tot1 | U25: Tot1 | V25: Tot1 | W25: Tot1 | X25: Tot1 | Y25: Tot1 | Z25: Tot1 | AA25: Tot1 | AB25: Tot1 | AC25: Tot1 | AD25: Tot1 | AE25: Tot1 | AF25: Tot1 | AG25: Tot1 | AH25: Tot1 | AI25: Tot1 | AJ25: Tot1 | AK25: Tot1 | AL25: Tot1 | AM25: Tot1 | AN25: Tot1 | AO25: Tot1 | AP25: Tot1 | AQ25: Tot1 | AR25: Tot1 | AS25: Tot1 | AT25: Tot1 | AU25: Tot1 | AV25: Tot1 | AW25: Tot1 | AX25: Tot1 | AY25: Tot1 | AZ25: Tot1 | BA25: Tot1 | BB25: Tot1 | BC25: Tot1 | BD25: Tot1 | BE25: Tot1 | BF25: Tot1 | BG25: Tot1 | BH25: Tot1 | BI25: Tot1 | BJ25: Tot1 | BK25: Tot1 | BL25: Tot1 | BM25: Tot1 | BN25: Tot1 | BO25: Tot1 | BP25: Tot1 | BQ25: Tot1 | BR25: Tot1 | BS25: =MID(CELL("filename",BO1),FIND("]",CELL("filename",BO1))+1,LEN(CELL("filename",BO1))-FIND("]",CELL("filename",BO1))) -> Tot1 | BT25: Tot1 | BU25: Tot1 | BV25: Tot1 | BW25: Tot1 | BX25: Tot1 | BY25: Tot1 | BZ25: Tot1 | CA25: Tot1 | CB25: Tot1 | CC25: Tot1 | CD25: Tot1 | CE25: Tot1 | CF25: Tot1 | CG25: Tot1 | CH25: Tot1 | CI25: Tot1 | CJ25: Tot1 | CK25: Tot1 | CL25: Tot1 | CM25: Tot1 | CN25: Tot1 | CO25: Tot1 | CP25: Tot1 | CQ25: Tot1 | CR25: Tot1 | CS25: Tot1 | CT25: Tot1 | CU25: Tot1 | CV25: Tot1 | CW25: Tot1 | CX25: Tot1 | CY25: Tot1 | CZ25: Tot1 | DA25: Tot1 | DB25: Tot1 | DC25: Tot1 | DD25: Tot1 | DE25: Tot1 | DF25: Tot1 | DG25: Tot1 | DH25: Tot1 | DI25: Tot1 | DJ25: Tot1 | DK25: Tot1 | DL25: Tot1 | DM25: Tot1 | DN25: Tot1 | DO25: Tot1 | DP25: Tot1 | DQ25: Tot1 | DR25: Tot1 | DS25: Tot1 | DT25: Tot1 | DU25: Tot1 | DV25: Tot1 | DW25: Tot1 | DX25: Tot1 | DY25: Tot1 | DZ25: Tot1 | EA25: Tot1 | EB25: Tot1 | EC25: Tot1 | ED25: Tot1 | EE25: =MID(CELL("filename",EA1),FIND("]",CELL("filename",EA1))+1,LEN(CELL("filename",EA1))-FIND("]",CELL("filename",EA1))) -> Tot1 | EF25: Tot1 | EG25: Tot1 | EH25: Tot1 | EI25: Tot1 | EJ25: Tot1 | EK25: Tot1 | EL25: Tot1 | EM25: Tot1 | EN25: Tot1 | EO25: Tot1 | EP25: Tot1 | EQ25: Tot1 | ER25: Tot1 | ES25: Tot1 | ET25: Tot1 | EU25: Tot1 | EV25: Tot1 | EW25: Tot1 | EX25: Tot1 | EY25: Tot1 | EZ25: Tot1 | FA25: Tot1 | FB25: Tot1 | FC25: Tot1 | FD25: Tot1 | FE25: Tot1 | FF25: Tot1 | FG25: Tot1 | FH25: Tot1 | FI25: Tot1 | FJ25: Tot1 | FK25: Tot1 | FL25: Tot1 | FM25: Tot1 | FN25: Tot1 | FO25: Tot1 | FP25: Tot1 | FQ25: Tot1 | FR25: Tot1 | FS25: Tot1 | FT25: Tot1 | FU25: Tot1 | FV25: Tot1 | FW25: Tot1 | FX25: Tot1 | FY25: Tot1 | FZ25: Tot1 | GA25: Tot1 | GB25: Tot1 | GC25: Tot1 | GD25: Tot1 | GE25: Tot1 | GF25: Tot1 | GG25: Tot1 | GH25: Tot1 | GI25: Tot1 | GJ25: Tot1 | GK25: Tot1 | GL25: Tot1 | GM25: Tot1 | GN25: Tot1 | GO25: Tot1 | GP25: Tot1 | GQ25: =MID(CELL("filename",GM1),FIND("]",CELL("filename",GM1))+1,LEN(CELL("filename",GM1))-FIND("]",CELL("filename",GM1))) -> Tot1 | GR25: Tot1 | GS25: Tot1 | GT25: Tot1 | GU25: Tot1 | GV25: Tot1 | GW25: Tot1 | GX25: Tot1 | GY25: Tot1 | GZ25: Tot1 | HA25: Tot1 | HB25: Tot1 | HC25: Tot1 | HD25: Tot1 | HE25: Tot1 | HF25: Tot1 | HG25: Tot1 | HH25: Tot1 | HI25: Tot1 | HJ25: Tot1 | HK25: Tot1 | HL25: Tot1 | HM25: Tot1 | HN25: Tot1 | HO25: Tot1 | HP25: Tot1 | HQ25: Tot1 | HR25: Tot1 | HS25: Tot1 | HT25: Tot1 | HU25: Tot1 | HV25: Tot1 | HW25: Tot1 | HX25: Tot1 | HY25: Tot1 | HZ25: Tot1 | IA25: Tot1 | IB25: Tot1 | IC25: Tot1 | ID25: Tot1 | IE25: Tot1 | IF25: Tot1 | IG25: Tot1 | IH25: Tot1 | II25: Tot1 | IJ25: Tot1 | IK25: Tot1 | IL25: Tot1 | IM25: Tot1 | IN25: Tot1 | IO25: Tot1 | IP25: Tot1 | IQ25: Tot1 | IR25: Tot1 | IS25: Tot1 | IT25: Tot1 | IU25: Tot1 | IV25: Tot1 | IW25: Tot1 | IX25: Tot1 | IY25: Tot1 | IZ25: Tot1 | JA25: Tot1 | JB25: Tot1 | JC25: =MID(CELL("filename",IY1),FIND("]",CELL("filename",IY1))+1,LEN(CELL("filename",IY1))-FIND("]",CELL("filename",IY1))) -> Tot1 | JD25: Tot1 | JE25: Tot1 | JF25: Tot1 | JG25: Tot1 | JH25: Tot1 | JI25: Tot1 | JJ25: Tot1 | JK25: Tot1 | JL25: Tot1 | JM25: Tot1 | JN25: Tot1 | JO25: Tot1 | JP25: Tot1 | JQ25: Tot1 | JR25: Tot1 | JS25: Tot1 | JT25: Tot1 | JU25: Tot1 | JV25: Tot1 | JW25: Tot1 | JX25: Tot1 | JY25: Tot1 | JZ25: Tot1 | KA25: Tot1 | KB25: Tot1 | KC25: Tot1 | KD25: Tot1 | KE25: Tot1 | KF25: Tot1 | KG25: Tot1 | KH25: Tot1 | KI25: Tot1 | KJ25: Tot1 | KK25: Tot1 | KL25: Tot1 | KM25: Tot1 | KN25: Tot1 | KO25: Tot1 | KP25: Tot1 | KQ25: Tot1 | KR25: Tot1 | KS25: Tot1 | KT25: Tot1 | KU25: Tot1 | KV25: Tot1 | KW25: Tot1 | KX25: Tot1 | KY25: Tot1 | KZ25: Tot1 | LA25: Tot1 | LB25: Tot1 | LC25: Tot1 | LD25: Tot1 | LE25: Tot1 | LF25: Tot1 | LG25: Tot1 | LH25: Tot1 | LI25: Tot1 | LJ25: Tot1 | LK25: Tot1 | LL25: Tot1 | LM25: Tot1 | LN25: Tot1 | LO25: =MID(CELL("filename",LK1),FIND("]",CELL("filename",LK1))+1,LEN(CELL("filename",LK1))-FIND("]",CELL("filename",LK1))) -> Tot1 | LP25: Tot1 | LQ25: Tot1 | LR25: Tot1 | LS25: Tot1 | LT25: Tot1 | LU25: Tot1 | LV25: Tot1 | LW25: Tot1 | LX25: Tot1 | LY25: Tot1 | LZ25: Tot1 | MA25: Tot1 | MB25: Tot1 | MC25: Tot1 | MD25: Tot1 | ME25: Tot1 | MF25: Tot1 | MG25: Tot1 | MH25: Tot1 | MI25: Tot1 | MJ25: Tot1 | MK25: Tot1 | ML25: Tot1 | MM25: Tot1 | MN25: Tot1 | MO25: Tot1 | MP25: Tot1 | MQ25: Tot1 | MR25: Tot1 | MS25: Tot1 | MT25: Tot1 | MU25: Tot1 | MV25: Tot1 | MW25: Tot1 | MX25: Tot1 | MY25: Tot1 | MZ25: Tot1 | NA25: Tot1 | NB25: Tot1 | NC25: Tot1 | ND25: Tot1 | NE25: Tot1 | NF25: Tot1 | NG25: Tot1 | NH25: Tot1 | NI25: Tot1 | NJ25: Tot1 | NK25: Tot1 | NL25: Tot1 | NM25: Tot1 | NN25: Tot1 | NO25: Tot1 | NP25: Tot1 | NQ25: Tot1 | NR25: Tot1 | NS25: Tot1 | NT25: Tot1 | NU25: Tot1 | NV25: Tot1 | NW25: Tot1 | NX25: Tot1 | NY25: Tot1 | NZ25: Tot1 | OA25: =MID(CELL("filename",NW1),FIND("]",CELL("filename",NW1))+1,LEN(CELL("filename",NW1))-FIND("]",CELL("filename",NW1))) -> Tot1 | OB25: Tot1 | OC25: Tot1 | OD25: Tot1 | OE25: Tot1 | OF25: Tot1 | OG25: Tot1 | OH25: Tot1 | OI25: Tot1 | OJ25: Tot1 | OK25: Tot1 | OL25: Tot1 | OM25: Tot1 | ON25: Tot1 | OO25: Tot1 | OP25: Tot1 | OQ25: Tot1 | OR25: Tot1 | OS25: Tot1 | OT25: Tot1 | OU25: Tot1 | OV25: Tot1 | OW25: Tot1 | OX25: Tot1 | OY25: Tot1 | OZ25: Tot1 | PA25: Tot1 | PB25: Tot1 | PC25: Tot1 | PD25: Tot1 | PE25: Tot1 | PF25: Tot1 | PG25: Tot1 | PH25: Tot1 | PI25: Tot1 | PJ25: Tot1 | PK25: Tot1 | PL25: Tot1 | PM25: Tot1 | PN25: Tot1 | PO25: Tot1 | PP25: Tot1 | PQ25: Tot1 | PR25: Tot1 | PS25: Tot1 | PT25: Tot1 | PU25: Tot1 | PV25: Tot1 | PW25: Tot1 | PX25: Tot1 | PY25: Tot1 | PZ25: Tot1 | QA25: Tot1 | QB25: Tot1 | QC25: Tot1 | QD25: Tot1 | QE25: Tot1 | QF25: Tot1 | QG25: Tot1 | QH25: Tot1 | QI25: Tot1 | QJ25: Tot1 | QK25: Tot1 | QL25: Tot1 | QM25: =MID(CELL("filename",QI1),FIND("]",CELL("filename",QI1))+1,LEN(CELL("filename",QI1))-FIND("]",CELL("filename",QI1))) -> Tot1 | QN25: Tot1 | QO25: Tot1 | QP25: Tot1 | QQ25: Tot1 | QR25: Tot1 | QS25: Tot1 | QT25: Tot1 | QU25: Tot1 | QV25: Tot1 | QW25: Tot1 | QX25: Tot1 | QY25: Tot1 | QZ25: Tot1 | RA25: Tot1 | RB25: Tot1 | RC25: Tot1 | RD25: Tot1 | RE25: Tot1 | RF25: Tot1 | RG25: Tot1 | RH25: Tot1 | RI25: Tot1 | RJ25: Tot1 | RK25: Tot1 | RL25: Tot1 | RM25: Tot1 | RN25: Tot1 | RO25: Tot1 | RP25: Tot1 | RQ25: Tot1 | RR25: Tot1 | RS25: Tot1 | RT25: Tot1 | RU25: Tot1 | RV25: Tot1 | RW25: Tot1 | RX25: Tot1 | RY25: Tot1 | RZ25: Tot1 | SA25: Tot1 | SB25: Tot1 | SC25: Tot1 | SD25: Tot1 | SE25: Tot1 | SF25: Tot1 | SG25: Tot1 | SH25: Tot1 | SI25: Tot1 | SJ25: Tot1 | SK25: Tot1 | SL25: Tot1 | SM25: Tot1 | SN25: Tot1 | SO25: Tot1 | SP25: Tot1 | SQ25: Tot1 | SR25: Tot1 | SS25: Tot1 | ST25: Tot1 | SU25: Tot1 | SV25: Tot1 | SW25: Tot1 | SX25: Tot1 | SY25: =MID(CELL("filename",SU1),FIND("]",CELL("filename",SU1))+1,LEN(CELL("filename",SU1))-FIND("]",CELL("filename",SU1))) -> Tot1 | SZ25: Tot1 | TA25: Tot1 | TB25: Tot1 | TC25: Tot1 | TD25: Tot1 | TE25: Tot1 | TF25: Tot1 | TG25: Tot1 | TH25: Tot1 | TI25: Tot1 | TJ25: Tot1 | TK25: Tot1 | TL25: Tot1 | TM25: Tot1 | TN25: Tot1 | TO25: Tot1 | TP25: Tot1 | TQ25: Tot1 | TR25: Tot1 | TS25: Tot1 | TT25: Tot1 | TU25: Tot1 | TV25: Tot1 | TW25: Tot1 | TX25: Tot1 | TY25: Tot1 | TZ25: Tot1 | UA25: Tot1 | UB25: Tot1 | UC25: Tot1 | UD25: Tot1 | UE25: Tot1 | UF25: Tot1 | UG25: Tot1 | UH25: Tot1 | UI25: Tot1 | UJ25: Tot1 | UK25: Tot1 | UL25: Tot1 | UM25: Tot1 | UN25: Tot1 | UO25: Tot1 | UP25: Tot1 | UQ25: Tot1 | UR25: Tot1 | US25: Tot1 | UT25: Tot1 | UU25: Tot1 | UV25: Tot1 | UW25: Tot1 | UX25: Tot1 | UY25: Tot1 | UZ25: Tot1 | VA25: Tot1 | VB25: Tot1 | VC25: Tot1 | VD25: Tot1 | VE25: Tot1 | VF25: Tot1 | VG25: Tot1 | VH25: Tot1 | VI25: Tot1 | VJ25: Tot1 | VK25: =MID(CELL("filename",VG1),FIND("]",CELL("filename",VG1))+1,LEN(CELL("filename",VG1))-FIND("]",CELL("filename",VG1))) -> Tot1 | VL25: Tot1 | VM25: Tot1 | VN25: Tot1 | VO25: Tot1 | VP25: Tot1 | VQ25: Tot1 | VR25: Tot1 | VS25: Tot1 | VT25: Tot1 | VU25: Tot1 | VV25: Tot1 | VW25: Tot1 | VX25: Tot1 | VY25: Tot1 | VZ25: Tot1 | WA25: Tot1 | WB25: Tot1 | WC25: Tot1 | WD25: Tot1 | WE25: Tot1 | WF25: Tot1 | WG25: Tot1 | WH25: Tot1 | WI25: Tot1 | WJ25: Tot1 | WK25: Tot1 | WL25: Tot1 | WM25: Tot1 | WN25: Tot1 | WO25: Tot1 | WP25: Tot1 | WQ25: Tot1 | WR25: Tot1 | WS25: Tot1 | WT25: Tot1 | WU25: Tot1 | WV25: Tot1 | WW25: Tot1 | WX25: Tot1 | WY25: Tot1 | WZ25: Tot1 | XA25: Tot1 | XB25: Tot1 | XC25: Tot1 | XD25: Tot1 | XE25: Tot1 | XF25: Tot1 | XG25: Tot1 | XH25: Tot1 | XI25: Tot1 | XJ25: Tot1 | XK25: Tot1 | XL25: Tot1 | XM25: Tot1 | XN25: Tot1 | XO25: Tot1 | XP25: Tot1 | XQ25: Tot1 | XR25: Tot1 | XS25: Tot1 | XT25: Tot1 | XU25: Tot1 | XV25: Tot1 | XW25: =MID(CELL("filename",XS1),FIND("]",CELL("filename",XS1))+1,LEN(CELL("filename",XS1))-FIND("]",CELL("filename",XS1))) -> Tot1 | XX25: Tot1 | XY25: Tot1 | XZ25: Tot1 | YA25: Tot1 | YB25: Tot1 | YC25: Tot1 | YD25: Tot1 | YE25: Tot1 | YF25: Tot1 | YG25: Tot1 | YH25: Tot1 | YI25: Tot1 | YJ25: Tot1 | YK25: Tot1 | YL25: Tot1 | YM25: Tot1 | YN25: Tot1 | YO25: Tot1 | YP25: Tot1 | YQ25: Tot1 | YR25: Tot1 | YS25: Tot1 | YT25: Tot1 | YU25: Tot1 | YV25: Tot1 | YW25: Tot1 | YX25: Tot1 | YY25: Tot1 | YZ25: Tot1 | ZA25: Tot1 | ZB25: Tot1 | ZC25: Tot1 | ZD25: Tot1 | ZE25: Tot1 | ZF25: Tot1 | ZG25: Tot1 | ZH25: Tot1 | ZI25: Tot1 | ZJ25: Tot1 | ZK25: Tot1 | ZL25: Tot1 | ZM25: Tot1 | ZN25: Tot1 | ZO25: Tot1 | ZP25: Tot1 | ZQ25: Tot1 | ZR25: Tot1 | ZS25: Tot1 | ZT25: Tot1 | ZU25: Tot1 | ZV25: Tot1 | ZW25: Tot1 | ZX25: Tot1 | ZY25: Tot1 | ZZ25: Tot1 | AAA25: Tot1 | AAB25: Tot1 | AAC25: Tot1 | AAD25: Tot1 | AAE25: Tot1 | AAF25: Tot1 | AAG25: Tot1 | AAH25: Tot1 | AAI25: =MID(CELL("filename",AAE1),FIND("]",CELL("filename",AAE1))+1,LEN(CELL("filename",AAE1))-FIND("]",CELL("filename",AAE1))) -> Tot1 | AAJ25: Tot1 | AAK25: Tot1 | AAL25: Tot1 | AAM25: Tot1 | AAN25: Tot1 | AAO25: Tot1 | AAP25: Tot1 | AAQ25: Tot1 | AAR25: Tot1 | AAS25: Tot1 | AAT25: Tot1 | AAU25: Tot1 | AAV25: Tot1 | AAW25: Tot1 | AAX25: Tot1 | AAY25: Tot1 | AAZ25: Tot1 | ABA25: Tot1 | ABB25: Tot1 | ABC25: Tot1 | ABD25: Tot1 | ABE25: Tot1 | ABF25: Tot1 | ABG25: Tot1 | ABH25: Tot1 | ABI25: Tot1 | ABJ25: Tot1 | ABK25: Tot1 | ABL25: Tot1 | ABM25: Tot1 | ABN25: Tot1 | ABO25: Tot1 | ABP25: Tot1 | ABQ25: Tot1 | ABR25: Tot1 | ABS25: Tot1 | ABT25: Tot1 | ABU25: Tot1 | ABV25: Tot1 | ABW25: Tot1 | ABX25: Tot1 | ABY25: Tot1 | ABZ25: Tot1 | ACA25: Tot1 | ACB25: Tot1 | ACC25: Tot1 | ACD25: Tot1 | ACE25: Tot1 | ACF25: Tot1 | ACG25: Tot1 | ACH25: Tot1 | ACI25: Tot1 | ACJ25: Tot1 | ACK25: Tot1 | ACL25: Tot1 | ACM25: Tot1 | ACN25: Tot1 | ACO25: Tot1 | ACP25: Tot1 | ACQ25: Tot1 | ACR25: Tot1 | ACS25: Tot1 | ACT25: Tot1 | ACU25: =MID(CELL("filename",ACQ1),FIND("]",CELL("filename",ACQ1))+1,LEN(CELL("filename",ACQ1))-FIND("]",CELL("filename",ACQ1))) -> Tot1 | ACV25: Tot1 | ACW25: Tot1 | ACX25: Tot1 | ACY25: Tot1 | ACZ25: Tot1 | ADA25: Tot1 | ADB25: Tot1 | ADC25: Tot1 | ADD25: Tot1 | ADE25: Tot1 | ADF25: Tot1 | ADG25: Tot1 | ADH25: Tot1 | ADI25: Tot1 | ADJ25: Tot1 | ADK25: Tot1 | ADL25: Tot1 | ADM25: Tot1 | ADN25: Tot1 | ADO25: Tot1 | ADP25: Tot1 | ADQ25: Tot1 | ADR25: Tot1 | ADS25: Tot1 | ADT25: Tot1 | ADU25: Tot1 | ADV25: Tot1 | ADW25: Tot1 | ADX25: Tot1 | ADY25: Tot1 | ADZ25: Tot1 | AEA25: Tot1 | AEB25: Tot1 | AEC25: Tot1 | AED25: Tot1 | AEE25: Tot1 | AEF25: Tot1 | AEG25: Tot1 | AEH25: Tot1 | AEI25: Tot1 | AEJ25: Tot1 | AEK25: Tot1 | AEL25: Tot1 | AEM25: Tot1 | AEN25: Tot1 | AEO25: Tot1 | AEP25: Tot1 | AEQ25: Tot1 | AER25: Tot1 | AES25: Tot1 | AET25: Tot1 | AEU25: Tot1 | AEV25: Tot1 | AEW25: Tot1 | AEX25: Tot1 | AEY25: Tot1 | AEZ25: Tot1 | AFA25: Tot1 | AFB25: Tot1 | AFC25: Tot1 | AFD25: Tot1 | AFE25: Tot1 | AFF25: Tot1 | AFG25: =MID(CELL("filename",AFC1),FIND("]",CELL("filename",AFC1))+1,LEN(CELL("filename",AFC1))-FIND("]",CELL("filename",AFC1))) -> Tot1 | AFH25: Tot1 | AFI25: Tot1 | AFJ25: Tot1 | AFK25: Tot1 | AFL25: Tot1 | AFM25: Tot1 | AFN25: Tot1 | AFO25: Tot1 | AFP25: Tot1 | AFQ25: Tot1 | AFR25: Tot1 | AFS25: Tot1 | AFT25: Tot1 | AFU25: Tot1 | AFV25: Tot1 | AFW25: Tot1 | AFX25: Tot1 | AFY25: Tot1 | AFZ25: Tot1 | AGA25: Tot1 | AGB25: Tot1 | AGC25: Tot1 | AGD25: Tot1 | AGE25: Tot1 | AGF25: Tot1 | AGG25: Tot1 | AGH25: Tot1 | AGI25: Tot1 | AGJ25: Tot1 | AGK25: Tot1 | AGL25: Tot1 | AGM25: Tot1 | AGN25: Tot1 | AGO25: Tot1 | AGP25: Tot1 | AGQ25: Tot1 | AGR25: Tot1 | AGS25: Tot1 | AGT25: Tot1 | AGU25: Tot1 | AGV25: Tot1 | AGW25: Tot1 | AGX25: Tot1 | AGY25: Tot1 | AGZ25: Tot1 | AHA25: Tot1 | AHB25: Tot1 | AHC25: Tot1 | AHD25: Tot1 | AHE25: Tot1 | AHF25: Tot1 | AHG25: Tot1 | AHH25: Tot1 | AHI25: Tot1 | AHJ25: Tot1 | AHK25: Tot1 | AHL25: Tot1 | AHM25: Tot1 | AHN25: Tot1 | AHO25: Tot1 | AHP25: Tot1 | AHQ25: Tot1 | AHR25: Tot1 | AHS25: =MID(CELL("filename",AHO1),FIND("]",CELL("filename",AHO1))+1,LEN(CELL("filename",AHO1))-FIND("]",CELL("filename",AHO1))) -> Tot1 | AHT25: Tot1 | AHU25: Tot1 | AHV25: Tot1 | AHW25: Tot1 | AHX25: Tot1 | AHY25: Tot1 | AHZ25: Tot1 | AIA25: Tot1 | AIB25: Tot1 | AIC25: Tot1 | AID25: Tot1 | AIE25: Tot1 | AIF25: Tot1 | AIG25: Tot1 | AIH25: Tot1 | AII25: Tot1 | AIJ25: Tot1 | AIK25: Tot1 | AIL25: Tot1 | AIM25: Tot1 | AIN25: Tot1 | AIO25: Tot1 | AIP25: Tot1 | AIQ25: Tot1 | AIR25: Tot1 | AIS25: Tot1 | AIT25: Tot1 | AIU25: Tot1 | AIV25: Tot1 | AIW25: Tot1 | AIX25: Tot1 | AIY25: Tot1 | AIZ25: Tot1 | AJA25: Tot1 | AJB25: Tot1 | AJC25: Tot1 | AJD25: Tot1 | AJE25: Tot1 | AJF25: Tot1 | AJG25: Tot1 | AJH25: Tot1 | AJI25: Tot1 | AJJ25: Tot1 | AJK25: Tot1 | AJL25: Tot1 | AJM25: Tot1 | AJN25: Tot1 | AJO25: Tot1 | AJP25: Tot1 | AJQ25: Tot1 | AJR25: Tot1 | AJS25: Tot1 | AJT25: Tot1 | AJU25: Tot1 | AJV25: Tot1 | AJW25: Tot1 | AJX25: Tot1 | AJY25: Tot1 | AJZ25: Tot1 | AKA25: Tot1 | AKB25: Tot1 | AKC25: Tot1 | AKD25: Tot1 | AKE25: =MID(CELL("filename",AKA1),FIND("]",CELL("filename",AKA1))+1,LEN(CELL("filename",AKA1))-FIND("]",CELL("filename",AKA1))) -> Tot1 | AKF25: Tot1 | AKG25: Tot1 | AKH25: Tot1 | AKI25: Tot1 | AKJ25: Tot1 | AKK25: Tot1 | AKL25: Tot1 | AKM25: Tot1 | AKN25: Tot1 | AKO25: Tot1 | AKP25: Tot1 | AKQ25: Tot1 | AKR25: Tot1 | AKS25: Tot1 | AKT25: Tot1 | AKU25: Tot1 | AKV25: Tot1 | AKW25: Tot1 | AKX25: Tot1 | AKY25: Tot1 | AKZ25: Tot1 | ALA25: Tot1 | ALB25: Tot1 | ALC25: Tot1 | ALD25: Tot1 | ALE25: Tot1 | ALF25: Tot1 | ALG25: Tot1 | ALH25: Tot1 | ALI25: Tot1 | ALJ25: Tot1 | ALK25: Tot1 | ALL25: Tot1 | ALM25: Tot1 | ALN25: Tot1 | ALO25: Tot1 | ALP25: Tot1 | ALQ25: Tot1
A26: do | C26: numéro colonne | E26: =COLUMN(E$27) -> 5 | F26: 6 | G26: 7 | H26: 8 | I26: 9 | J26: 10 | K26: 11 | L26: 12 | M26: 13 | N26: 14 | O26: 15 | P26: 16 | Q26: 17 | R26: 18 | S26: 19 | T26: 20 | U26: 21 | V26: 22 | W26: 23 | X26: 24 | Y26: 25 | Z26: 26 | AA26: 27 | AB26: 28 | AC26: 29 | AD26: 30 | AE26: 31 | AF26: 32 | AG26: 33 | AH26: 34 | AI26: 35 | AJ26: 36 | AK26: 37 | AL26: 38 | AM26: 39 | AN26: 40 | AO26: 41 | AP26: 42 | AQ26: 43 | AR26: 44 | AS26: 45 | AT26: 46 | AU26: 47 | AV26: 48 | AW26: 49 | AX26: 50 | AY26: 51 | AZ26: 52 | BA26: 53 | BB26: 54 | BC26: 55 | BD26: 56 | BE26: 57 | BF26: 58 | BG26: 59 | BH26: 60 | BI26: 61 | BJ26: 62 | BK26: 63 | BL26: 64 | BM26: 65 | BN26: 66 | BO26: 67 | BP26: 68 | BQ26: =COLUMN(BQ$27) -> 69 | BR26: 70 | BS26: 71 | BT26: 72 | BU26: 73 | BV26: 74 | BW26: 75 | BX26: 76 | BY26: 77 | BZ26: 78 | CA26: 79 | CB26: 80 | CC26: 81 | CD26: 82 | CE26: 83 | CF26: 84 | CG26: 85 | CH26: 86 | CI26: 87 | CJ26: 88 | CK26: 89 | CL26: 90 | CM26: 91 | CN26: 92 | CO26: 93 | CP26: 94 | CQ26: 95 | CR26: 96 | CS26: 97 | CT26: 98 | CU26: 99 | CV26: 100 | CW26: 101 | CX26: 102 | CY26: 103 | CZ26: 104 | DA26: 105 | DB26: 106 | DC26: 107 | DD26: 108 | DE26: 109 | DF26: 110 | DG26: 111 | DH26: 112 | DI26: 113 | DJ26: 114 | DK26: 115 | DL26: 116 | DM26: 117 | DN26: 118 | DO26: 119 | DP26: 120 | DQ26: 121 | DR26: 122 | DS26: 123 | DT26: 124 | DU26: 125 | DV26: 126 | DW26: 127 | DX26: 128 | DY26: 129 | DZ26: 130 | EA26: 131 | EB26: 132 | EC26: =COLUMN(EC$27) -> 133 | ED26: 134 | EE26: 135 | EF26: 136 | EG26: 137 | EH26: 138 | EI26: 139 | EJ26: 140 | EK26: 141 | EL26: 142 | EM26: 143 | EN26: 144 | EO26: 145 | EP26: 146 | EQ26: 147 | ER26: 148 | ES26: 149 | ET26: 150 | EU26: 151 | EV26: 152 | EW26: 153 | EX26: 154 | EY26: 155 | EZ26: 156 | FA26: 157 | FB26: 158 | FC26: 159 | FD26: 160 | FE26: 161 | FF26: 162 | FG26: 163 | FH26: 164 | FI26: 165 | FJ26: 166 | FK26: 167 | FL26: 168 | FM26: 169 | FN26: 170 | FO26: 171 | FP26: 172 | FQ26: 173 | FR26: 174 | FS26: 175 | FT26: 176 | FU26: 177 | FV26: 178 | FW26: 179 | FX26: 180 | FY26: 181 | FZ26: 182 | GA26: 183 | GB26: 184 | GC26: 185 | GD26: 186 | GE26: 187 | GF26: 188 | GG26: 189 | GH26: 190 | GI26: 191 | GJ26: 192 | GK26: 193 | GL26: 194 | GM26: 195 | GN26: 196 | GO26: =COLUMN(GO$27) -> 197 | GP26: 198 | GQ26: 199 | GR26: 200 | GS26: 201 | GT26: 202 | GU26: 203 | GV26: 204 | GW26: 205 | GX26: 206 | GY26: 207 | GZ26: 208 | HA26: 209 | HB26: 210 | HC26: 211 | HD26: 212 | HE26: 213 | HF26: 214 | HG26: 215 | HH26: 216 | HI26: 217 | HJ26: 218 | HK26: 219 | HL26: 220 | HM26: 221 | HN26: 222 | HO26: 223 | HP26: 224 | HQ26: 225 | HR26: 226 | HS26: 227 | HT26: 228 | HU26: 229 | HV26: 230 | HW26: 231 | HX26: 232 | HY26: 233 | HZ26: 234 | IA26: 235 | IB26: 236 | IC26: 237 | ID26: 238 | IE26: 239 | IF26: 240 | IG26: 241 | IH26: 242 | II26: 243 | IJ26: 244 | IK26: 245 | IL26: 246 | IM26: 247 | IN26: 248 | IO26: 249 | IP26: 250 | IQ26: 251 | IR26: 252 | IS26: 253 | IT26: 254 | IU26: 255 | IV26: 256 | IW26: 257 | IX26: 258 | IY26: 259 | IZ26: 260 | JA26: =COLUMN(JA$27) -> 261 | JB26: 262 | JC26: 263 | JD26: 264 | JE26: 265 | JF26: 266 | JG26: 267 | JH26: 268 | JI26: 269 | JJ26: 270 | JK26: 271 | JL26: 272 | JM26: 273 | JN26: 274 | JO26: 275 | JP26: 276 | JQ26: 277 | JR26: 278 | JS26: 279 | JT26: 280 | JU26: 281 | JV26: 282 | JW26: 283 | JX26: 284 | JY26: 285 | JZ26: 286 | KA26: 287 | KB26: 288 | KC26: 289 | KD26: 290 | KE26: 291 | KF26: 292 | KG26: 293 | KH26: 294 | KI26: 295 | KJ26: 296 | KK26: 297 | KL26: 298 | KM26: 299 | KN26: 300 | KO26: 301 | KP26: 302 | KQ26: 303 | KR26: 304 | KS26: 305 | KT26: 306 | KU26: 307 | KV26: 308 | KW26: 309 | KX26: 310 | KY26: 311 | KZ26: 312 | LA26: 313 | LB26: 314 | LC26: 315 | LD26: 316 | LE26: 317 | LF26: 318 | LG26: 319 | LH26: 320 | LI26: 321 | LJ26: 322 | LK26: 323 | LL26: 324 | LM26: =COLUMN(LM$27) -> 325 | LN26: 326 | LO26: 327 | LP26: 328 | LQ26: 329 | LR26: 330 | LS26: 331 | LT26: 332 | LU26: 333 | LV26: 334 | LW26: 335 | LX26: 336 | LY26: 337 | LZ26: 338 | MA26: 339 | MB26: 340 | MC26: 341 | MD26: 342 | ME26: 343 | MF26: 344 | MG26: 345 | MH26: 346 | MI26: 347 | MJ26: 348 | MK26: 349 | ML26: 350 | MM26: 351 | MN26: 352 | MO26: 353 | MP26: 354 | MQ26: 355 | MR26: 356 | MS26: 357 | MT26: 358 | MU26: 359 | MV26: 360 | MW26: 361 | MX26: 362 | MY26: 363 | MZ26: 364 | NA26: 365 | NB26: 366 | NC26: 367 | ND26: 368 | NE26: 369 | NF26: 370 | NG26: 371 | NH26: 372 | NI26: 373 | NJ26: 374 | NK26: 375 | NL26: 376 | NM26: 377 | NN26: 378 | NO26: 379 | NP26: 380 | NQ26: 381 | NR26: 382 | NS26: 383 | NT26: 384 | NU26: 385 | NV26: 386 | NW26: 387 | NX26: 388 | NY26: =COLUMN(NY$27) -> 389 | NZ26: 390 | OA26: 391 | OB26: 392 | OC26: 393 | OD26: 394 | OE26: 395 | OF26: 396 | OG26: 397 | OH26: 398 | OI26: 399 | OJ26: 400 | OK26: 401 | OL26: 402 | OM26: 403 | ON26: 404 | OO26: 405 | OP26: 406 | OQ26: 407 | OR26: 408 | OS26: 409 | OT26: 410 | OU26: 411 | OV26: 412 | OW26: 413 | OX26: 414 | OY26: 415 | OZ26: 416 | PA26: 417 | PB26: 418 | PC26: 419 | PD26: 420 | PE26: 421 | PF26: 422 | PG26: 423 | PH26: 424 | PI26: 425 | PJ26: 426 | PK26: 427 | PL26: 428 | PM26: 429 | PN26: 430 | PO26: 431 | PP26: 432 | PQ26: 433 | PR26: 434 | PS26: 435 | PT26: 436 | PU26: 437 | PV26: 438 | PW26: 439 | PX26: 440 | PY26: 441 | PZ26: 442 | QA26: 443 | QB26: 444 | QC26: 445 | QD26: 446 | QE26: 447 | QF26: 448 | QG26: 449 | QH26: 450 | QI26: 451 | QJ26: 452 | QK26: =COLUMN(QK$27) -> 453 | QL26: 454 | QM26: 455 | QN26: 456 | QO26: 457 | QP26: 458 | QQ26: 459 | QR26: 460 | QS26: 461 | QT26: 462 | QU26: 463 | QV26: 464 | QW26: 465 | QX26: 466 | QY26: 467 | QZ26: 468 | RA26: 469 | RB26: 470 | RC26: 471 | RD26: 472 | RE26: 473 | RF26: 474 | RG26: 475 | RH26: 476 | RI26: 477 | RJ26: 478 | RK26: 479 | RL26: 480 | RM26: 481 | RN26: 482 | RO26: 483 | RP26: 484 | RQ26: 485 | RR26: 486 | RS26: 487 | RT26: 488 | RU26: 489 | RV26: 490 | RW26: 491 | RX26: 492 | RY26: 493 | RZ26: 494 | SA26: 495 | SB26: 496 | SC26: 497 | SD26: 498 | SE26: 499 | SF26: 500 | SG26: 501 | SH26: 502 | SI26: 503 | SJ26: 504 | SK26: 505 | SL26: 506 | SM26: 507 | SN26: 508 | SO26: 509 | SP26: 510 | SQ26: 511 | SR26: 512 | SS26: 513 | ST26: 514 | SU26: 515 | SV26: 516 | SW26: =COLUMN(SW$27) -> 517 | SX26: 518 | SY26: 519 | SZ26: 520 | TA26: 521 | TB26: 522 | TC26: 523 | TD26: 524 | TE26: 525 | TF26: 526 | TG26: 527 | TH26: 528 | TI26: 529 | TJ26: 530 | TK26: 531 | TL26: 532 | TM26: 533 | TN26: 534 | TO26: 535 | TP26: 536 | TQ26: 537 | TR26: 538 | TS26: 539 | TT26: 540 | TU26: 541 | TV26: 542 | TW26: 543 | TX26: 544 | TY26: 545 | TZ26: 546 | UA26: 547 | UB26: 548 | UC26: 549 | UD26: 550 | UE26: 551 | UF26: 552 | UG26: 553 | UH26: 554 | UI26: 555 | UJ26: 556 | UK26: 557 | UL26: 558 | UM26: 559 | UN26: 560 | UO26: 561 | UP26: 562 | UQ26: 563 | UR26: 564 | US26: 565 | UT26: 566 | UU26: 567 | UV26: 568 | UW26: 569 | UX26: 570 | UY26: 571 | UZ26: 572 | VA26: 573 | VB26: 574 | VC26: 575 | VD26: 576 | VE26: 577 | VF26: 578 | VG26: 579 | VH26: 580 | VI26: =COLUMN(VI$27) -> 581 | VJ26: 582 | VK26: 583 | VL26: 584 | VM26: 585 | VN26: 586 | VO26: 587 | VP26: 588 | VQ26: 589 | VR26: 590 | VS26: 591 | VT26: 592 | VU26: 593 | VV26: 594 | VW26: 595 | VX26: 596 | VY26: 597 | VZ26: 598 | WA26: 599 | WB26: 600 | WC26: 601 | WD26: 602 | WE26: 603 | WF26: 604 | WG26: 605 | WH26: 606 | WI26: 607 | WJ26: 608 | WK26: 609 | WL26: 610 | WM26: 611 | WN26: 612 | WO26: 613 | WP26: 614 | WQ26: 615 | WR26: 616 | WS26: 617 | WT26: 618 | WU26: 619 | WV26: 620 | WW26: 621 | WX26: 622 | WY26: 623 | WZ26: 624 | XA26: 625 | XB26: 626 | XC26: 627 | XD26: 628 | XE26: 629 | XF26: 630 | XG26: 631 | XH26: 632 | XI26: 633 | XJ26: 634 | XK26: 635 | XL26: 636 | XM26: 637 | XN26: 638 | XO26: 639 | XP26: 640 | XQ26: 641 | XR26: 642 | XS26: 643 | XT26: 644 | XU26: =COLUMN(XU$27) -> 645 | XV26: 646 | XW26: 647 | XX26: 648 | XY26: 649 | XZ26: 650 | YA26: 651 | YB26: 652 | YC26: 653 | YD26: 654 | YE26: 655 | YF26: 656 | YG26: 657 | YH26: 658 | YI26: 659 | YJ26: 660 | YK26: 661 | YL26: 662 | YM26: 663 | YN26: 664 | YO26: 665 | YP26: 666 | YQ26: 667 | YR26: 668 | YS26: 669 | YT26: 670 | YU26: 671 | YV26: 672 | YW26: 673 | YX26: 674 | YY26: 675 | YZ26: 676 | ZA26: 677 | ZB26: 678 | ZC26: 679 | ZD26: 680 | ZE26: 681 | ZF26: 682 | ZG26: 683 | ZH26: 684 | ZI26: 685 | ZJ26: 686 | ZK26: 687 | ZL26: 688 | ZM26: 689 | ZN26: 690 | ZO26: 691 | ZP26: 692 | ZQ26: 693 | ZR26: 694 | ZS26: 695 | ZT26: 696 | ZU26: 697 | ZV26: 698 | ZW26: 699 | ZX26: 700 | ZY26: 701 | ZZ26: 702 | AAA26: 703 | AAB26: 704 | AAC26: 705 | AAD26: 706 | AAE26: 707 | AAF26: 708 | AAG26: =COLUMN(AAG$27) -> 709 | AAH26: 710 | AAI26: 711 | AAJ26: 712 | AAK26: 713 | AAL26: 714 | AAM26: 715 | AAN26: 716 | AAO26: 717 | AAP26: 718 | AAQ26: 719 | AAR26: 720 | AAS26: 721 | AAT26: 722 | AAU26: 723 | AAV26: 724 | AAW26: 725 | AAX26: 726 | AAY26: 727 | AAZ26: 728 | ABA26: 729 | ABB26: 730 | ABC26: 731 | ABD26: 732 | ABE26: 733 | ABF26: 734 | ABG26: 735 | ABH26: 736 | ABI26: 737 | ABJ26: 738 | ABK26: 739 | ABL26: 740 | ABM26: 741 | ABN26: 742 | ABO26: 743 | ABP26: 744 | ABQ26: 745 | ABR26: 746 | ABS26: 747 | ABT26: 748 | ABU26: 749 | ABV26: 750 | ABW26: 751 | ABX26: 752 | ABY26: 753 | ABZ26: 754 | ACA26: 755 | ACB26: 756 | ACC26: 757 | ACD26: 758 | ACE26: 759 | ACF26: 760 | ACG26: 761 | ACH26: 762 | ACI26: 763 | ACJ26: 764 | ACK26: 765 | ACL26: 766 | ACM26: 767 | ACN26: 768 | ACO26: 769 | ACP26: 770 | ACQ26: 771 | ACR26: 772 | ACS26: =COLUMN(ACS$27) -> 773 | ACT26: 774 | ACU26: 775 | ACV26: 776 | ACW26: 777 | ACX26: 778 | ACY26: 779 | ACZ26: 780 | ADA26: 781 | ADB26: 782 | ADC26: 783 | ADD26: 784 | ADE26: 785 | ADF26: 786 | ADG26: 787 | ADH26: 788 | ADI26: 789 | ADJ26: 790 | ADK26: 791 | ADL26: 792 | ADM26: 793 | ADN26: 794 | ADO26: 795 | ADP26: 796 | ADQ26: 797 | ADR26: 798 | ADS26: 799 | ADT26: 800 | ADU26: 801 | ADV26: 802 | ADW26: 803 | ADX26: 804 | ADY26: 805 | ADZ26: 806 | AEA26: 807 | AEB26: 808 | AEC26: 809 | AED26: 810 | AEE26: 811 | AEF26: 812 | AEG26: 813 | AEH26: 814 | AEI26: 815 | AEJ26: 816 | AEK26: 817 | AEL26: 818 | AEM26: 819 | AEN26: 820 | AEO26: 821 | AEP26: 822 | AEQ26: 823 | AER26: 824 | AES26: 825 | AET26: 826 | AEU26: 827 | AEV26: 828 | AEW26: 829 | AEX26: 830 | AEY26: 831 | AEZ26: 832 | AFA26: 833 | AFB26: 834 | AFC26: 835 | AFD26: 836 | AFE26: =COLUMN(AFE$27) -> 837 | AFF26: 838 | AFG26: 839 | AFH26: 840 | AFI26: 841 | AFJ26: 842 | AFK26: 843 | AFL26: 844 | AFM26: 845 | AFN26: 846 | AFO26: 847 | AFP26: 848 | AFQ26: 849 | AFR26: 850 | AFS26: 851 | AFT26: 852 | AFU26: 853 | AFV26: 854 | AFW26: 855 | AFX26: 856 | AFY26: 857 | AFZ26: 858 | AGA26: 859 | AGB26: 860 | AGC26: 861 | AGD26: 862 | AGE26: 863 | AGF26: 864 | AGG26: 865 | AGH26: 866 | AGI26: 867 | AGJ26: 868 | AGK26: 869 | AGL26: 870 | AGM26: 871 | AGN26: 872 | AGO26: 873 | AGP26: 874 | AGQ26: 875 | AGR26: 876 | AGS26: 877 | AGT26: 878 | AGU26: 879 | AGV26: 880 | AGW26: 881 | AGX26: 882 | AGY26: 883 | AGZ26: 884 | AHA26: 885 | AHB26: 886 | AHC26: 887 | AHD26: 888 | AHE26: 889 | AHF26: 890 | AHG26: 891 | AHH26: 892 | AHI26: 893 | AHJ26: 894 | AHK26: 895 | AHL26: 896 | AHM26: 897 | AHN26: 898 | AHO26: 899 | AHP26: 900 | AHQ26: =COLUMN(AHQ$27) -> 901 | AHR26: 902 | AHS26: 903 | AHT26: 904 | AHU26: 905 | AHV26: 906 | AHW26: 907 | AHX26: 908 | AHY26: 909 | AHZ26: 910 | AIA26: 911 | AIB26: 912 | AIC26: 913 | AID26: 914 | AIE26: 915 | AIF26: 916 | AIG26: 917 | AIH26: 918 | AII26: 919 | AIJ26: 920 | AIK26: 921 | AIL26: 922 | AIM26: 923 | AIN26: 924 | AIO26: 925 | AIP26: 926 | AIQ26: 927 | AIR26: 928 | AIS26: 929 | AIT26: 930 | AIU26: 931 | AIV26: 932 | AIW26: 933 | AIX26: 934 | AIY26: 935 | AIZ26: 936 | AJA26: 937 | AJB26: 938 | AJC26: 939 | AJD26: 940 | AJE26: 941 | AJF26: 942 | AJG26: 943 | AJH26: 944 | AJI26: 945 | AJJ26: 946 | AJK26: 947 | AJL26: 948 | AJM26: 949 | AJN26: 950 | AJO26: 951 | AJP26: 952 | AJQ26: 953 | AJR26: 954 | AJS26: 955 | AJT26: 956 | AJU26: 957 | AJV26: 958 | AJW26: 959 | AJX26: 960 | AJY26: 961 | AJZ26: 962 | AKA26: 963 | AKB26: 964 | AKC26: =COLUMN(AKC$27) -> 965 | AKD26: 966 | AKE26: 967 | AKF26: 968 | AKG26: 969 | AKH26: 970 | AKI26: 971 | AKJ26: 972 | AKK26: 973 | AKL26: 974 | AKM26: 975 | AKN26: 976 | AKO26: 977 | AKP26: 978 | AKQ26: 979 | AKR26: 980 | AKS26: 981 | AKT26: 982 | AKU26: 983 | AKV26: 984 | AKW26: 985 | AKX26: 986 | AKY26: 987 | AKZ26: 988 | ALA26: 989 | ALB26: 990 | ALC26: 991 | ALD26: 992 | ALE26: 993 | ALF26: 994 | ALG26: 995 | ALH26: 996 | ALI26: 997 | ALJ26: 998 | ALK26: 999 | ALL26: 1000 | ALM26: 1001 | ALN26: 1002 | ALO26: 1003 | ALP26: 1004 | ALQ26: 1005
A27: do | B27: =Translation!$C$66 -> REFERENCES DU RELEVE | C27: =Translation!$C67 -> Nom du groupe | D27: 27
A28: do | C28: =Translation!$C$69 -> Nom du relevé | D28: 28 | E28: =Translation!$C861 -> Exemple
A29: do | C29: =Translation!$C70 -> Date (jj/mm/aa) | D29: 29 | E29: 2020-04-17
A30: do | C30: =Translation!C71 -> Surface échantillonnée (ha) | D30: 30 | E30: 1
A31: do | C31: =Translation!$C72 -> Surface totale évaluée (ha) | D31: 31 | E31: 4
A32: do | C32: =Translation!C73 -> Noms des observateurs | D32: 32 | E32: PG
A33: do | C33: =Translation!$C68 -> Droits et conditions d'utilisation des données IBP | D33: 33
A34: do | C34: =Translation!C74 -> Propriétaire des données IBP | D34: 34 | E34: CNPF
A35: do | C35: =Translation!C40 -> Identifiant utilisateur (= adresse mail) | D35: 35 | E35: pg@cnpf.fr
A36: do | C36: =Translation!C75 -> Dimensions zone échantillonnée (L x l ou R du cercle) | D36: 36
A37: do | C37: id37 | D37: 37
A38: do | C38: id38 | D38: 38
A39: do | C39: id39 | D39: 39
A40: do | B40: =Translation!$C$76 -> LOCALISATION DU RELEVE | C40: =Translation!$C77 -> Pays | D40: 40 | E40: France
A41: do | C41: =Translation!$C123 -> Département | D41: 41 | E41: 34
A42: do | C42: =Translation!$C154 -> Commune | D42: 42 | E42: Clermont l'H.
A43: do | C43: =Translation!$C155 -> Dossier | D43: 43 | E43: =Translation!$C876 -> Dossier "exemple"
A44: do | C44: =Translation!$C156 -> Forêt | D44: 44 | E44: =Translation!$C877 -> Forêt "exemple"
A45: do | C45: =Translation!$C157 -> Subdivision (de la forêt) | D45: 45 | E45: -
A46: do | C46: id46 | D46: 46
A47: do | C47: =Translation!$C158 -> N° parcelle | D47: 47 | E47: 5b
A48: do | C48: =Translation!$C159 -> Propriétaire | D48: 48 | E48: M. Dupond
A49: do | C49: =Translation!$C160 -> Gestionnaire | D49: 49 | E49: coopérative
A50: do | C50: =Translation!$C161 -> Contact accès forêt | D50: 50
A51: do | C51: =Translation!$C162 -> Système de coordonnées et référentiel (WGS84, RGF93...) | D51: 51
A52: do | C52: =Translation!$C163 -> Latitude (degré dec.) | D52: 52
A53: do | C53: =Translation!$C164 -> Longitude (degré dec.) | D53: 53
A54: do | C54: =Translation!$C165 -> X (m) | D54: 54
A55: do | C55: =Translation!$C166 -> Y (m) | D55: 55
A56: do | C56: =Translation!$C167 -> Altitude (m) | D56: 56 | E56: 310
A57: do | B57: =Translation!$C$168 -> PEUPLEMENT | C57: =Translation!C196 -> Composition : liste des essences | D57: 57 | E57: Quercus pubescens
A58: do | C58: =Translation!C197 -> Composition : diversité des essences | D58: 58 | E58: =Translation!$C891 -> Feuillu pur (1 essence)
A59: do | C59: =Translation!C204 -> Composition : essence 1 | D59: 59 | E59: Quercus deciduae : autochtone
A60: do | C60: =Translation!C205 -> Composition : essence 2 | D60: 60
A61: do | C61: id61 | D61: 61
A62: do | C62: =Translation!$C169 -> Structure | D62: 62 | E62: =Translation!$C895 -> Futaie régulière (T <25%)
A63: do | C63: =Translation!$C178 -> Couvert | D63: 63 | E63: =Translation!$C896 -> Fermé > 75 %
A64: do | C64: =Translation!C185 -> Phase dynamique - futaie | D64: 64 | E64: =Translation!$C897 -> Croissance
A65: do | C65: =Translation!C186 -> Phase dynamique - taillis | D65: 65 | E65: =Translation!$C898 -> Croissance
A66: do | C66: =Translation!$C270 -> Code | D66: 66
A67: do | C67: =Translation!$C271 -> Type de peuplement | D67: 67
A68: do | C68: =Translation!$C515 -> Description | D68: 68 | E68: Ho = 24 m
A69: do | C69: =Translation!$C516 -> Type d'habitat potentiel | D69: 69
A70: do | C70: =Translation!$C517 -> Statut particulier - gestion | D70: 70
A71: do | C71: id71 | D71: 71
A72: do | C72: id72 | D72: 72
A73: do | C73: id73 | D73: 73
A74: do | C74: id74 | D74: 74
A75: do | C75: id75 | D75: 75
A76: do | B76: =Translation!$C$518 -> CRITERES DE DIAGNOSTIC IBP | C76: =Translation!C519 -> Version IBP | D76: 76 | E76: Fr-M v3.0
A77: do | C77: =Translation!C520 -> Région biogéographique | D77: 77 | E77: =Translation!$C910 -> Atlantique
A78: do | C78: =Translation!C535 -> Etage de végétation | D78: 78 | E78: =Translation!$C911 -> Planitiaire et collinéen
A79: do | C79: =Translation!$C557 -> Méthode de relevé | D79: 79 | E79: =Translation!$C912 -> Parcours en plein
A80: do | C80: =Translation!C565 -> Parcours partiel avec observations dans la zone non échantillonnée : oui = 1, non = 0 | D80: 80 | E80: 0
A81: do | C81: =Translation!C566 -> Fertilité (1 = fertile à moyennement fertile ; 0 = très peu fertile) | D81: 81 | E81: 1
A82: do | C82: =Translation!C569 -> Facteurs déplafonnés (A, B…) | D82: 82 | E82: aucun
A83: do | C83: =Translation!C570 -> Autres données stationnelles | D83: 83 | E83: =Translation!C916 -> 
A84: do | C84: id84 | D84: 84 | E84: =Translation!C917 -> 
A85: do | B85: =Translation!$C$572 -> COMMENTAIRES | C85: =Translation!C573 -> Espèces ou habitats remarquables | D85: 85
A86: do | C86: =Translation!C574 -> Commentaires sur les résultats IBP | D86: 86 | E86: =Translation!C919 -> 
A87: do | C87: =Translation!C575 -> Préconisations de gestion | D87: 87 | E87: =Translation!C920 -> Préserver les facteurs favorables et améliorer les facteurs défavorables
A88: do | C88: =Translation!C577 -> Autres commentaires | D88: 88 | E88: =Translation!C921 -> 
A89: do | C89: id89 | D89: 89 | E89: =Translation!C922 -> 
A90: do | C90: id90 | D90: 90 | E90: =Translation!C923 -> 
A91: do | C91: id91 | D91: 91 | E91: =Translation!C924 -> 
A92: f | C92: A | E92: =IF(E147="","",E147) -> 5 | N92: =IF(N147="","",N147) ->  | BZ92: =IF(BZ147="","",BZ147) ->  | CU92: =IF(CU147="","",CU147) ->  | FG92: =IF(FG147="","",FG147) ->  | HS92: =IF(HS147="","",HS147) ->  | KE92: =IF(KE147="","",KE147) ->  | MH92: =IF(MH147="","",MH147) ->  | OT92: =IF(OT147="","",OT147) ->  | RF92: =IF(RF147="","",RF147) ->  | TR92: =IF(TR147="","",TR147) ->  | WD92: =IF(WD147="","",WD147) ->  | YP92: =IF(YP147="","",YP147) ->  | ABB92: =IF(ABB147="","",ABB147) ->  | ADB92: =IF(ADB147="","",ADB147) ->  | AFN92: =IF(AFN147="","",AFN147) ->  | AHZ92: =IF(AHZ147="","",AHZ147) ->  | AKL92: =IF(AKL147="","",AKL147) -> 
A93: f | C93: B | E93: =IF(E157="","",E157) -> 5 | M93: =IF(M157="","",M157) ->  | BY93: =IF(BY157="","",BY157) ->  | CU93: =IF(CU157="","",CU157) ->  | FG93: =IF(FG157="","",FG157) ->  | HS93: =IF(HS157="","",HS157) ->  | KE93: =IF(KE157="","",KE157) ->  | MH93: =IF(MH157="","",MH157) ->  | OT93: =IF(OT157="","",OT157) ->  | RF93: =IF(RF157="","",RF157) ->  | TR93: =IF(TR157="","",TR157) ->  | WD93: =IF(WD157="","",WD157) ->  | YP93: =IF(YP157="","",YP157) ->  | ABB93: =IF(ABB157="","",ABB157) ->  | ADB93: =IF(ADB157="","",ADB157) ->  | AFN93: =IF(AFN157="","",AFN157) ->  | AHZ93: =IF(AHZ157="","",AHZ157) ->  | AKL93: =IF(AKL157="","",AKL157) -> 
A94: f | C94: C | E94: =IF(E165="","",E165) -> 2 | M94: =IF(M165="","",M165) ->  | BY94: =IF(BY165="","",BY165) ->  | CU94: =IF(CU165="","",CU165) ->  | FG94: =IF(FG165="","",FG165) ->  | HS94: =IF(HS165="","",HS165) ->  | KE94: =IF(KE165="","",KE165) ->  | MH94: =IF(MH165="","",MH165) ->  | OT94: =IF(OT165="","",OT165) ->  | RF94: =IF(RF165="","",RF165) ->  | TR94: =IF(TR165="","",TR165) ->  | WD94: =IF(WD165="","",WD165) ->  | YP94: =IF(YP165="","",YP165) ->  | ABB94: =IF(ABB165="","",ABB165) ->  | ADB94: =IF(ADB165="","",ADB165) ->  | AFN94: =IF(AFN165="","",AFN165) ->  | AHZ94: =IF(AHZ165="","",AHZ165) ->  | AKL94: =IF(AKL165="","",AKL165) -> 
A95: f | C95: D | E95: =IF(E173="","",E173) -> 5 | M95: =IF(M173="","",M173) ->  | BY95: =IF(BY173="","",BY173) ->  | CU95: =IF(CU173="","",CU173) ->  | FG95: =IF(FG173="","",FG173) ->  | HS95: =IF(HS173="","",HS173) ->  | KE95: =IF(KE173="","",KE173) ->  | MH95: =IF(MH173="","",MH173) ->  | OT95: =IF(OT173="","",OT173) ->  | RF95: =IF(RF173="","",RF173) ->  | TR95: =IF(TR173="","",TR173) ->  | WD95: =IF(WD173="","",WD173) ->  | YP95: =IF(YP173="","",YP173) ->  | ABB95: =IF(ABB173="","",ABB173) ->  | ADB95: =IF(ADB173="","",ADB173) ->  | AFN95: =IF(AFN173="","",AFN173) ->  | AHZ95: =IF(AHZ173="","",AHZ173) ->  | AKL95: =IF(AKL173="","",AKL173) -> 
A96: f | C96: E | E96: =IF(E181="","",E181) -> 1 | M96: =IF(M181="","",M181) ->  | BY96: =IF(BY181="","",BY181) ->  | CU96: =IF(CU181="","",CU181) ->  | FG96: =IF(FG181="","",FG181) ->  | HS96: =IF(HS181="","",HS181) ->  | KE96: =IF(KE181="","",KE181) ->  | MH96: =IF(MH181="","",MH181) ->  | OT96: =IF(OT181="","",OT181) ->  | RF96: =IF(RF181="","",RF181) ->  | TR96: =IF(TR181="","",TR181) ->  | WD96: =IF(WD181="","",WD181) ->  | YP96: =IF(YP181="","",YP181) ->  | ABB96: =IF(ABB181="","",ABB181) ->  | ADB96: =IF(ADB181="","",ADB181) ->  | AFN96: =IF(AFN181="","",AFN181) ->  | AHZ96: =IF(AHZ181="","",AHZ181) ->  | AKL96: =IF(AKL181="","",AKL181) -> 
A97: f | C97: F | E97: =IF(E238="","",E238) -> 5 | M97: =IF(M238="","",M238) ->  | BY97: =IF(BY238="","",BY238) ->  | CU97: =IF(CU238="","",CU238) ->  | FG97: =IF(FG238="","",FG238) ->  | HS97: =IF(HS238="","",HS238) ->  | KE97: =IF(KE238="","",KE238) ->  | MH97: =IF(MH238="","",MH238) ->  | OT97: =IF(OT238="","",OT238) ->  | RF97: =IF(RF238="","",RF238) ->  | TR97: =IF(TR238="","",TR238) ->  | WD97: =IF(WD238="","",WD238) ->  | YP97: =IF(YP238="","",YP238) ->  | ABB97: =IF(ABB238="","",ABB238) ->  | ADB97: =IF(ADB238="","",ADB238) ->  | AFN97: =IF(AFN238="","",AFN238) ->  | AHZ97: =IF(AHZ238="","",AHZ238) ->  | AKL97: =IF(AKL238="","",AKL238) -> 
A98: f | C98: G | E98: =IF(E248="","",E248) -> 2 | M98: =IF(M248="","",M248) ->  | BY98: =IF(BY248="","",BY248) ->  | CU98: =IF(CU248="","",CU248) ->  | FG98: =IF(FG248="","",FG248) ->  | HS98: =IF(HS248="","",HS248) ->  | KE98: =IF(KE248="","",KE248) ->  | MH98: =IF(MH248="","",MH248) ->  | OT98: =IF(OT248="","",OT248) ->  | RF98: =IF(RF248="","",RF248) ->  | TR98: =IF(TR248="","",TR248) ->  | WD98: =IF(WD248="","",WD248) ->  | YP98: =IF(YP248="","",YP248) ->  | ABB98: =IF(ABB248="","",ABB248) ->  | ADB98: =IF(ADB248="","",ADB248) ->  | AFN98: =IF(AFN248="","",AFN248) ->  | AHZ98: =IF(AHZ248="","",AHZ248) ->  | AKL98: =IF(AKL248="","",AKL248) -> 
A99: f | C99: H | E99: =IF(E255="","",E255) -> 2 | M99: =IF(M255="","",M255) ->  | BY99: =IF(BY255="","",BY255) ->  | CU99: =IF(CU255="","",CU255) ->  | FG99: =IF(FG255="","",FG255) ->  | HS99: =IF(HS255="","",HS255) ->  | KE99: =IF(KE255="","",KE255) ->  | MH99: =IF(MH255="","",MH255) ->  | OT99: =IF(OT255="","",OT255) ->  | RF99: =IF(RF255="","",RF255) ->  | TR99: =IF(TR255="","",TR255) ->  | WD99: =IF(WD255="","",WD255) ->  | YP99: =IF(YP255="","",YP255) ->  | ABB99: =IF(ABB255="","",ABB255) ->  | ADB99: =IF(ADB255="","",ADB255) ->  | AFN99: =IF(AFN255="","",AFN255) ->  | AHZ99: =IF(AHZ255="","",AHZ255) ->  | AKL99: =IF(AKL255="","",AKL255) -> 
A100: f | C100: I | E100: =IF(E273="","",E273) -> 2 | M100: =IF(M273="","",M273) ->  | BY100: =IF(BY273="","",BY273) ->  | CU100: =IF(CU273="","",CU273) ->  | FG100: =IF(FG273="","",FG273) ->  | HS100: =IF(HS273="","",HS273) ->  | KE100: =IF(KE273="","",KE273) ->  | MH100: =IF(MH273="","",MH273) ->  | OT100: =IF(OT273="","",OT273) ->  | RF100: =IF(RF273="","",RF273) ->  | TR100: =IF(TR273="","",TR273) ->  | WD100: =IF(WD273="","",WD273) ->  | YP100: =IF(YP273="","",YP273) ->  | ABB100: =IF(ABB273="","",ABB273) ->  | ADB100: =IF(ADB273="","",ADB273) ->  | AFN100: =IF(AFN273="","",AFN273) ->  | AHZ100: =IF(AHZ273="","",AHZ273) ->  | AKL100: =IF(AKL273="","",AKL273) -> 
A101: f | C101: J | E101: =IF(E295="","",E295) -> 0 | M101: =IF(M295="","",M295) ->  | BY101: =IF(BY295="","",BY295) ->  | CU101: =IF(CU295="","",CU295) ->  | FG101: =IF(FG295="","",FG295) ->  | HS101: =IF(HS295="","",HS295) ->  | KE101: =IF(KE295="","",KE295) ->  | MH101: =IF(MH295="","",MH295) ->  | OT101: =IF(OT295="","",OT295) ->  | RF101: =IF(RF295="","",RF295) ->  | TR101: =IF(TR295="","",TR295) ->  | WD101: =IF(WD295="","",WD295) ->  | YP101: =IF(YP295="","",YP295) ->  | ABB101: =IF(ABB295="","",ABB295) ->  | ADB101: =IF(ADB295="","",ADB295) ->  | AFN101: =IF(AFN295="","",AFN295) ->  | AHZ101: =IF(AHZ295="","",AHZ295) ->  | AKL101: =IF(AKL295="","",AKL295) -> 
A102: f | C102: =Translation!C632 -> IBP peuplement et gestion : min. | D102: 102
A103: f | C103: =Translation!C633 -> IBP peuplement et gestion : quartile inférieur | D103: 103
A104: f | C104: =Translation!C634 -> IBP peuplement et gestion : médiane | D104: 104
A105: f | C105: =Translation!C635 -> IBP peuplement et gestion : moyenne pondérée | D105: 105
A106: f | C106: =Translation!C636 -> IBP peuplement et gestion : quartile supérieur | D106: 106
A107: f | C107: =Translation!C637 -> IBP peuplement et gestion : max. | D107: 107
A108: f | C108: =Translation!C642 -> IBP peuplement et gestion | E108: =IF(E$28="","",SUM(E92:E98)/35) -> 0.7142857143 | F108: =IF(F$28="","",SUM(F92:F98)/35) ->  | BR108: =IF(BR$28="","",SUM(BR92:BR98)/35) ->  | ED108: =IF(ED$28="","",SUM(ED92:ED98)/35) ->  | GP108: =IF(GP$28="","",SUM(GP92:GP98)/35) ->  | JB108: =IF(JB$28="","",SUM(JB92:JB98)/35) ->  | LN108: =IF(LN$28="","",SUM(LN92:LN98)/35) ->  | NZ108: =IF(NZ$28="","",SUM(NZ92:NZ98)/35) ->  | QL108: =IF(QL$28="","",SUM(QL92:QL98)/35) ->  | SX108: =IF(SX$28="","",SUM(SX92:SX98)/35) ->  | VJ108: =IF(VJ$28="","",SUM(VJ92:VJ98)/35) ->  | XV108: =IF(XV$28="","",SUM(XV92:XV98)/35) ->  | AAH108: =IF(AAH$28="","",SUM(AAH92:AAH98)/35) ->  | ACT108: =IF(ACT$28="","",SUM(ACT92:ACT98)/35) ->  | AFF108: =IF(AFF$28="","",SUM(AFF92:AFF98)/35) ->  | AHR108: =IF(AHR$28="","",SUM(AHR92:AHR98)/35) ->  | AKD108: =IF(AKD$28="","",SUM(AKD92:AKD98)/35) -> 
A109: f | C109: =Translation!C641 -> IBP contexte | E109: =IF(E$28="","",SUM(E99:E101)/15) -> 0.2666666667 | F109: =IF(F$28="","",SUM(F99:F101)/15) ->  | BR109: =IF(BR$28="","",SUM(BR99:BR101)/15) ->  | ED109: =IF(ED$28="","",SUM(ED99:ED101)/15) ->  | GP109: =IF(GP$28="","",SUM(GP99:GP101)/15) ->  | JB109: =IF(JB$28="","",SUM(JB99:JB101)/15) ->  | LN109: =IF(LN$28="","",SUM(LN99:LN101)/15) ->  | NZ109: =IF(NZ$28="","",SUM(NZ99:NZ101)/15) ->  | QL109: =IF(QL$28="","",SUM(QL99:QL101)/15) ->  | SX109: =IF(SX$28="","",SUM(SX99:SX101)/15) ->  | VJ109: =IF(VJ$28="","",SUM(VJ99:VJ101)/15) ->  | XV109: =IF(XV$28="","",SUM(XV99:XV101)/15) ->  | AAH109: =IF(AAH$28="","",SUM(AAH99:AAH101)/15) ->  | ACT109: =IF(ACT$28="","",SUM(ACT99:ACT101)/15) ->  | AFF109: =IF(AFF$28="","",SUM(AFF99:AFF101)/15) ->  | AHR109: =IF(AHR$28="","",SUM(AHR99:AHR101)/15) ->  | AKD109: =IF(AKD$28="","",SUM(AKD99:AKD101)/15) -> 
A110: f | C110: =Translation!C624 -> IBP total | E110: =IF(E$28="","",SUM(E92:E101)/50) -> 0.58 | F110: =IF(F$28="","",SUM(F92:F101)/50) ->  | BR110: =IF(BR$28="","",SUM(BR92:BR101)/50) ->  | ED110: =IF(ED$28="","",SUM(ED92:ED101)/50) ->  | GP110: =IF(GP$28="","",SUM(GP92:GP101)/50) ->  | JB110: =IF(JB$28="","",SUM(JB92:JB101)/50) ->  | LN110: =IF(LN$28="","",SUM(LN92:LN101)/50) ->  | NZ110: =IF(NZ$28="","",SUM(NZ92:NZ101)/50) ->  | QL110: =IF(QL$28="","",SUM(QL92:QL101)/50) ->  | SX110: =IF(SX$28="","",SUM(SX92:SX101)/50) ->  | VJ110: =IF(VJ$28="","",SUM(VJ92:VJ101)/50) ->  | XV110: =IF(XV$28="","",SUM(XV92:XV101)/50) ->  | AAH110: =IF(AAH$28="","",SUM(AAH92:AAH101)/50) ->  | ACT110: =IF(ACT$28="","",SUM(ACT92:ACT101)/50) ->  | AFF110: =IF(AFF$28="","",SUM(AFF92:AFF101)/50) ->  | AHR110: =IF(AHR$28="","",SUM(AHR92:AHR101)/50) ->  | AKD110: =IF(AKD$28="","",SUM(AKD92:AKD101)/50) -> 
A111: f | D111: 111
A112: f | D112: 112
A113: f | D113: 113
A114: f | D114: 114
A115: f | D115: 115
A116: f | B116: =Translation!$C$54 -> DONNEES DETAILLEES IBP v3 | C116: ="A - "&Translation!$C585&" : "&Translation!$C701 -> A - Essences autochtones : indiquer les essences autochtones présentes et leur couvert | D116: 116
A117: do | C117: =Translation!$C$682 -> Essence 1 | D117: 117 | E117: Quercus deciduae
A118: do | C118: =Translation!$C$683 -> Essence 2 | D118: 118 | E118: Fagus
A119: do | C119: =Translation!$C$684 -> Essence 3 | D119: 119 | E119: Fraxinus
A120: do | C120: =Translation!$C$685 -> Essence 4 | D120: 120 | E120: Sorbus
A121: do | C121: =Translation!$C$686 -> Essence 5 | D121: 121 | E121: Prunus
A122: do | C122: =Translation!$C$687 -> Essence 6 | D122: 122
A123: do | C123: =Translation!$C$688 -> Essence 7 | D123: 123
A124: do | C124: =Translation!$C$689 -> Essence 8 | D124: 124
A125: do | C125: =Translation!$C$690 -> Essence 9 | D125: 125
A126: do | C126: =Translation!$C$691 -> Essence 10 | D126: 126
A127: do | C127: =Translation!$C$692 -> Essence 11 | D127: 127
A128: do | C128: =Translation!$C$693 -> Essence 12 | D128: 128
A129: do | D129: 129
A130: do | D130: 130
A131: do | D131: 131
A132: do | D132: 132
A133: do | D133: 133
A134: do | D134: 134
A135: do | D135: 135
A136: do | D136: 136
A137: do | C137: =Translation!$C694 -> zone non échantillonnée : autre essence 1 | D137: 137
A138: do | C138: =Translation!$C695 -> zone non échantillonnée : autre essence 2 | D138: 138
A139: do | C139: =Translation!$C696 -> zone non échantillonnée : autre essence 3 | D139: 139
A140: do | C140: =Translation!$C697 -> zone non échantillonnée : autre essence 4 | D140: 140
A141: do | C141: =Translation!$C698 -> zone non échantillonnée : autre essence 5 | D141: 141
A142: do | D142: 142
A143: f | C143: =Translation!$C$702&" - "&Translation!$C$680 -> essences autochtones - nombre | D143: 143 | E143: =IF(E30=0,"",SUM(COUNTA(E117:E141))) -> 5 | N143: =IF(N30=0,"",SUM(COUNTA(N117:N141))) ->  | BZ143: =IF(BZ30=0,"",SUM(COUNTA(BZ117:BZ141))) ->  | CU143: =IF(CU30=0,"",SUM(COUNTA(CU117:CU141))) ->  | FG143: =IF(FG30=0,"",SUM(COUNTA(FG117:FG141))) ->  | HS143: =IF(HS30=0,"",SUM(COUNTA(HS117:HS141))) ->  | KE143: =IF(KE30=0,"",SUM(COUNTA(KE117:KE141))) ->  | MH143: =IF(MH30=0,"",SUM(COUNTA(MH117:MH141))) ->  | OT143: =IF(OT30=0,"",SUM(COUNTA(OT117:OT141))) ->  | RF143: =IF(RF30=0,"",SUM(COUNTA(RF117:RF141))) ->  | TR143: =IF(TR30=0,"",SUM(COUNTA(TR117:TR141))) ->  | WD143: =IF(WD30=0,"",SUM(COUNTA(WD117:WD141))) ->  | YP143: =IF(YP30=0,"",SUM(COUNTA(YP117:YP141))) ->  | ABB143: =IF(ABB30=0,"",SUM(COUNTA(ABB117:ABB141))) ->  | ADB143: =IF(ADB30=0,"",SUM(COUNTA(ADB117:ADB141))) ->  | AFN143: =IF(AFN30=0,"",SUM(COUNTA(AFN117:AFN141))) ->  | AHZ143: =IF(AHZ30=0,"",SUM(COUNTA(AHZ117:AHZ141))) ->  | AKL143: =IF(AKL30=0,"",SUM(COUNTA(AKL117:AKL141))) -> 
A144: do | C144: =Translation!$C$703 -> Couvert de l'ensemble des autochtones | D144: 144 | E144: ≥ 50%
A145: do | D145: 145
A146: do | C146: =Translation!$C$704 -> Commentaires facteur A | D146: 146
A147: do | C147: =Translation!$C$670&" (1)" -> Score facteur A (1) | D147: 147 | E147: 5
A148: f | C148: ="B - "&Translation!$C586&" : "&Translation!$C715 -> B - Structure verticale de la végétation : cocher les strates ≥ 20% | D148: 148
A149: do | C149: =Translation!$C706 -> herbacée et semi-ligneuse | D149: 149 | E149: x
A150: do | C150: =Translation!$C707 -> ligneux très bas (< 1,5 m) | D150: 150 | E150: x
A151: do | C151: =Translation!$C708 -> ligneux bas | D151: 151 | E151: x
A152: do | C152: =Translation!$C709 -> ligneux intermédiaire | D152: 152 | E152: x
A153: do | C153: =Translation!$C710 -> ligneux haut | D153: 153 | E153: x
A154: f | C154: =Translation!$C$714&" - "&Translation!$C$680 -> strates - nombre | D154: 154 | E154: =IF(E30=0,"",IF(COUNT(E149:E153)>0,COUNTIF(E149:E153,">=20"),COUNTA(E149:E153))) -> 5 | M154: =IF(M30=0,"",IF(COUNT(M149:M153)>0,COUNTIF(M149:M153,">=20"),COUNTA(M149:M153))) ->  | BY154: =IF(BY30=0,"",IF(COUNT(BY149:BY153)>0,COUNTIF(BY149:BY153,">=20"),COUNTA(BY149:BY153))) ->  | CU154: =IF(CU30=0,"",IF(COUNT(CU149:CU153)>0,COUNTIF(CU149:CU153,">=20"),COUNTA(CU149:CU153))) ->  | FG154: =IF(FG30=0,"",IF(COUNT(FG149:FG153)>0,COUNTIF(FG149:FG153,">=20"),COUNTA(FG149:FG153))) ->  | HS154: =IF(HS30=0,"",IF(COUNT(HS149:HS153)>0,COUNTIF(HS149:HS153,">=20"),COUNTA(HS149:HS153))) ->  | KE154: =IF(KE30=0,"",IF(COUNT(KE149:KE153)>0,COUNTIF(KE149:KE153,">=20"),COUNTA(KE149:KE153))) ->  | MH154: =IF(MH30=0,"",IF(COUNT(MH149:MH153)>0,COUNTIF(MH149:MH153,">=20"),COUNTA(MH149:MH153))) ->  | OT154: =IF(OT30=0,"",IF(COUNT(OT149:OT153)>0,COUNTIF(OT149:OT153,">=20"),COUNTA(OT149:OT153))) ->  | RF154: =IF(RF30=0,"",IF(COUNT(RF149:RF153)>0,COUNTIF(RF149:RF153,">=20"),COUNTA(RF149:RF153))) ->  | TR154: =IF(TR30=0,"",IF(COUNT(TR149:TR153)>0,COUNTIF(TR149:TR153,">=20"),COUNTA(TR149:TR153))) ->  | WD154: =IF(WD30=0,"",IF(COUNT(WD149:WD153)>0,COUNTIF(WD149:WD153,">=20"),COUNTA(WD149:WD153))) ->  | YP154: =IF(YP30=0,"",IF(COUNT(YP149:YP153)>0,COUNTIF(YP149:YP153,">=20"),COUNTA(YP149:YP153))) ->  | ABB154: =IF(ABB30=0,"",IF(COUNT(ABB149:ABB153)>0,COUNTIF(ABB149:ABB153,">=20"),COUNTA(ABB149:ABB153))) ->  | ADB154: =IF(ADB30=0,"",IF(COUNT(ADB149:ADB153)>0,COUNTIF(ADB149:ADB153,">=20"),COUNTA(ADB149:ADB153))) ->  | AFN154: =IF(AFN30=0,"",IF(COUNT(AFN149:AFN153)>0,COUNTIF(AFN149:AFN153,">=20"),COUNTA(AFN149:AFN153))) ->  | AHZ154: =IF(AHZ30=0,"",IF(COUNT(AHZ149:AHZ153)>0,COUNTIF(AHZ149:AHZ153,">=20"),COUNTA(AHZ149:AHZ153))) ->  | AKL154: =IF(AKL30=0,"",IF(COUNT(AKL149:AKL153)>0,COUNTIF(AKL149:AKL153,">=20"),COUNTA(AKL149:AKL153))) -> 
A155: do | D155: 155
A156: do | C156: =Translation!$C$711 -> Commentaires facteur B | D156: 156
A157: do | C157: =Translation!$C$671&" (1)" -> Score facteur B (1) | D157: 157 | E157: 5
A158: f | C158: ="C - "&Translation!$C587&" : "&Translation!$C716 -> C - Bois morts sur pied de grosse dimension : indiquer le nombre de bois morts | D158: 158
A159: do | C159: =Translation!$C$717 -> Bois morts sur pied : grosse dimension (BMg) | D159: 159 | E159: 2
A160: f | D160: 160 | E160: =IF(E$30=0,"",E159/E$30) -> 2 | M160: =IF(M$30=0,"",M159/M$30) ->  | BY160: =IF(BY$30=0,"",BY159/BY$30) ->  | CU160: =IF(CU$30=0,"",CU159/CU$30) ->  | FG160: =IF(FG$30=0,"",FG159/FG$30) ->  | HS160: =IF(HS$30=0,"",HS159/HS$30) ->  | KE160: =IF(KE$30=0,"",KE159/KE$30) ->  | MH160: =IF(MH$30=0,"",MH159/MH$30) ->  | OT160: =IF(OT$30=0,"",OT159/OT$30) ->  | RF160: =IF(RF$30=0,"",RF159/RF$30) ->  | TR160: =IF(TR$30=0,"",TR159/TR$30) ->  | WD160: =IF(WD$30=0,"",WD159/WD$30) ->  | YP160: =IF(YP$30=0,"",YP159/YP$30) ->  | ABB160: =IF(ABB$30=0,"",ABB159/ABB$30) ->  | ADB160: =IF(ADB$30=0,"",ADB159/ADB$30) ->  | AFN160: =IF(AFN$30=0,"",AFN159/AFN$30) ->  | AHZ160: =IF(AHZ$30=0,"",AHZ159/AHZ$30) ->  | AKL160: =IF(AKL$30=0,"",AKL159/AKL$30) -> 
A161: do | C161: =Translation!$C$718 -> Bois morts sur pied : dimension moyenne (BMm) | D161: 161 | E161: 1
A162: f | D162: 162 | E162: =IF(E$30=0,"",E161/E$30) -> 1 | M162: =IF(M$30=0,"",M161/M$30) ->  | BY162: =IF(BY$30=0,"",BY161/BY$30) ->  | CU162: =IF(CU$30=0,"",CU161/CU$30) ->  | FG162: =IF(FG$30=0,"",FG161/FG$30) ->  | HS162: =IF(HS$30=0,"",HS161/HS$30) ->  | KE162: =IF(KE$30=0,"",KE161/KE$30) ->  | MH162: =IF(MH$30=0,"",MH161/MH$30) ->  | OT162: =IF(OT$30=0,"",OT161/OT$30) ->  | RF162: =IF(RF$30=0,"",RF161/RF$30) ->  | TR162: =IF(TR$30=0,"",TR161/TR$30) ->  | WD162: =IF(WD$30=0,"",WD161/WD$30) ->  | YP162: =IF(YP$30=0,"",YP161/YP$30) ->  | ABB162: =IF(ABB$30=0,"",ABB161/ABB$30) ->  | ADB162: =IF(ADB$30=0,"",ADB161/ADB$30) ->  | AFN162: =IF(AFN$30=0,"",AFN161/AFN$30) ->  | AHZ162: =IF(AHZ$30=0,"",AHZ161/AHZ$30) ->  | AKL162: =IF(AKL$30=0,"",AKL161/AKL$30) -> 
A163: do | D163: 163
A164: do | C164: =Translation!$C$719 -> Commentaires facteur C | D164: 164
A165: do | C165: =Translation!$C$672&" (1)" -> Score facteur C (1) | D165: 165 | E165: 2
A166: f | C166: ="D - "&Translation!$C588&" : "&Translation!$C716 -> D - Bois morts au sol de grosse dimension : indiquer le nombre de bois morts | D166: 166
A167: do | C167: =Translation!$C$720 -> Bois morts au sol : grosse dimension (BMg) | D167: 167 | E167: 4
A168: f | D168: 168 | E168: =IF(E$30=0,"",E167/E$30) -> 4 | M168: =IF(M$30=0,"",M167/M$30) ->  | BY168: =IF(BY$30=0,"",BY167/BY$30) ->  | CU168: =IF(CU$30=0,"",CU167/CU$30) ->  | FG168: =IF(FG$30=0,"",FG167/FG$30) ->  | HS168: =IF(HS$30=0,"",HS167/HS$30) ->  | KE168: =IF(KE$30=0,"",KE167/KE$30) ->  | MH168: =IF(MH$30=0,"",MH167/MH$30) ->  | OT168: =IF(OT$30=0,"",OT167/OT$30) ->  | RF168: =IF(RF$30=0,"",RF167/RF$30) ->  | TR168: =IF(TR$30=0,"",TR167/TR$30) ->  | WD168: =IF(WD$30=0,"",WD167/WD$30) ->  | YP168: =IF(YP$30=0,"",YP167/YP$30) ->  | ABB168: =IF(ABB$30=0,"",ABB167/ABB$30) ->  | ADB168: =IF(ADB$30=0,"",ADB167/ADB$30) ->  | AFN168: =IF(AFN$30=0,"",AFN167/AFN$30) ->  | AHZ168: =IF(AHZ$30=0,"",AHZ167/AHZ$30) ->  | AKL168: =IF(AKL$30=0,"",AKL167/AKL$30) -> 
A169: do | C169: =Translation!$C$721 -> Bois morts au sol : dimension moyenne (BMm) | D169: 169
A170: f | D170: 170 | E170: =IF(E$30=0,"",E169/E$30) -> 0 | M170: =IF(M$30=0,"",M169/M$30) ->  | BY170: =IF(BY$30=0,"",BY169/BY$30) ->  | CU170: =IF(CU$30=0,"",CU169/CU$30) ->  | FG170: =IF(FG$30=0,"",FG169/FG$30) ->  | HS170: =IF(HS$30=0,"",HS169/HS$30) ->  | KE170: =IF(KE$30=0,"",KE169/KE$30) ->  | MH170: =IF(MH$30=0,"",MH169/MH$30) ->  | OT170: =IF(OT$30=0,"",OT169/OT$30) ->  | RF170: =IF(RF$30=0,"",RF169/RF$30) ->  | TR170: =IF(TR$30=0,"",TR169/TR$30) ->  | WD170: =IF(WD$30=0,"",WD169/WD$30) ->  | YP170: =IF(YP$30=0,"",YP169/YP$30) ->  | ABB170: =IF(ABB$30=0,"",ABB169/ABB$30) ->  | ADB170: =IF(ADB$30=0,"",ADB169/ADB$30) ->  | AFN170: =IF(AFN$30=0,"",AFN169/AFN$30) ->  | AHZ170: =IF(AHZ$30=0,"",AHZ169/AHZ$30) ->  | AKL170: =IF(AKL$30=0,"",AKL169/AKL$30) -> 
A171: do | D171: 171
A172: do | C172: =Translation!$C$722 -> Commentaires facteur D | D172: 172
A173: do | C173: =Translation!$C$673&" (1)" -> Score facteur D (1) | D173: 173 | E173: 5
A174: f | C174: ="E - "&Translation!$C589&" : "&Translation!$C723 -> E - Très gros bois vivants : indiquer le nombre d'arbres | D174: 174
A175: do | C175: =Translation!$C$724 -> très gros bois (TGB) | D175: 175
A176: f | D176: 176 | E176: =IF(E$30=0,"",E175/E$30) -> 0 | M176: =IF(M$30=0,"",M175/M$30) ->  | BY176: =IF(BY$30=0,"",BY175/BY$30) ->  | CU176: =IF(CU$30=0,"",CU175/CU$30) ->  | FG176: =IF(FG$30=0,"",FG175/FG$30) ->  | HS176: =IF(HS$30=0,"",HS175/HS$30) ->  | KE176: =IF(KE$30=0,"",KE175/KE$30) ->  | MH176: =IF(MH$30=0,"",MH175/MH$30) ->  | OT176: =IF(OT$30=0,"",OT175/OT$30) ->  | RF176: =IF(RF$30=0,"",RF175/RF$30) ->  | TR176: =IF(TR$30=0,"",TR175/TR$30) ->  | WD176: =IF(WD$30=0,"",WD175/WD$30) ->  | YP176: =IF(YP$30=0,"",YP175/YP$30) ->  | ABB176: =IF(ABB$30=0,"",ABB175/ABB$30) ->  | ADB176: =IF(ADB$30=0,"",ADB175/ADB$30) ->  | AFN176: =IF(AFN$30=0,"",AFN175/AFN$30) ->  | AHZ176: =IF(AHZ$30=0,"",AHZ175/AHZ$30) ->  | AKL176: =IF(AKL$30=0,"",AKL175/AKL$30) -> 
A177: do | C177: =Translation!$C$725 -> gros bois (GB) | D177: 177 | E177: 2
A178: f | D178: 178 | E178: =IF(E$30=0,"",E177/E$30) -> 2 | M178: =IF(M$30=0,"",M177/M$30) ->  | BY178: =IF(BY$30=0,"",BY177/BY$30) ->  | CU178: =IF(CU$30=0,"",CU177/CU$30) ->  | FG178: =IF(FG$30=0,"",FG177/FG$30) ->  | HS178: =IF(HS$30=0,"",HS177/HS$30) ->  | KE178: =IF(KE$30=0,"",KE177/KE$30) ->  | MH178: =IF(MH$30=0,"",MH177/MH$30) ->  | OT178: =IF(OT$30=0,"",OT177/OT$30) ->  | RF178: =IF(RF$30=0,"",RF177/RF$30) ->  | TR178: =IF(TR$30=0,"",TR177/TR$30) ->  | WD178: =IF(WD$30=0,"",WD177/WD$30) ->  | YP178: =IF(YP$30=0,"",YP177/YP$30) ->  | ABB178: =IF(ABB$30=0,"",ABB177/ABB$30) ->  | ADB178: =IF(ADB$30=0,"",ADB177/ADB$30) ->  | AFN178: =IF(AFN$30=0,"",AFN177/AFN$30) ->  | AHZ178: =IF(AHZ$30=0,"",AHZ177/AHZ$30) ->  | AKL178: =IF(AKL$30=0,"",AKL177/AKL$30) -> 
A179: do | D179: 179
A180: do | C180: =Translation!$C$726 -> Commentaires facteur E | D180: 180
A181: do | C181: =Translation!$C$674&" (1)" -> Score facteur E (1) | D181: 181 | E181: 1
A182: f | C182: ="F - "&Translation!$C590&" : "&Translation!$C727 -> F - Arbres vivants porteurs de dendromicrohabitats : indiquer le nombre d'arbres (le total/ha est plafonné à 2 /ha/groupe) | D182: 182
A183: do | C183: =Translation!$C728 -> 1 - Loges de pic | D183: 183 | E183: 3
A184: f | D184: 184 | E184: =IF(E$30=0,"",IF(E183=0,0,IF(E183/E$30>2,2,E183/E$30))) -> 2 | G184: =IF(G$30=0,"",IF(G183=0,0,IF(G183/G$30>2,2,G183/G$30))) ->  | O184: =IF(O$30=0,"",IF(O183=0,0,IF(O183/O$30>2,2,O183/O$30))) ->  | BY184: =IF(BY$30=0,"",IF(BY183=0,0,IF(BY183/BY$30>2,2,BY183/BY$30))) ->  | CU184: =IF(CU$30=0,"",IF(CU183=0,0,IF(CU183/CU$30>2,2,CU183/CU$30))) ->  | FG184: =IF(FG$30=0,"",IF(FG183=0,0,IF(FG183/FG$30>2,2,FG183/FG$30))) ->  | HS184: =IF(HS$30=0,"",IF(HS183=0,0,IF(HS183/HS$30>2,2,HS183/HS$30))) ->  | KE184: =IF(KE$30=0,"",IF(KE183=0,0,IF(KE183/KE$30>2,2,KE183/KE$30))) ->  | MH184: =IF(MH$30=0,"",IF(MH183=0,0,IF(MH183/MH$30>2,2,MH183/MH$30))) ->  | OT184: =IF(OT$30=0,"",IF(OT183=0,0,IF(OT183/OT$30>2,2,OT183/OT$30))) ->  | RF184: =IF(RF$30=0,"",IF(RF183=0,0,IF(RF183/RF$30>2,2,RF183/RF$30))) ->  | TR184: =IF(TR$30=0,"",IF(TR183=0,0,IF(TR183/TR$30>2,2,TR183/TR$30))) ->  | WD184: =IF(WD$30=0,"",IF(WD183=0,0,IF(WD183/WD$30>2,2,WD183/WD$30))) ->  | YP184: =IF(YP$30=0,"",IF(YP183=0,0,IF(YP183/YP$30>2,2,YP183/YP$30))) ->  | ABB184: =IF(ABB$30=0,"",IF(ABB183=0,0,IF(ABB183/ABB$30>2,2,ABB183/ABB$30))) ->  | ADB184: =IF(ADB$30=0,"",IF(ADB183=0,0,IF(ADB183/ADB$30>2,2,ADB183/ADB$30))) ->  | AFN184: =IF(AFN$30=0,"",IF(AFN183=0,0,IF(AFN183/AFN$30>2,2,AFN183/AFN$30))) ->  | AHZ184: =IF(AHZ$30=0,"",IF(AHZ183=0,0,IF(AHZ183/AHZ$30>2,2,AHZ183/AHZ$30))) ->  | AKL184: =IF(AKL$30=0,"",IF(AKL183=0,0,IF(AKL183/AKL$30>2,2,AKL183/AKL$30))) -> 
A185: do | C185: =Translation!$C729 -> 2 - Cavités à terreau | D185: 185 | E185: 1
A186: f | D186: 186 | E186: =IF(E$30=0,"",IF(E185=0,0,IF(E185/E$30>2,2,E185/E$30))) -> 1 | G186: =IF(G$30=0,"",IF(G185=0,0,IF(G185/G$30>2,2,G185/G$30))) ->  | O186: =IF(O$30=0,"",IF(O185=0,0,IF(O185/O$30>2,2,O185/O$30))) ->  | BY186: =IF(BY$30=0,"",IF(BY185=0,0,IF(BY185/BY$30>2,2,BY185/BY$30))) ->  | CU186: =IF(CU$30=0,"",IF(CU185=0,0,IF(CU185/CU$30>2,2,CU185/CU$30))) ->  | FG186: =IF(FG$30=0,"",IF(FG185=0,0,IF(FG185/FG$30>2,2,FG185/FG$30))) ->  | HS186: =IF(HS$30=0,"",IF(HS185=0,0,IF(HS185/HS$30>2,2,HS185/HS$30))) ->  | KE186: =IF(KE$30=0,"",IF(KE185=0,0,IF(KE185/KE$30>2,2,KE185/KE$30))) ->  | MH186: =IF(MH$30=0,"",IF(MH185=0,0,IF(MH185/MH$30>2,2,MH185/MH$30))) ->  | OT186: =IF(OT$30=0,"",IF(OT185=0,0,IF(OT185/OT$30>2,2,OT185/OT$30))) ->  | RF186: =IF(RF$30=0,"",IF(RF185=0,0,IF(RF185/RF$30>2,2,RF185/RF$30))) ->  | TR186: =IF(TR$30=0,"",IF(TR185=0,0,IF(TR185/TR$30>2,2,TR185/TR$30))) ->  | WD186: =IF(WD$30=0,"",IF(WD185=0,0,IF(WD185/WD$30>2,2,WD185/WD$30))) ->  | YP186: =IF(YP$30=0,"",IF(YP185=0,0,IF(YP185/YP$30>2,2,YP185/YP$30))) ->  | ABB186: =IF(ABB$30=0,"",IF(ABB185=0,0,IF(ABB185/ABB$30>2,2,ABB185/ABB$30))) ->  | ADB186: =IF(ADB$30=0,"",IF(ADB185=0,0,IF(ADB185/ADB$30>2,2,ADB185/ADB$30))) ->  | AFN186: =IF(AFN$30=0,"",IF(AFN185=0,0,IF(AFN185/AFN$30>2,2,AFN185/AFN$30))) ->  | AHZ186: =IF(AHZ$30=0,"",IF(AHZ185=0,0,IF(AHZ185/AHZ$30>2,2,AHZ185/AHZ$30))) ->  | AKL186: =IF(AKL$30=0,"",IF(AKL185=0,0,IF(AKL185/AKL$30>2,2,AKL185/AKL$30))) -> 
A187: do | C187: =Translation!$C730 -> 4 - Orifices et galeries d'insectes | D187: 187
A188: f | D188: 188 | E188: =IF(E$30=0,"",IF(E187=0,0,IF(E187/E$30>2,2,E187/E$30))) -> 0 | G188: =IF(G$30=0,"",IF(G187=0,0,IF(G187/G$30>2,2,G187/G$30))) ->  | O188: =IF(O$30=0,"",IF(O187=0,0,IF(O187/O$30>2,2,O187/O$30))) ->  | BY188: =IF(BY$30=0,"",IF(BY187=0,0,IF(BY187/BY$30>2,2,BY187/BY$30))) ->  | CU188: =IF(CU$30=0,"",IF(CU187=0,0,IF(CU187/CU$30>2,2,CU187/CU$30))) ->  | FG188: =IF(FG$30=0,"",IF(FG187=0,0,IF(FG187/FG$30>2,2,FG187/FG$30))) ->  | HS188: =IF(HS$30=0,"",IF(HS187=0,0,IF(HS187/HS$30>2,2,HS187/HS$30))) ->  | KE188: =IF(KE$30=0,"",IF(KE187=0,0,IF(KE187/KE$30>2,2,KE187/KE$30))) ->  | MH188: =IF(MH$30=0,"",IF(MH187=0,0,IF(MH187/MH$30>2,2,MH187/MH$30))) ->  | OT188: =IF(OT$30=0,"",IF(OT187=0,0,IF(OT187/OT$30>2,2,OT187/OT$30))) ->  | RF188: =IF(RF$30=0,"",IF(RF187=0,0,IF(RF187/RF$30>2,2,RF187/RF$30))) ->  | TR188: =IF(TR$30=0,"",IF(TR187=0,0,IF(TR187/TR$30>2,2,TR187/TR$30))) ->  | WD188: =IF(WD$30=0,"",IF(WD187=0,0,IF(WD187/WD$30>2,2,WD187/WD$30))) ->  | YP188: =IF(YP$30=0,"",IF(YP187=0,0,IF(YP187/YP$30>2,2,YP187/YP$30))) ->  | ABB188: =IF(ABB$30=0,"",IF(ABB187=0,0,IF(ABB187/ABB$30>2,2,ABB187/ABB$30))) ->  | ADB188: =IF(ADB$30=0,"",IF(ADB187=0,0,IF(ADB187/ADB$30>2,2,ADB187/ADB$30))) ->  | AFN188: =IF(AFN$30=0,"",IF(AFN187=0,0,IF(AFN187/AFN$30>2,2,AFN187/AFN$30))) ->  | AHZ188: =IF(AHZ$30=0,"",IF(AHZ187=0,0,IF(AHZ187/AHZ$30>2,2,AHZ187/AHZ$30))) ->  | AKL188: =IF(AKL$30=0,"",IF(AKL187=0,0,IF(AKL187/AKL$30>2,2,AKL187/AKL$30))) -> 
A189: do | C189: =Translation!$C731 -> 4 - Concavités | D189: 189
A190: f | D190: 190 | E190: =IF(E$30=0,"",IF(E189=0,0,IF(E189/E$30>2,2,E189/E$30))) -> 0 | G190: =IF(G$30=0,"",IF(G189=0,0,IF(G189/G$30>2,2,G189/G$30))) ->  | O190: =IF(O$30=0,"",IF(O189=0,0,IF(O189/O$30>2,2,O189/O$30))) ->  | BY190: =IF(BY$30=0,"",IF(BY189=0,0,IF(BY189/BY$30>2,2,BY189/BY$30))) ->  | CU190: =IF(CU$30=0,"",IF(CU189=0,0,IF(CU189/CU$30>2,2,CU189/CU$30))) ->  | FG190: =IF(FG$30=0,"",IF(FG189=0,0,IF(FG189/FG$30>2,2,FG189/FG$30))) ->  | HS190: =IF(HS$30=0,"",IF(HS189=0,0,IF(HS189/HS$30>2,2,HS189/HS$30))) ->  | KE190: =IF(KE$30=0,"",IF(KE189=0,0,IF(KE189/KE$30>2,2,KE189/KE$30))) ->  | MH190: =IF(MH$30=0,"",IF(MH189=0,0,IF(MH189/MH$30>2,2,MH189/MH$30))) ->  | OT190: =IF(OT$30=0,"",IF(OT189=0,0,IF(OT189/OT$30>2,2,OT189/OT$30))) ->  | RF190: =IF(RF$30=0,"",IF(RF189=0,0,IF(RF189/RF$30>2,2,RF189/RF$30))) ->  | TR190: =IF(TR$30=0,"",IF(TR189=0,0,IF(TR189/TR$30>2,2,TR189/TR$30))) ->  | WD190: =IF(WD$30=0,"",IF(WD189=0,0,IF(WD189/WD$30>2,2,WD189/WD$30))) ->  | YP190: =IF(YP$30=0,"",IF(YP189=0,0,IF(YP189/YP$30>2,2,YP189/YP$30))) ->  | ABB190: =IF(ABB$30=0,"",IF(ABB189=0,0,IF(ABB189/ABB$30>2,2,ABB189/ABB$30))) ->  | ADB190: =IF(ADB$30=0,"",IF(ADB189=0,0,IF(ADB189/ADB$30>2,2,ADB189/ADB$30))) ->  | AFN190: =IF(AFN$30=0,"",IF(AFN189=0,0,IF(AFN189/AFN$30>2,2,AFN189/AFN$30))) ->  | AHZ190: =IF(AHZ$30=0,"",IF(AHZ189=0,0,IF(AHZ189/AHZ$30>2,2,AHZ189/AHZ$30))) ->  | AKL190: =IF(AKL$30=0,"",IF(AKL189=0,0,IF(AKL189/AKL$30>2,2,AKL189/AKL$30))) -> 
A191: do | C191: =Translation!$C732 -> 5 - Aubier apparent | D191: 191
A192: f | D192: 192 | E192: =IF(E$30=0,"",IF(E191=0,0,IF(E191/E$30>2,2,E191/E$30))) -> 0 | G192: =IF(G$30=0,"",IF(G191=0,0,IF(G191/G$30>2,2,G191/G$30))) ->  | O192: =IF(O$30=0,"",IF(O191=0,0,IF(O191/O$30>2,2,O191/O$30))) ->  | BY192: =IF(BY$30=0,"",IF(BY191=0,0,IF(BY191/BY$30>2,2,BY191/BY$30))) ->  | CU192: =IF(CU$30=0,"",IF(CU191=0,0,IF(CU191/CU$30>2,2,CU191/CU$30))) ->  | FG192: =IF(FG$30=0,"",IF(FG191=0,0,IF(FG191/FG$30>2,2,FG191/FG$30))) ->  | HS192: =IF(HS$30=0,"",IF(HS191=0,0,IF(HS191/HS$30>2,2,HS191/HS$30))) ->  | KE192: =IF(KE$30=0,"",IF(KE191=0,0,IF(KE191/KE$30>2,2,KE191/KE$30))) ->  | MH192: =IF(MH$30=0,"",IF(MH191=0,0,IF(MH191/MH$30>2,2,MH191/MH$30))) ->  | OT192: =IF(OT$30=0,"",IF(OT191=0,0,IF(OT191/OT$30>2,2,OT191/OT$30))) ->  | RF192: =IF(RF$30=0,"",IF(RF191=0,0,IF(RF191/RF$30>2,2,RF191/RF$30))) ->  | TR192: =IF(TR$30=0,"",IF(TR191=0,0,IF(TR191/TR$30>2,2,TR191/TR$30))) ->  | WD192: =IF(WD$30=0,"",IF(WD191=0,0,IF(WD191/WD$30>2,2,WD191/WD$30))) ->  | YP192: =IF(YP$30=0,"",IF(YP191=0,0,IF(YP191/YP$30>2,2,YP191/YP$30))) ->  | ABB192: =IF(ABB$30=0,"",IF(ABB191=0,0,IF(ABB191/ABB$30>2,2,ABB191/ABB$30))) ->  | ADB192: =IF(ADB$30=0,"",IF(ADB191=0,0,IF(ADB191/ADB$30>2,2,ADB191/ADB$30))) ->  | AFN192: =IF(AFN$30=0,"",IF(AFN191=0,0,IF(AFN191/AFN$30>2,2,AFN191/AFN$30))) ->  | AHZ192: =IF(AHZ$30=0,"",IF(AHZ191=0,0,IF(AHZ191/AHZ$30>2,2,AHZ191/AHZ$30))) ->  | AKL192: =IF(AKL$30=0,"",IF(AKL191=0,0,IF(AKL191/AKL$30>2,2,AKL191/AKL$30))) -> 
A193: do | C193: =Translation!$C733 -> 6 - Aubier et bois de cœur apparents | D193: 193 | E193: 1
A194: f | D194: 194 | E194: =IF(E$30=0,"",IF(E193=0,0,IF(E193/E$30>2,2,E193/E$30))) -> 1 | G194: =IF(G$30=0,"",IF(G193=0,0,IF(G193/G$30>2,2,G193/G$30))) ->  | O194: =IF(O$30=0,"",IF(O193=0,0,IF(O193/O$30>2,2,O193/O$30))) ->  | BY194: =IF(BY$30=0,"",IF(BY193=0,0,IF(BY193/BY$30>2,2,BY193/BY$30))) ->  | CU194: =IF(CU$30=0,"",IF(CU193=0,0,IF(CU193/CU$30>2,2,CU193/CU$30))) ->  | FG194: =IF(FG$30=0,"",IF(FG193=0,0,IF(FG193/FG$30>2,2,FG193/FG$30))) ->  | HS194: =IF(HS$30=0,"",IF(HS193=0,0,IF(HS193/HS$30>2,2,HS193/HS$30))) ->  | KE194: =IF(KE$30=0,"",IF(KE193=0,0,IF(KE193/KE$30>2,2,KE193/KE$30))) ->  | MH194: =IF(MH$30=0,"",IF(MH193=0,0,IF(MH193/MH$30>2,2,MH193/MH$30))) ->  | OT194: =IF(OT$30=0,"",IF(OT193=0,0,IF(OT193/OT$30>2,2,OT193/OT$30))) ->  | RF194: =IF(RF$30=0,"",IF(RF193=0,0,IF(RF193/RF$30>2,2,RF193/RF$30))) ->  | TR194: =IF(TR$30=0,"",IF(TR193=0,0,IF(TR193/TR$30>2,2,TR193/TR$30))) ->  | WD194: =IF(WD$30=0,"",IF(WD193=0,0,IF(WD193/WD$30>2,2,WD193/WD$30))) ->  | YP194: =IF(YP$30=0,"",IF(YP193=0,0,IF(YP193/YP$30>2,2,YP193/YP$30))) ->  | ABB194: =IF(ABB$30=0,"",IF(ABB193=0,0,IF(ABB193/ABB$30>2,2,ABB193/ABB$30))) ->  | ADB194: =IF(ADB$30=0,"",IF(ADB193=0,0,IF(ADB193/ADB$30>2,2,ADB193/ADB$30))) ->  | AFN194: =IF(AFN$30=0,"",IF(AFN193=0,0,IF(AFN193/AFN$30>2,2,AFN193/AFN$30))) ->  | AHZ194: =IF(AHZ$30=0,"",IF(AHZ193=0,0,IF(AHZ193/AHZ$30>2,2,AHZ193/AHZ$30))) ->  | AKL194: =IF(AKL$30=0,"",IF(AKL193=0,0,IF(AKL193/AKL$30>2,2,AKL193/AKL$30))) -> 
A195: do | C195: =Translation!$C734 -> 7 - Bois mort dans le houppier | D195: 195 | E195: 1
A196: f | D196: 196 | E196: =IF(E$30=0,"",IF(E195=0,0,IF(E195/E$30>2,2,E195/E$30))) -> 1 | G196: =IF(G$30=0,"",IF(G195=0,0,IF(G195/G$30>2,2,G195/G$30))) ->  | O196: =IF(O$30=0,"",IF(O195=0,0,IF(O195/O$30>2,2,O195/O$30))) ->  | BY196: =IF(BY$30=0,"",IF(BY195=0,0,IF(BY195/BY$30>2,2,BY195/BY$30))) ->  | CU196: =IF(CU$30=0,"",IF(CU195=0,0,IF(CU195/CU$30>2,2,CU195/CU$30))) ->  | FG196: =IF(FG$30=0,"",IF(FG195=0,0,IF(FG195/FG$30>2,2,FG195/FG$30))) ->  | HS196: =IF(HS$30=0,"",IF(HS195=0,0,IF(HS195/HS$30>2,2,HS195/HS$30))) ->  | KE196: =IF(KE$30=0,"",IF(KE195=0,0,IF(KE195/KE$30>2,2,KE195/KE$30))) ->  | MH196: =IF(MH$30=0,"",IF(MH195=0,0,IF(MH195/MH$30>2,2,MH195/MH$30))) ->  | OT196: =IF(OT$30=0,"",IF(OT195=0,0,IF(OT195/OT$30>2,2,OT195/OT$30))) ->  | RF196: =IF(RF$30=0,"",IF(RF195=0,0,IF(RF195/RF$30>2,2,RF195/RF$30))) ->  | TR196: =IF(TR$30=0,"",IF(TR195=0,0,IF(TR195/TR$30>2,2,TR195/TR$30))) ->  | WD196: =IF(WD$30=0,"",IF(WD195=0,0,IF(WD195/WD$30>2,2,WD195/WD$30))) ->  | YP196: =IF(YP$30=0,"",IF(YP195=0,0,IF(YP195/YP$30>2,2,YP195/YP$30))) ->  | ABB196: =IF(ABB$30=0,"",IF(ABB195=0,0,IF(ABB195/ABB$30>2,2,ABB195/ABB$30))) ->  | ADB196: =IF(ADB$30=0,"",IF(ADB195=0,0,IF(ADB195/ADB$30>2,2,ADB195/ADB$30))) ->  | AFN196: =IF(AFN$30=0,"",IF(AFN195=0,0,IF(AFN195/AFN$30>2,2,AFN195/AFN$30))) ->  | AHZ196: =IF(AHZ$30=0,"",IF(AHZ195=0,0,IF(AHZ195/AHZ$30>2,2,AHZ195/AHZ$30))) ->  | AKL196: =IF(AKL$30=0,"",IF(AKL195=0,0,IF(AKL195/AKL$30>2,2,AKL195/AKL$30))) -> 
A197: do | C197: =Translation!$C735 -> 8 - Agglomérations de gourmands ou de rameaux | D197: 197
A198: f | D198: 198 | E198: =IF(E$30=0,"",IF(E197=0,0,IF(E197/E$30>2,2,E197/E$30))) -> 0 | G198: =IF(G$30=0,"",IF(G197=0,0,IF(G197/G$30>2,2,G197/G$30))) ->  | O198: =IF(O$30=0,"",IF(O197=0,0,IF(O197/O$30>2,2,O197/O$30))) ->  | BY198: =IF(BY$30=0,"",IF(BY197=0,0,IF(BY197/BY$30>2,2,BY197/BY$30))) ->  | CU198: =IF(CU$30=0,"",IF(CU197=0,0,IF(CU197/CU$30>2,2,CU197/CU$30))) ->  | FG198: =IF(FG$30=0,"",IF(FG197=0,0,IF(FG197/FG$30>2,2,FG197/FG$30))) ->  | HS198: =IF(HS$30=0,"",IF(HS197=0,0,IF(HS197/HS$30>2,2,HS197/HS$30))) ->  | KE198: =IF(KE$30=0,"",IF(KE197=0,0,IF(KE197/KE$30>2,2,KE197/KE$30))) ->  | MH198: =IF(MH$30=0,"",IF(MH197=0,0,IF(MH197/MH$30>2,2,MH197/MH$30))) ->  | OT198: =IF(OT$30=0,"",IF(OT197=0,0,IF(OT197/OT$30>2,2,OT197/OT$30))) ->  | RF198: =IF(RF$30=0,"",IF(RF197=0,0,IF(RF197/RF$30>2,2,RF197/RF$30))) ->  | TR198: =IF(TR$30=0,"",IF(TR197=0,0,IF(TR197/TR$30>2,2,TR197/TR$30))) ->  | WD198: =IF(WD$30=0,"",IF(WD197=0,0,IF(WD197/WD$30>2,2,WD197/WD$30))) ->  | YP198: =IF(YP$30=0,"",IF(YP197=0,0,IF(YP197/YP$30>2,2,YP197/YP$30))) ->  | ABB198: =IF(ABB$30=0,"",IF(ABB197=0,0,IF(ABB197/ABB$30>2,2,ABB197/ABB$30))) ->  | ADB198: =IF(ADB$30=0,"",IF(ADB197=0,0,IF(ADB197/ADB$30>2,2,ADB197/ADB$30))) ->  | AFN198: =IF(AFN$30=0,"",IF(AFN197=0,0,IF(AFN197/AFN$30>2,2,AFN197/AFN$30))) ->  | AHZ198: =IF(AHZ$30=0,"",IF(AHZ197=0,0,IF(AHZ197/AHZ$30>2,2,AHZ197/AHZ$30))) ->  | AKL198: =IF(AKL$30=0,"",IF(AKL197=0,0,IF(AKL197/AKL$30>2,2,AKL197/AKL$30))) -> 
A199: do | C199: =Translation!$C736 -> 9 - Loupes et chancres | D199: 199
A200: f | D200: 200 | E200: =IF(E$30=0,"",IF(E199=0,0,IF(E199/E$30>2,2,E199/E$30))) -> 0 | G200: =IF(G$30=0,"",IF(G199=0,0,IF(G199/G$30>2,2,G199/G$30))) ->  | O200: =IF(O$30=0,"",IF(O199=0,0,IF(O199/O$30>2,2,O199/O$30))) ->  | BY200: =IF(BY$30=0,"",IF(BY199=0,0,IF(BY199/BY$30>2,2,BY199/BY$30))) ->  | CU200: =IF(CU$30=0,"",IF(CU199=0,0,IF(CU199/CU$30>2,2,CU199/CU$30))) ->  | FG200: =IF(FG$30=0,"",IF(FG199=0,0,IF(FG199/FG$30>2,2,FG199/FG$30))) ->  | HS200: =IF(HS$30=0,"",IF(HS199=0,0,IF(HS199/HS$30>2,2,HS199/HS$30))) ->  | KE200: =IF(KE$30=0,"",IF(KE199=0,0,IF(KE199/KE$30>2,2,KE199/KE$30))) ->  | MH200: =IF(MH$30=0,"",IF(MH199=0,0,IF(MH199/MH$30>2,2,MH199/MH$30))) ->  | OT200: =IF(OT$30=0,"",IF(OT199=0,0,IF(OT199/OT$30>2,2,OT199/OT$30))) ->  | RF200: =IF(RF$30=0,"",IF(RF199=0,0,IF(RF199/RF$30>2,2,RF199/RF$30))) ->  | TR200: =IF(TR$30=0,"",IF(TR199=0,0,IF(TR199/TR$30>2,2,TR199/TR$30))) ->  | WD200: =IF(WD$30=0,"",IF(WD199=0,0,IF(WD199/WD$30>2,2,WD199/WD$30))) ->  | YP200: =IF(YP$30=0,"",IF(YP199=0,0,IF(YP199/YP$30>2,2,YP199/YP$30))) ->  | ABB200: =IF(ABB$30=0,"",IF(ABB199=0,0,IF(ABB199/ABB$30>2,2,ABB199/ABB$30))) ->  | ADB200: =IF(ADB$30=0,"",IF(ADB199=0,0,IF(ADB199/ADB$30>2,2,ADB199/ADB$30))) ->  | AFN200: =IF(AFN$30=0,"",IF(AFN199=0,0,IF(AFN199/AFN$30>2,2,AFN199/AFN$30))) ->  | AHZ200: =IF(AHZ$30=0,"",IF(AHZ199=0,0,IF(AHZ199/AHZ$30>2,2,AHZ199/AHZ$30))) ->  | AKL200: =IF(AKL$30=0,"",IF(AKL199=0,0,IF(AKL199/AKL$30>2,2,AKL199/AKL$30))) -> 
A201: do | C201: =Translation!$C737 -> 10 - Sporophores de champignons pérennes | D201: 201
A202: f | D202: 202 | E202: =IF(E$30=0,"",IF(E201=0,0,IF(E201/E$30>2,2,E201/E$30))) -> 0 | G202: =IF(G$30=0,"",IF(G201=0,0,IF(G201/G$30>2,2,G201/G$30))) ->  | O202: =IF(O$30=0,"",IF(O201=0,0,IF(O201/O$30>2,2,O201/O$30))) ->  | BY202: =IF(BY$30=0,"",IF(BY201=0,0,IF(BY201/BY$30>2,2,BY201/BY$30))) ->  | CU202: =IF(CU$30=0,"",IF(CU201=0,0,IF(CU201/CU$30>2,2,CU201/CU$30))) ->  | FG202: =IF(FG$30=0,"",IF(FG201=0,0,IF(FG201/FG$30>2,2,FG201/FG$30))) ->  | HS202: =IF(HS$30=0,"",IF(HS201=0,0,IF(HS201/HS$30>2,2,HS201/HS$30))) ->  | KE202: =IF(KE$30=0,"",IF(KE201=0,0,IF(KE201/KE$30>2,2,KE201/KE$30))) ->  | MH202: =IF(MH$30=0,"",IF(MH201=0,0,IF(MH201/MH$30>2,2,MH201/MH$30))) ->  | OT202: =IF(OT$30=0,"",IF(OT201=0,0,IF(OT201/OT$30>2,2,OT201/OT$30))) ->  | RF202: =IF(RF$30=0,"",IF(RF201=0,0,IF(RF201/RF$30>2,2,RF201/RF$30))) ->  | TR202: =IF(TR$30=0,"",IF(TR201=0,0,IF(TR201/TR$30>2,2,TR201/TR$30))) ->  | WD202: =IF(WD$30=0,"",IF(WD201=0,0,IF(WD201/WD$30>2,2,WD201/WD$30))) ->  | YP202: =IF(YP$30=0,"",IF(YP201=0,0,IF(YP201/YP$30>2,2,YP201/YP$30))) ->  | ABB202: =IF(ABB$30=0,"",IF(ABB201=0,0,IF(ABB201/ABB$30>2,2,ABB201/ABB$30))) ->  | ADB202: =IF(ADB$30=0,"",IF(ADB201=0,0,IF(ADB201/ADB$30>2,2,ADB201/ADB$30))) ->  | AFN202: =IF(AFN$30=0,"",IF(AFN201=0,0,IF(AFN201/AFN$30>2,2,AFN201/AFN$30))) ->  | AHZ202: =IF(AHZ$30=0,"",IF(AHZ201=0,0,IF(AHZ201/AHZ$30>2,2,AHZ201/AHZ$30))) ->  | AKL202: =IF(AKL$30=0,"",IF(AKL201=0,0,IF(AKL201/AKL$30>2,2,AKL201/AKL$30))) -> 
A203: do | C203: =Translation!$C738 -> 11 - Sporophores de champignons éphémères | D203: 203
A204: f | D204: 204 | E204: =IF(E$30=0,"",IF(E203=0,0,IF(E203/E$30>2,2,E203/E$30))) -> 0 | G204: =IF(G$30=0,"",IF(G203=0,0,IF(G203/G$30>2,2,G203/G$30))) ->  | O204: =IF(O$30=0,"",IF(O203=0,0,IF(O203/O$30>2,2,O203/O$30))) ->  | BY204: =IF(BY$30=0,"",IF(BY203=0,0,IF(BY203/BY$30>2,2,BY203/BY$30))) ->  | CU204: =IF(CU$30=0,"",IF(CU203=0,0,IF(CU203/CU$30>2,2,CU203/CU$30))) ->  | FG204: =IF(FG$30=0,"",IF(FG203=0,0,IF(FG203/FG$30>2,2,FG203/FG$30))) ->  | HS204: =IF(HS$30=0,"",IF(HS203=0,0,IF(HS203/HS$30>2,2,HS203/HS$30))) ->  | KE204: =IF(KE$30=0,"",IF(KE203=0,0,IF(KE203/KE$30>2,2,KE203/KE$30))) ->  | MH204: =IF(MH$30=0,"",IF(MH203=0,0,IF(MH203/MH$30>2,2,MH203/MH$30))) ->  | OT204: =IF(OT$30=0,"",IF(OT203=0,0,IF(OT203/OT$30>2,2,OT203/OT$30))) ->  | RF204: =IF(RF$30=0,"",IF(RF203=0,0,IF(RF203/RF$30>2,2,RF203/RF$30))) ->  | TR204: =IF(TR$30=0,"",IF(TR203=0,0,IF(TR203/TR$30>2,2,TR203/TR$30))) ->  | WD204: =IF(WD$30=0,"",IF(WD203=0,0,IF(WD203/WD$30>2,2,WD203/WD$30))) ->  | YP204: =IF(YP$30=0,"",IF(YP203=0,0,IF(YP203/YP$30>2,2,YP203/YP$30))) ->  | ABB204: =IF(ABB$30=0,"",IF(ABB203=0,0,IF(ABB203/ABB$30>2,2,ABB203/ABB$30))) ->  | ADB204: =IF(ADB$30=0,"",IF(ADB203=0,0,IF(ADB203/ADB$30>2,2,ADB203/ADB$30))) ->  | AFN204: =IF(AFN$30=0,"",IF(AFN203=0,0,IF(AFN203/AFN$30>2,2,AFN203/AFN$30))) ->  | AHZ204: =IF(AHZ$30=0,"",IF(AHZ203=0,0,IF(AHZ203/AHZ$30>2,2,AHZ203/AHZ$30))) ->  | AKL204: =IF(AKL$30=0,"",IF(AKL203=0,0,IF(AKL203/AKL$30>2,2,AKL203/AKL$30))) -> 
A205: do | C205: =Translation!$C739 -> 12 - Plantes et lichens épiphytiques ou parasites | D205: 205 | E205: 2
A206: f | D206: 206 | E206: =IF(E$30=0,"",IF(E205=0,0,IF(E205/E$30>2,2,E205/E$30))) -> 2 | G206: =IF(G$30=0,"",IF(G205=0,0,IF(G205/G$30>2,2,G205/G$30))) ->  | O206: =IF(O$30=0,"",IF(O205=0,0,IF(O205/O$30>2,2,O205/O$30))) ->  | BY206: =IF(BY$30=0,"",IF(BY205=0,0,IF(BY205/BY$30>2,2,BY205/BY$30))) ->  | CU206: =IF(CU$30=0,"",IF(CU205=0,0,IF(CU205/CU$30>2,2,CU205/CU$30))) ->  | FG206: =IF(FG$30=0,"",IF(FG205=0,0,IF(FG205/FG$30>2,2,FG205/FG$30))) ->  | HS206: =IF(HS$30=0,"",IF(HS205=0,0,IF(HS205/HS$30>2,2,HS205/HS$30))) ->  | KE206: =IF(KE$30=0,"",IF(KE205=0,0,IF(KE205/KE$30>2,2,KE205/KE$30))) ->  | MH206: =IF(MH$30=0,"",IF(MH205=0,0,IF(MH205/MH$30>2,2,MH205/MH$30))) ->  | OT206: =IF(OT$30=0,"",IF(OT205=0,0,IF(OT205/OT$30>2,2,OT205/OT$30))) ->  | RF206: =IF(RF$30=0,"",IF(RF205=0,0,IF(RF205/RF$30>2,2,RF205/RF$30))) ->  | TR206: =IF(TR$30=0,"",IF(TR205=0,0,IF(TR205/TR$30>2,2,TR205/TR$30))) ->  | WD206: =IF(WD$30=0,"",IF(WD205=0,0,IF(WD205/WD$30>2,2,WD205/WD$30))) ->  | YP206: =IF(YP$30=0,"",IF(YP205=0,0,IF(YP205/YP$30>2,2,YP205/YP$30))) ->  | ABB206: =IF(ABB$30=0,"",IF(ABB205=0,0,IF(ABB205/ABB$30>2,2,ABB205/ABB$30))) ->  | ADB206: =IF(ADB$30=0,"",IF(ADB205=0,0,IF(ADB205/ADB$30>2,2,ADB205/ADB$30))) ->  | AFN206: =IF(AFN$30=0,"",IF(AFN205=0,0,IF(AFN205/AFN$30>2,2,AFN205/AFN$30))) ->  | AHZ206: =IF(AHZ$30=0,"",IF(AHZ205=0,0,IF(AHZ205/AHZ$30>2,2,AHZ205/AHZ$30))) ->  | AKL206: =IF(AKL$30=0,"",IF(AKL205=0,0,IF(AKL205/AKL$30>2,2,AKL205/AKL$30))) -> 
A207: do | C207: =Translation!$C740 -> 13 - Nids | D207: 207
A208: f | D208: 208 | E208: =IF(E$30=0,"",IF(E207=0,0,IF(E207/E$30>2,2,E207/E$30))) -> 0 | G208: =IF(G$30=0,"",IF(G207=0,0,IF(G207/G$30>2,2,G207/G$30))) ->  | O208: =IF(O$30=0,"",IF(O207=0,0,IF(O207/O$30>2,2,O207/O$30))) ->  | BY208: =IF(BY$30=0,"",IF(BY207=0,0,IF(BY207/BY$30>2,2,BY207/BY$30))) ->  | CU208: =IF(CU$30=0,"",IF(CU207=0,0,IF(CU207/CU$30>2,2,CU207/CU$30))) ->  | FG208: =IF(FG$30=0,"",IF(FG207=0,0,IF(FG207/FG$30>2,2,FG207/FG$30))) ->  | HS208: =IF(HS$30=0,"",IF(HS207=0,0,IF(HS207/HS$30>2,2,HS207/HS$30))) ->  | KE208: =IF(KE$30=0,"",IF(KE207=0,0,IF(KE207/KE$30>2,2,KE207/KE$30))) ->  | MH208: =IF(MH$30=0,"",IF(MH207=0,0,IF(MH207/MH$30>2,2,MH207/MH$30))) ->  | OT208: =IF(OT$30=0,"",IF(OT207=0,0,IF(OT207/OT$30>2,2,OT207/OT$30))) ->  | RF208: =IF(RF$30=0,"",IF(RF207=0,0,IF(RF207/RF$30>2,2,RF207/RF$30))) ->  | TR208: =IF(TR$30=0,"",IF(TR207=0,0,IF(TR207/TR$30>2,2,TR207/TR$30))) ->  | WD208: =IF(WD$30=0,"",IF(WD207=0,0,IF(WD207/WD$30>2,2,WD207/WD$30))) ->  | YP208: =IF(YP$30=0,"",IF(YP207=0,0,IF(YP207/YP$30>2,2,YP207/YP$30))) ->  | ABB208: =IF(ABB$30=0,"",IF(ABB207=0,0,IF(ABB207/ABB$30>2,2,ABB207/ABB$30))) ->  | ADB208: =IF(ADB$30=0,"",IF(ADB207=0,0,IF(ADB207/ADB$30>2,2,ADB207/ADB$30))) ->  | AFN208: =IF(AFN$30=0,"",IF(AFN207=0,0,IF(AFN207/AFN$30>2,2,AFN207/AFN$30))) ->  | AHZ208: =IF(AHZ$30=0,"",IF(AHZ207=0,0,IF(AHZ207/AHZ$30>2,2,AHZ207/AHZ$30))) ->  | AKL208: =IF(AKL$30=0,"",IF(AKL207=0,0,IF(AKL207/AKL$30>2,2,AKL207/AKL$30))) -> 
A209: do | C209: =Translation!$C741 -> 14 - Microsols | D209: 209
A210: f | D210: 210 | E210: =IF(E$30=0,"",IF(E209=0,0,IF(E209/E$30>2,2,E209/E$30))) -> 0 | G210: =IF(G$30=0,"",IF(G209=0,0,IF(G209/G$30>2,2,G209/G$30))) ->  | O210: =IF(O$30=0,"",IF(O209=0,0,IF(O209/O$30>2,2,O209/O$30))) ->  | BY210: =IF(BY$30=0,"",IF(BY209=0,0,IF(BY209/BY$30>2,2,BY209/BY$30))) ->  | CU210: =IF(CU$30=0,"",IF(CU209=0,0,IF(CU209/CU$30>2,2,CU209/CU$30))) ->  | FG210: =IF(FG$30=0,"",IF(FG209=0,0,IF(FG209/FG$30>2,2,FG209/FG$30))) ->  | HS210: =IF(HS$30=0,"",IF(HS209=0,0,IF(HS209/HS$30>2,2,HS209/HS$30))) ->  | KE210: =IF(KE$30=0,"",IF(KE209=0,0,IF(KE209/KE$30>2,2,KE209/KE$30))) ->  | MH210: =IF(MH$30=0,"",IF(MH209=0,0,IF(MH209/MH$30>2,2,MH209/MH$30))) ->  | OT210: =IF(OT$30=0,"",IF(OT209=0,0,IF(OT209/OT$30>2,2,OT209/OT$30))) ->  | RF210: =IF(RF$30=0,"",IF(RF209=0,0,IF(RF209/RF$30>2,2,RF209/RF$30))) ->  | TR210: =IF(TR$30=0,"",IF(TR209=0,0,IF(TR209/TR$30>2,2,TR209/TR$30))) ->  | WD210: =IF(WD$30=0,"",IF(WD209=0,0,IF(WD209/WD$30>2,2,WD209/WD$30))) ->  | YP210: =IF(YP$30=0,"",IF(YP209=0,0,IF(YP209/YP$30>2,2,YP209/YP$30))) ->  | ABB210: =IF(ABB$30=0,"",IF(ABB209=0,0,IF(ABB209/ABB$30>2,2,ABB209/ABB$30))) ->  | ADB210: =IF(ADB$30=0,"",IF(ADB209=0,0,IF(ADB209/ADB$30>2,2,ADB209/ADB$30))) ->  | AFN210: =IF(AFN$30=0,"",IF(AFN209=0,0,IF(AFN209/AFN$30>2,2,AFN209/AFN$30))) ->  | AHZ210: =IF(AHZ$30=0,"",IF(AHZ209=0,0,IF(AHZ209/AHZ$30>2,2,AHZ209/AHZ$30))) ->  | AKL210: =IF(AKL$30=0,"",IF(AKL209=0,0,IF(AKL209/AKL$30>2,2,AKL209/AKL$30))) -> 
A211: do | C211: =Translation!$C742 -> 15 - Coulées de sève et de résine | D211: 211
A212: f | D212: 212 | E212: =IF(E$30=0,"",IF(E211=0,0,IF(E211/E$30>2,2,E211/E$30))) -> 0 | G212: =IF(G$30=0,"",IF(G211=0,0,IF(G211/G$30>2,2,G211/G$30))) ->  | O212: =IF(O$30=0,"",IF(O211=0,0,IF(O211/O$30>2,2,O211/O$30))) ->  | BY212: =IF(BY$30=0,"",IF(BY211=0,0,IF(BY211/BY$30>2,2,BY211/BY$30))) ->  | CU212: =IF(CU$30=0,"",IF(CU211=0,0,IF(CU211/CU$30>2,2,CU211/CU$30))) ->  | FG212: =IF(FG$30=0,"",IF(FG211=0,0,IF(FG211/FG$30>2,2,FG211/FG$30))) ->  | HS212: =IF(HS$30=0,"",IF(HS211=0,0,IF(HS211/HS$30>2,2,HS211/HS$30))) ->  | KE212: =IF(KE$30=0,"",IF(KE211=0,0,IF(KE211/KE$30>2,2,KE211/KE$30))) ->  | MH212: =IF(MH$30=0,"",IF(MH211=0,0,IF(MH211/MH$30>2,2,MH211/MH$30))) ->  | OT212: =IF(OT$30=0,"",IF(OT211=0,0,IF(OT211/OT$30>2,2,OT211/OT$30))) ->  | RF212: =IF(RF$30=0,"",IF(RF211=0,0,IF(RF211/RF$30>2,2,RF211/RF$30))) ->  | TR212: =IF(TR$30=0,"",IF(TR211=0,0,IF(TR211/TR$30>2,2,TR211/TR$30))) ->  | WD212: =IF(WD$30=0,"",IF(WD211=0,0,IF(WD211/WD$30>2,2,WD211/WD$30))) ->  | YP212: =IF(YP$30=0,"",IF(YP211=0,0,IF(YP211/YP$30>2,2,YP211/YP$30))) ->  | ABB212: =IF(ABB$30=0,"",IF(ABB211=0,0,IF(ABB211/ABB$30>2,2,ABB211/ABB$30))) ->  | ADB212: =IF(ADB$30=0,"",IF(ADB211=0,0,IF(ADB211/ADB$30>2,2,ADB211/ADB$30))) ->  | AFN212: =IF(AFN$30=0,"",IF(AFN211=0,0,IF(AFN211/AFN$30>2,2,AFN211/AFN$30))) ->  | AHZ212: =IF(AHZ$30=0,"",IF(AHZ211=0,0,IF(AHZ211/AHZ$30>2,2,AHZ211/AHZ$30))) ->  | AKL212: =IF(AKL$30=0,"",IF(AKL211=0,0,IF(AKL211/AKL$30>2,2,AKL211/AKL$30))) -> 
A213: do | D213: 213
A214: do | D214: 214
A215: do | D215: 215
A216: do | D216: 216
A217: do | D217: 217
A218: do | D218: 218
A219: do | D219: 219
A220: do | D220: 220
... 81 more rows

Sheet Tot2 (hidden)
A1: =COUNTIFS(R28:XFD28,"*",R24:XFD24,"dc")&"/200" -> 0/200 | B1: =Translation!$C661 -> Relevé IBP : regroupement de placettes | D1: id_var_xlsm | E1: =Translation!$C662 -> Remplir UNIQUEMENT les cellules en vert : - vert foncé : obligatoire (noter le score en fonction des résultats du groupe et de la définition IBP) ; devient rouge en cas de données importantes oubliées ou d'erreur - vert clair : facultative ou fonction des données recueillies - intitulé en gras : données reportées dans Fig. ATTENTION - orange : formule à ne pas effacer Pour ajouter des groupes de relevés (> 200) : copier-coller les 13 colonnes vides du dernier groupe à la fin du tableau
E8: =Translation!$C$668 -> Relevé sur plusieurs placettes dans un peuplement ou type de peuplement | R8: =$E8 -> Relevé sur plusieurs placettes dans un peuplement ou type de peuplement | AE8: =$E8 -> Relevé sur plusieurs placettes dans un peuplement ou type de peuplement | AR8: =$E8 -> Relevé sur plusieurs placettes dans un peuplement ou type de peuplement | BE8: =$E8 -> Relevé sur plusieurs placettes dans un peuplement ou type de peuplement | BR8: =$E8 -> Relevé sur plusieurs placettes dans un peuplement ou type de peuplement | CE8: =$E8 -> Relevé sur plusieurs placettes dans un peuplement ou type de peuplement | CR8: =$E8 -> Relevé sur plusieurs placettes dans un peuplement ou type de peuplement | DE8: =$E8 -> Relevé sur plusieurs placettes dans un peuplement ou type de peuplement | DR8: =$E8 -> Relevé sur plusieurs placettes dans un peuplement ou type de peuplement | EE8: =$E8 -> Relevé sur plusieurs placettes dans un peuplement ou type de peuplement | ER8: =$E8 -> Relevé sur plusieurs placettes dans un peuplement ou type de peuplement | FE8: =$E8 -> Relevé sur plusieurs placettes dans un peuplement ou type de peuplement | FR8: =$E8 -> Relevé sur plusieurs placettes dans un peuplement ou type de peuplement | GE8: =$E8 -> Relevé sur plusieurs placettes dans un peuplement ou type de peuplement | GR8: =$E8 -> Relevé sur plusieurs placettes dans un peuplement ou type de peuplement | HE8: =$E8 -> Relevé sur plusieurs placettes dans un peuplement ou type de peuplement | HR8: =$E8 -> Relevé sur plusieurs placettes dans un peuplement ou type de peuplement | IE8: =$E8 -> Relevé sur plusieurs placettes dans un peuplement ou type de peuplement | IR8: =$E8 -> Relevé sur plusieurs placettes dans un peuplement ou type de peuplement | JE8: =$E8 -> Relevé sur plusieurs placettes dans un peuplement ou type de peuplement | JR8: =$E8 -> Relevé sur plusieurs placettes dans un peuplement ou type de peuplement | KE8: =$E8 -> Relevé sur plusieurs placettes dans un peuplement ou type de peuplement | KR8: =$E8 -> Relevé sur plusieurs placettes dans un peuplement ou type de peuplement | LE8: =$E8 -> Relevé sur plusieurs placettes dans un peuplement ou type de peuplement | LR8: =$E8 -> Relevé sur plusieurs placettes dans un peuplement ou type de peuplement | ME8: =$E8 -> Relevé sur plusieurs placettes dans un peuplement ou type de peuplement | MR8: =$E8 -> Relevé sur plusieurs placettes dans un peuplement ou type de peuplement | NE8: =$E8 -> Relevé sur plusieurs placettes dans un peuplement ou type de peuplement | NR8: =$E8 -> Relevé sur plusieurs placettes dans un peuplement ou type de peuplement | OE8: =$E8 -> Relevé sur plusieurs placettes dans un peuplement ou type de peuplement | OR8: =$E8 -> Relevé sur plusieurs placettes dans un peuplement ou type de peuplement | PE8: =$E8 -> Relevé sur plusieurs placettes dans un peuplement ou type de peuplement | PR8: =$E8 -> Relevé sur plusieurs placettes dans un peuplement ou type de peuplement | QE8: =$E8 -> Relevé sur plusieurs placettes dans un peuplement ou type de peuplement | QR8: =$E8 -> Relevé sur plusieurs placettes dans un peuplement ou type de peuplement | RE8: =$E8 -> Relevé sur plusieurs placettes dans un peuplement ou type de peuplement | RR8: =$E8 -> Relevé sur plusieurs placettes dans un peuplement ou type de peuplement | SE8: =$E8 -> Relevé sur plusieurs placettes dans un peuplement ou type de peuplement | SR8: =$E8 -> Relevé sur plusieurs placettes dans un peuplement ou type de peuplement | TE8: =$E8 -> Relevé sur plusieurs placettes dans un peuplement ou type de peuplement | TR8: =$E8 -> Relevé sur plusieurs placettes dans un peuplement ou type de peuplement | UE8: =$E8 -> Relevé sur plusieurs placettes dans un peuplement ou type de peuplement | UR8: =$E8 -> Relevé sur plusieurs placettes dans un peuplement ou type de peuplement | VE8: =$E8 -> Relevé sur plusieurs placettes dans un peuplement ou type de peuplement | VR8: =$E8 -> Relevé sur plusieurs placettes dans un peuplement ou type de peuplement | WE8: =$E8 -> Relevé sur plusieurs placettes dans un peuplement ou type de peuplement | WR8: =$E8 -> Relevé sur plusieurs placettes dans un peuplement ou type de peuplement | XE8: =$E8 -> Relevé sur plusieurs placettes dans un peuplement ou type de peuplement | XR8: =$E8 -> Relevé sur plusieurs placettes dans un peuplement ou type de peuplement | YE8: =$E8 -> Relevé sur plusieurs placettes dans un peuplement ou type de peuplement | YR8: =$E8 -> Relevé sur plusieurs placettes dans un peuplement ou type de peuplement | ZE8: =$E8 -> Relevé sur plusieurs placettes dans un peuplement ou type de peuplement | ZR8: =$E8 -> Relevé sur plusieurs placettes dans un peuplement ou type de peuplement | AAE8: =$E8 -> Relevé sur plusieurs placettes dans un peuplement ou type de peuplement | AAR8: =$E8 -> Relevé sur plusieurs placettes dans un peuplement ou type de peuplement | ABE8: =$E8 -> Relevé sur plusieurs placettes dans un peuplement ou type de peuplement | ABR8: =$E8 -> Relevé sur plusieurs placettes dans un peuplement ou type de peuplement | ACE8: =$E8 -> Relevé sur plusieurs placettes dans un peuplement ou type de peuplement | ACR8: =$E8 -> Relevé sur plusieurs placettes dans un peuplement ou type de peuplement | ADE8: =$E8 -> Relevé sur plusieurs placettes dans un peuplement ou type de peuplement | ADR8: =$E8 -> Relevé sur plusieurs placettes dans un peuplement ou type de peuplement | AEE8: =$E8 -> Relevé sur plusieurs placettes dans un peuplement ou type de peuplement | AER8: =$E8 -> Relevé sur plusieurs placettes dans un peuplement ou type de peuplement | AFE8: =$E8 -> Relevé sur plusieurs placettes dans un peuplement ou type de peuplement | AFR8: =$E8 -> Relevé sur plusieurs placettes dans un peuplement ou type de peuplement | AGE8: =$E8 -> Relevé sur plusieurs placettes dans un peuplement ou type de peuplement | AGR8: =$E8 -> Relevé sur plusieurs placettes dans un peuplement ou type de peuplement | AHE8: =$E8 -> Relevé sur plusieurs placettes dans un peuplement ou type de peuplement | AHR8: =$E8 -> Relevé sur plusieurs placettes dans un peuplement ou type de peuplement | AIE8: =$E8 -> Relevé sur plusieurs placettes dans un peuplement ou type de peuplement | AIR8: =$E8 -> Relevé sur plusieurs placettes dans un peuplement ou type de peuplement | AJE8: =$E8 -> Relevé sur plusieurs placettes dans un peuplement ou type de peuplement | AJR8: =$E8 -> Relevé sur plusieurs placettes dans un peuplement ou type de peuplement | AKE8: =$E8 -> Relevé sur plusieurs placettes dans un peuplement ou type de peuplement | AKR8: =$E8 -> Relevé sur plusieurs placettes dans un peuplement ou type de peuplement | ALE8: =$E8 -> Relevé sur plusieurs placettes dans un peuplement ou type de peuplement | ALR8: =$E8 -> Relevé sur plusieurs placettes dans un peuplement ou type de peuplement | AME8: =$E8 -> Relevé sur plusieurs placettes dans un peuplement ou type de peuplement | AMR8: =$E8 -> Relevé sur plusieurs placettes dans un peuplement ou type de peuplement | ANE8: =$E8 -> Relevé sur plusieurs placettes dans un peuplement ou type de peuplement | ANR8: =$E8 -> Relevé sur plusieurs placettes dans un peuplement ou type de peuplement | AOE8: =$E8 -> Relevé sur plusieurs placettes dans un peuplement ou type de peuplement | AOR8: =$E8 -> Relevé sur plusieurs placettes dans un peuplement ou type de peuplement | APE8: =$E8 -> Relevé sur plusieurs placettes dans un peuplement ou type de peuplement | APR8: =$E8 -> Relevé sur plusieurs placettes dans un peuplement ou type de peuplement | AQE8: =$E8 -> Relevé sur plusieurs placettes dans un peuplement ou type de peuplement | AQR8: =$E8 -> Relevé sur plusieurs placettes dans un peuplement ou type de peuplement | ARE8: =$E8 -> Relevé sur plusieurs placettes dans un peuplement ou type de peuplement | ARR8: =$E8 -> Relevé sur plusieurs placettes dans un peuplement ou type de peuplement | ASE8: =$E8 -> Relevé sur plusieurs placettes dans un peuplement ou type de peuplement | ASR8: =$E8 -> Relevé sur plusieurs placettes dans un peuplement ou type de peuplement | ATE8: =$E8 -> Relevé sur plusieurs placettes dans un peuplement ou type de peuplement | ATR8: =$E8 -> Relevé sur plusieurs placettes dans un peuplement ou type de peuplement | AUE8: =$E8 -> Relevé sur plusieurs placettes dans un peuplement ou type de peuplement | AUR8: =$E8 -> Relevé sur plusieurs placettes dans un peuplement ou type de peuplement | AVE8: =$E8 -> Relevé sur plusieurs placettes dans un peuplement ou type de peuplement | AVR8: =$E8 -> Relevé sur plusieurs placettes dans un peuplement ou type de peuplement | AWE8: =$E8 -> Relevé sur plusieurs placettes dans un peuplement ou type de peuplement | AWR8: =$E8 -> Relevé sur plusieurs placettes dans un peuplement ou type de peuplement | AXE8: =$E8 -> Relevé sur plusieurs placettes dans un peuplement ou type de peuplement | AXR8: =$E8 -> Relevé sur plusieurs placettes dans un peuplement ou type de peuplement | AYE8: =$E8 -> Relevé sur plusieurs placettes dans un peuplement ou type de peuplement | AYR8: =$E8 -> Relevé sur plusieurs placettes dans un peuplement ou type de peuplement | AZE8: =$E8 -> Relevé sur plusieurs placettes dans un peuplement ou type de peuplement | AZR8: =$E8 -> Relevé sur plusieurs placettes dans un peuplement ou type de peuplement | BAE8: =$E8 -> Relevé sur plusieurs placettes dans un peuplement ou type de peuplement | BAR8: =$E8 -> Relevé sur plusieurs placettes dans un peuplement ou type de peuplement | BBE8: =$E8 -> Relevé sur plusieurs placettes dans un peuplement ou type de peuplement | BBR8: =$E8 -> Relevé sur plusieurs placettes dans un peuplement ou type de peuplement | BCE8: =$E8 -> Relevé sur plusieurs placettes dans un peuplement ou type de peuplement | BCR8: =$E8 -> Relevé sur plusieurs placettes dans un peuplement ou type de peuplement | BDE8: =$E8 -> Relevé sur plusieurs placettes dans un peuplement ou type de peuplement | BDR8: =$E8 -> Relevé sur plusieurs placettes dans un peuplement ou type de peuplement | BEE8: =$E8 -> Relevé sur plusieurs placettes dans un peuplement ou type de peuplement | BER8: =$E8 -> Relevé sur plusieurs placettes dans un peuplement ou type de peuplement | BFE8: =$E8 -> Relevé sur plusieurs placettes dans un peuplement ou type de peuplement | BFR8: =$E8 -> Relevé sur plusieurs placettes dans un peuplement ou type de peuplement | BGE8: =$E8 -> Relevé sur plusieurs placettes dans un peuplement ou type de peuplement | BGR8: =$E8 -> Relevé sur plusieurs placettes dans un peuplement ou type de peuplement | BHE8: =$E8 -> Relevé sur plusieurs placettes dans un peuplement ou type de peuplement | BHR8: =$E8 -> Relevé sur plusieurs placettes dans un peuplement ou type de peuplement | BIE8: =$E8 -> Relevé sur plusieurs placettes dans un peuplement ou type de peuplement | BIR8: =$E8 -> Relevé sur plusieurs placettes dans un peuplement ou type de peuplement | BJE8: =$E8 -> Relevé sur plusieurs placettes dans un peuplement ou type de peuplement | BJR8: =$E8 -> Relevé sur plusieurs placettes dans un peuplement ou type de peuplement | BKE8: =$E8 -> Relevé sur plusieurs placettes dans un peuplement ou type de peuplement | BKR8: =$E8 -> Relevé sur plusieurs placettes dans un peuplement ou type de peuplement | BLE8: =$E8 -> Relevé sur plusieurs placettes dans un peuplement ou type de peuplement | BLR8: =$E8 -> Relevé sur plusieurs placettes dans un peuplement ou type de peuplement | BME8: =$E8 -> Relevé sur plusieurs placettes dans un peuplement ou type de peuplement | BMR8: =$E8 -> Relevé sur plusieurs placettes dans un peuplement ou type de peuplement | BNE8: =$E8 -> Relevé sur plusieurs placettes dans un peuplement ou type de peuplement | BNR8: =$E8 -> Relevé sur plusieurs placettes dans un peuplement ou type de peuplement | BOE8: =$E8 -> Relevé sur plusieurs placettes dans un peuplement ou type de peuplement | BOR8: =$E8 -> Relevé sur plusieurs placettes dans un peuplement ou type de peuplement | BPE8: =$E8 -> Relevé sur plusieurs placettes dans un peuplement ou type de peuplement | BPR8: =$E8 -> Relevé sur plusieurs placettes dans un peuplement ou type de peuplement | BQE8: =$E8 -> Relevé sur plusieurs placettes dans un peuplement ou type de peuplement | BQR8: =$E8 -> Relevé sur plusieurs placettes dans un peuplement ou type de peuplement | BRE8: =$E8 -> Relevé sur plusieurs placettes dans un peuplement ou type de peuplement | BRR8: =$E8 -> Relevé sur plusieurs placettes dans un peuplement ou type de peuplement | BSE8: =$E8 -> Relevé sur plusieurs placettes dans un peuplement ou type de peuplement | BSR8: =$E8 -> Relevé sur plusieurs placettes dans un peuplement ou type de peuplement | BTE8: =$E8 -> Relevé sur plusieurs placettes dans un peuplement ou type de peuplement | BTR8: =$E8 -> Relevé sur plusieurs placettes dans un peuplement ou type de peuplement | BUE8: =$E8 -> Relevé sur plusieurs placettes dans un peuplement ou type de peuplement | BUR8: =$E8 -> Relevé sur plusieurs placettes dans un peuplement ou type de peuplement | BVE8: =$E8 -> Relevé sur plusieurs placettes dans un peuplement ou type de peuplement | BVR8: =$E8 -> Relevé sur plusieurs placettes dans un peuplement ou type de peuplement | BWE8: =$E8 -> Relevé sur plusieurs placettes dans un peuplement ou type de peuplement | BWR8: =$E8 -> Relevé sur plusieurs placettes dans un peuplement ou type de peuplement | BXE8: =$E8 -> Relevé sur plusieurs placettes dans un peuplement ou type de peuplement | BXR8: =$E8 -> Relevé sur plusieurs placettes dans un peuplement ou type de peuplement | BYE8: =$E8 -> Relevé sur plusieurs placettes dans un peuplement ou type de peuplement | BYR8: =$E8 -> Relevé sur plusieurs placettes dans un peuplement ou type de peuplement | BZE8: =$E8 -> Relevé sur plusieurs placettes dans un peuplement ou type de peuplement | BZR8: =$E8 -> Relevé sur plusieurs placettes dans un peuplement ou type de peuplement | CAE8: =$E8 -> Relevé sur plusieurs placettes dans un peuplement ou type de peuplement | CAR8: =$E8 -> Relevé sur plusieurs placettes dans un peuplement ou type de peuplement | CBE8: =$E8 -> Relevé sur plusieurs placettes dans un peuplement ou type de peuplement | CBR8: =$E8 -> Relevé sur plusieurs placettes dans un peuplement ou type de peuplement | CCE8: =$E8 -> Relevé sur plusieurs placettes dans un peuplement ou type de peuplement | CCR8: =$E8 -> Relevé sur plusieurs placettes dans un peuplement ou type de peuplement | CDE8: =$E8 -> Relevé sur plusieurs placettes dans un peuplement ou type de peuplement | CDR8: =$E8 -> Relevé sur plusieurs placettes dans un peuplement ou type de peuplement | CEE8: =$E8 -> Relevé sur plusieurs placettes dans un peuplement ou type de peuplement | CER8: =$E8 -> Relevé sur plusieurs placettes dans un peuplement ou type de peuplement | CFE8: =$E8 -> Relevé sur plusieurs placettes dans un peuplement ou type de peuplement | CFR8: =$E8 -> Relevé sur plusieurs placettes dans un peuplement ou type de peuplement | CGE8: =$E8 -> Relevé sur plusieurs placettes dans un peuplement ou type de peuplement | CGR8: =$E8 -> Relevé sur plusieurs placettes dans un peuplement ou type de peuplement | CHE8: =$E8 -> Relevé sur plusieurs placettes dans un peuplement ou type de peuplement | CHR8: =$E8 -> Relevé sur plusieurs placettes dans un peuplement ou type de peuplement | CIE8: =$E8 -> Relevé sur plusieurs placettes dans un peuplement ou type de peuplement | CIR8: =$E8 -> Relevé sur plusieurs placettes dans un peuplement ou type de peuplement | CJE8: =$E8 -> Relevé sur plusieurs placettes dans un peuplement ou type de peuplement | CJR8: =$E8 -> Relevé sur plusieurs placettes dans un peuplement ou type de peuplement | CKE8: =$E8 -> Relevé sur plusieurs placettes dans un peuplement ou type de peuplement | CKR8: =$E8 -> Relevé sur plusieurs placettes dans un peuplement ou type de peuplement | CLE8: =$E8 -> Relevé sur plusieurs placettes dans un peuplement ou type de peuplement | CLR8: =$E8 -> Relevé sur plusieurs placettes dans un peuplement ou type de peuplement | CME8: =$E8 -> Relevé sur plusieurs placettes dans un peuplement ou type de peuplement | CMR8: =$E8 -> Relevé sur plusieurs placettes dans un peuplement ou type de peuplement | CNE8: =$E8 -> Relevé sur plusieurs placettes dans un peuplement ou type de peuplement | CNR8: =$E8 -> Relevé sur plusieurs placettes dans un peuplement ou type de peuplement | COE8: =$E8 -> Relevé sur plusieurs placettes dans un peuplement ou type de peuplement | COR8: =$E8 -> Relevé sur plusieurs placettes dans un peuplement ou type de peuplement | CPE8: =$E8 -> Relevé sur plusieurs placettes dans un peuplement ou type de peuplement | CPR8: =$E8 -> Relevé sur plusieurs placettes dans un peuplement ou type de peuplement | CQE8: =$E8 -> Relevé sur plusieurs placettes dans un peuplement ou type de peuplement | CQR8: =$E8 -> Relevé sur plusieurs placettes dans un peuplement ou type de peuplement | CRE8: =$E8 -> Relevé sur plusieurs placettes dans un peuplement ou type de peuplement | CRR8: =$E8 -> Relevé sur plusieurs placettes dans un peuplement ou type de peuplement | CSE8: =$E8 -> Relevé sur plusieurs placettes dans un peuplement ou type de peuplement | CSR8: =$E8 -> Relevé sur plusieurs placettes dans un peuplement ou type de peuplement | CTE8: =$E8 -> Relevé sur plusieurs placettes dans un peuplement ou type de peuplement | CTR8: =$E8 -> Relevé sur plusieurs placettes dans un peuplement ou type de peuplement | CUE8: =$E8 -> Relevé sur plusieurs placettes dans un peuplement ou type de peuplement | CUR8: =$E8 -> Relevé sur plusieurs placettes dans un peuplement ou type de peuplement | CVE8: =$E8 -> Relevé sur plusieurs placettes dans un peuplement ou type de peuplement
E9: =Translation!$C$665 -> placettes IBP | O9: =Translation!$C$666 -> zone non échantillonnée | P9: =Translation!$C$667 -> REGROUPEMENT : placettes + zone non échantillonnée | R9: =$E9 -> placettes IBP | AB9: =$O9 -> zone non échantillonnée | AC9: =$P9 -> REGROUPEMENT : placettes + zone non échantillonnée | AE9: =$E9 -> placettes IBP | AO9: =$O9 -> zone non échantillonnée | AP9: =$P9 -> REGROUPEMENT : placettes + zone non échantillonnée | AR9: =$E9 -> placettes IBP | BB9: =$O9 -> zone non échantillonnée | BC9: =$P9 -> REGROUPEMENT : placettes + zone non échantillonnée | BE9: =$E9 -> placettes IBP | BO9: =$O9 -> zone non échantillonnée | BP9: =$P9 -> REGROUPEMENT : placettes + zone non échantillonnée | BR9: =$E9 -> placettes IBP | CB9: =$O9 -> zone non échantillonnée | CC9: =$P9 -> REGROUPEMENT : placettes + zone non échantillonnée | CE9: =$E9 -> placettes IBP | CO9: =$O9 -> zone non échantillonnée | CP9: =$P9 -> REGROUPEMENT : placettes + zone non échantillonnée | CR9: =$E9 -> placettes IBP | DB9: =$O9 -> zone non échantillonnée | DC9: =$P9 -> REGROUPEMENT : placettes + zone non échantillonnée | DE9: =$E9 -> placettes IBP | DO9: =$O9 -> zone non échantillonnée | DP9: =$P9 -> REGROUPEMENT : placettes + zone non échantillonnée | DR9: =$E9 -> placettes IBP | EB9: =$O9 -> zone non échantillonnée | EC9: =$P9 -> REGROUPEMENT : placettes + zone non échantillonnée | EE9: =$E9 -> placettes IBP | EO9: =$O9 -> zone non échantillonnée | EP9: =$P9 -> REGROUPEMENT : placettes + zone non échantillonnée | ER9: =$E9 -> placettes IBP | FB9: =$O9 -> zone non échantillonnée | FC9: =$P9 -> REGROUPEMENT : placettes + zone non échantillonnée | FE9: =$E9 -> placettes IBP | FO9: =$O9 -> zone non échantillonnée | FP9: =$P9 -> REGROUPEMENT : placettes + zone non échantillonnée | FR9: =$E9 -> placettes IBP | GB9: =$O9 -> zone non échantillonnée | GC9: =$P9 -> REGROUPEMENT : placettes + zone non échantillonnée | GE9: =$E9 -> placettes IBP | GO9: =$O9 -> zone non échantillonnée | GP9: =$P9 -> REGROUPEMENT : placettes + zone non échantillonnée | GR9: =$E9 -> placettes IBP | HB9: =$O9 -> zone non échantillonnée | HC9: =$P9 -> REGROUPEMENT : placettes + zone non échantillonnée | HE9: =$E9 -> placettes IBP | HO9: =$O9 -> zone non échantillonnée | HP9: =$P9 -> REGROUPEMENT : placettes + zone non échantillonnée | HR9: =$E9 -> placettes IBP | IB9: =$O9 -> zone non échantillonnée | IC9: =$P9 -> REGROUPEMENT : placettes + zone non échantillonnée | IE9: =$E9 -> placettes IBP | IO9: =$O9 -> zone non échantillonnée | IP9: =$P9 -> REGROUPEMENT : placettes + zone non échantillonnée | IR9: =$E9 -> placettes IBP | JB9: =$O9 -> zone non échantillonnée | JC9: =$P9 -> REGROUPEMENT : placettes + zone non échantillonnée | JE9: =$E9 -> placettes IBP | JO9: =$O9 -> zone non échantillonnée | JP9: =$P9 -> REGROUPEMENT : placettes + zone non échantillonnée | JR9: =$E9 -> placettes IBP | KB9: =$O9 -> zone non échantillonnée | KC9: =$P9 -> REGROUPEMENT : placettes + zone non échantillonnée | KE9: =$E9 -> placettes IBP | KO9: =$O9 -> zone non échantillonnée | KP9: =$P9 -> REGROUPEMENT : placettes + zone non échantillonnée | KR9: =$E9 -> placettes IBP | LB9: =$O9 -> zone non échantillonnée | LC9: =$P9 -> REGROUPEMENT : placettes + zone non échantillonnée | LE9: =$E9 -> placettes IBP | LO9: =$O9 -> zone non échantillonnée | LP9: =$P9 -> REGROUPEMENT : placettes + zone non échantillonnée | LR9: =$E9 -> placettes IBP | MB9: =$O9 -> zone non échantillonnée | MC9: =$P9 -> REGROUPEMENT : placettes + zone non échantillonnée | ME9: =$E9 -> placettes IBP | MO9: =$O9 -> zone non échantillonnée | MP9: =$P9 -> REGROUPEMENT : placettes + zone non échantillonnée | MR9: =$E9 -> placettes IBP | NB9: =$O9 -> zone non échantillonnée | NC9: =$P9 -> REGROUPEMENT : placettes + zone non échantillonnée | NE9: =$E9 -> placettes IBP | NO9: =$O9 -> zone non échantillonnée | NP9: =$P9 -> REGROUPEMENT : placettes + zone non échantillonnée | NR9: =$E9 -> placettes IBP | OB9: =$O9 -> zone non échantillonnée | OC9: =$P9 -> REGROUPEMENT : placettes + zone non échantillonnée | OE9: =$E9 -> placettes IBP | OO9: =$O9 -> zone non échantillonnée | OP9: =$P9 -> REGROUPEMENT : placettes + zone non échantillonnée | OR9: =$E9 -> placettes IBP | PB9: =$O9 -> zone non échantillonnée | PC9: =$P9 -> REGROUPEMENT : placettes + zone non échantillonnée | PE9: =$E9 -> placettes IBP | PO9: =$O9 -> zone non échantillonnée | PP9: =$P9 -> REGROUPEMENT : placettes + zone non échantillonnée | PR9: =$E9 -> placettes IBP | QB9: =$O9 -> zone non échantillonnée | QC9: =$P9 -> REGROUPEMENT : placettes + zone non échantillonnée | QE9: =$E9 -> placettes IBP | QO9: =$O9 -> zone non échantillonnée | QP9: =$P9 -> REGROUPEMENT : placettes + zone non échantillonnée | QR9: =$E9 -> placettes IBP | RB9: =$O9 -> zone non échantillonnée | RC9: =$P9 -> REGROUPEMENT : placettes + zone non échantillonnée | RE9: =$E9 -> placettes IBP | RO9: =$O9 -> zone non échantillonnée | RP9: =$P9 -> REGROUPEMENT : placettes + zone non échantillonnée | RR9: =$E9 -> placettes IBP | SB9: =$O9 -> zone non échantillonnée | SC9: =$P9 -> REGROUPEMENT : placettes + zone non échantillonnée | SE9: =$E9 -> placettes IBP | SO9: =$O9 -> zone non échantillonnée | SP9: =$P9 -> REGROUPEMENT : placettes + zone non échantillonnée | SR9: =$E9 -> placettes IBP | TB9: =$O9 -> zone non échantillonnée | TC9: =$P9 -> REGROUPEMENT : placettes + zone non échantillonnée | TE9: =$E9 -> placettes IBP | TO9: =$O9 -> zone non échantillonnée | TP9: =$P9 -> REGROUPEMENT : placettes + zone non échantillonnée | TR9: =$E9 -> placettes IBP | UB9: =$O9 -> zone non échantillonnée | UC9: =$P9 -> REGROUPEMENT : placettes + zone non échantillonnée | UE9: =$E9 -> placettes IBP | UO9: =$O9 -> zone non échantillonnée | UP9: =$P9 -> REGROUPEMENT : placettes + zone non échantillonnée | UR9: =$E9 -> placettes IBP | VB9: =$O9 -> zone non échantillonnée | VC9: =$P9 -> REGROUPEMENT : placettes + zone non échantillonnée | VE9: =$E9 -> placettes IBP | VO9: =$O9 -> zone non échantillonnée | VP9: =$P9 -> REGROUPEMENT : placettes + zone non échantillonnée | VR9: =$E9 -> placettes IBP | WB9: =$O9 -> zone non échantillonnée | WC9: =$P9 -> REGROUPEMENT : placettes + zone non échantillonnée | WE9: =$E9 -> placettes IBP | WO9: =$O9 -> zone non échantillonnée | WP9: =$P9 -> REGROUPEMENT : placettes + zone non échantillonnée | WR9: =$E9 -> placettes IBP | XB9: =$O9 -> zone non échantillonnée | XC9: =$P9 -> REGROUPEMENT : placettes + zone non échantillonnée | XE9: =$E9 -> placettes IBP | XO9: =$O9 -> zone non échantillonnée | XP9: =$P9 -> REGROUPEMENT : placettes + zone non échantillonnée | XR9: =$E9 -> placettes IBP | YB9: =$O9 -> zone non échantillonnée | YC9: =$P9 -> REGROUPEMENT : placettes + zone non échantillonnée | YE9: =$E9 -> placettes IBP | YO9: =$O9 -> zone non échantillonnée | YP9: =$P9 -> REGROUPEMENT : placettes + zone non échantillonnée | YR9: =$E9 -> placettes IBP | ZB9: =$O9 -> zone non échantillonnée | ZC9: =$P9 -> REGROUPEMENT : placettes + zone non échantillonnée | ZE9: =$E9 -> placettes IBP | ZO9: =$O9 -> zone non échantillonnée | ZP9: =$P9 -> REGROUPEMENT : placettes + zone non échantillonnée | ZR9: =$E9 -> placettes IBP | AAB9: =$O9 -> zone non échantillonnée | AAC9: =$P9 -> REGROUPEMENT : placettes + zone non échantillonnée | AAE9: =$E9 -> placettes IBP | AAO9: =$O9 -> zone non échantillonnée | AAP9: =$P9 -> REGROUPEMENT : placettes + zone non échantillonnée | AAR9: =$E9 -> placettes IBP | ABB9: =$O9 -> zone non échantillonnée | ABC9: =$P9 -> REGROUPEMENT : placettes + zone non échantillonnée | ABE9: =$E9 -> placettes IBP | ABO9: =$O9 -> zone non échantillonnée | ABP9: =$P9 -> REGROUPEMENT : placettes + zone non échantillonnée | ABR9: =$E9 -> placettes IBP | ACB9: =$O9 -> zone non échantillonnée | ACC9: =$P9 -> REGROUPEMENT : placettes + zone non échantillonnée | ACE9: =$E9 -> placettes IBP | ACO9: =$O9 -> zone non échantillonnée | ACP9: =$P9 -> REGROUPEMENT : placettes + zone non échantillonnée | ACR9: =$E9 -> placettes IBP | ADB9: =$O9 -> zone non échantillonnée | ADC9: =$P9 -> REGROUPEMENT : placettes + zone non échantillonnée | ADE9: =$E9 -> placettes IBP | ADO9: =$O9 -> zone non échantillonnée | ADP9: =$P9 -> REGROUPEMENT : placettes + zone non échantillonnée | ADR9: =$E9 -> placettes IBP | AEB9: =$O9 -> zone non échantillonnée | AEC9: =$P9 -> REGROUPEMENT : placettes + zone non échantillonnée | AEE9: =$E9 -> placettes IBP | AEO9: =$O9 -> zone non échantillonnée | AEP9: =$P9 -> REGROUPEMENT : placettes + zone non échantillonnée | AER9: =$E9 -> placettes IBP | AFB9: =$O9 -> zone non échantillonnée | AFC9: =$P9 -> REGROUPEMENT : placettes + zone non échantillonnée | AFE9: =$E9 -> placettes IBP | AFO9: =$O9 -> zone non échantillonnée | AFP9: =$P9 -> REGROUPEMENT : placettes + zone non échantillonnée | AFR9: =$E9 -> placettes IBP | AGB9: =$O9 -> zone non échantillonnée | AGC9: =$P9 -> REGROUPEMENT : placettes + zone non échantillonnée | AGE9: =$E9 -> placettes IBP | AGO9: =$O9 -> zone non échantillonnée | AGP9: =$P9 -> REGROUPEMENT : placettes + zone non échantillonnée | AGR9: =$E9 -> placettes IBP | AHB9: =$O9 -> zone non échantillonnée | AHC9: =$P9 -> REGROUPEMENT : placettes + zone non échantillonnée | AHE9: =$E9 -> placettes IBP | AHO9: =$O9 -> zone non échantillonnée | AHP9: =$P9 -> REGROUPEMENT : placettes + zone non échantillonnée | AHR9: =$E9 -> placettes IBP | AIB9: =$O9 -> zone non échantillonnée | AIC9: =$P9 -> REGROUPEMENT : placettes + zone non échantillonnée | AIE9: =$E9 -> placettes IBP | AIO9: =$O9 -> zone non échantillonnée | AIP9: =$P9 -> REGROUPEMENT : placettes + zone non échantillonnée | AIR9: =$E9 -> placettes IBP | AJB9: =$O9 -> zone non échantillonnée | AJC9: =$P9 -> REGROUPEMENT : placettes + zone non échantillonnée | AJE9: =$E9 -> placettes IBP | AJO9: =$O9 -> zone non échantillonnée | AJP9: =$P9 -> REGROUPEMENT : placettes + zone non échantillonnée | AJR9: =$E9 -> placettes IBP | AKB9: =$O9 -> zone non échantillonnée | AKC9: =$P9 -> REGROUPEMENT : placettes + zone non échantillonnée | AKE9: =$E9 -> placettes IBP | AKO9: =$O9 -> zone non échantillonnée | AKP9: =$P9 -> REGROUPEMENT : placettes + zone non échantillonnée | AKR9: =$E9 -> placettes IBP | ALB9: =$O9 -> zone non échantillonnée | ALC9: =$P9 -> REGROUPEMENT : placettes + zone non échantillonnée | ALE9: =$E9 -> placettes IBP | ALO9: =$O9 -> zone non échantillonnée | ALP9: =$P9 -> REGROUPEMENT : placettes + zone non échantillonnée | ALR9: =$E9 -> placettes IBP | AMB9: =$O9 -> zone non échantillonnée | AMC9: =$P9 -> REGROUPEMENT : placettes + zone non échantillonnée | AME9: =$E9 -> placettes IBP | AMO9: =$O9 -> zone non échantillonnée | AMP9: =$P9 -> REGROUPEMENT : placettes + zone non échantillonnée | AMR9: =$E9 -> placettes IBP | ANB9: =$O9 -> zone non échantillonnée | ANC9: =$P9 -> REGROUPEMENT : placettes + zone non échantillonnée | ANE9: =$E9 -> placettes IBP | ANO9: =$O9 -> zone non échantillonnée | ANP9: =$P9 -> REGROUPEMENT : placettes + zone non échantillonnée | ANR9: =$E9 -> placettes IBP | AOB9: =$O9 -> zone non échantillonnée | AOC9: =$P9 -> REGROUPEMENT : placettes + zone non échantillonnée | AOE9: =$E9 -> placettes IBP | AOO9: =$O9 -> zone non échantillonnée | AOP9: =$P9 -> REGROUPEMENT : placettes + zone non échantillonnée | AOR9: =$E9 -> placettes IBP | APB9: =$O9 -> zone non échantillonnée | APC9: =$P9 -> REGROUPEMENT : placettes + zone non échantillonnée | APE9: =$E9 -> placettes IBP | APO9: =$O9 -> zone non échantillonnée | APP9: =$P9 -> REGROUPEMENT : placettes + zone non échantillonnée | APR9: =$E9 -> placettes IBP | AQB9: =$O9 -> zone non échantillonnée | AQC9: =$P9 -> REGROUPEMENT : placettes + zone non échantillonnée | AQE9: =$E9 -> placettes IBP | AQO9: =$O9 -> zone non échantillonnée | AQP9: =$P9 -> REGROUPEMENT : placettes + zone non échantillonnée | AQR9: =$E9 -> placettes IBP | ARB9: =$O9 -> zone non échantillonnée | ARC9: =$P9 -> REGROUPEMENT : placettes + zone non échantillonnée | ARE9: =$E9 -> placettes IBP | ARO9: =$O9 -> zone non échantillonnée | ARP9: =$P9 -> REGROUPEMENT : placettes + zone non échantillonnée | ARR9: =$E9 -> placettes IBP | ASB9: =$O9 -> zone non échantillonnée | ASC9: =$P9 -> REGROUPEMENT : placettes + zone non échantillonnée | ASE9: =$E9 -> placettes IBP | ASO9: =$O9 -> zone non échantillonnée | ASP9: =$P9 -> REGROUPEMENT : placettes + zone non échantillonnée | ASR9: =$E9 -> placettes IBP | ATB9: =$O9 -> zone non échantillonnée | ATC9: =$P9 -> REGROUPEMENT : placettes + zone non échantillonnée | ATE9: =$E9 -> placettes IBP | ATO9: =$O9 -> zone non échantillonnée | ATP9: =$P9 -> REGROUPEMENT : placettes + zone non échantillonnée | ATR9: =$E9 -> placettes IBP | AUB9: =$O9 -> zone non échantillonnée | AUC9: =$P9 -> REGROUPEMENT : placettes + zone non échantillonnée | AUE9: =$E9 -> placettes IBP | AUO9: =$O9 -> zone non échantillonnée | AUP9: =$P9 -> REGROUPEMENT : placettes + zone non échantillonnée | AUR9: =$E9 -> placettes IBP | AVB9: =$O9 -> zone non échantillonnée | AVC9: =$P9 -> REGROUPEMENT : placettes + zone non échantillonnée | AVE9: =$E9 -> placettes IBP | AVO9: =$O9 -> zone non échantillonnée | AVP9: =$P9 -> REGROUPEMENT : placettes + zone non échantillonnée | AVR9: =$E9 -> placettes IBP | AWB9: =$O9 -> zone non échantillonnée | AWC9: =$P9 -> REGROUPEMENT : placettes + zone non échantillonnée | AWE9: =$E9 -> placettes IBP | AWO9: =$O9 -> zone non échantillonnée | AWP9: =$P9 -> REGROUPEMENT : placettes + zone non échantillonnée | AWR9: =$E9 -> placettes IBP | AXB9: =$O9 -> zone non échantillonnée | AXC9: =$P9 -> REGROUPEMENT : placettes + zone non échantillonnée | AXE9: =$E9 -> placettes IBP | AXO9: =$O9 -> zone non échantillonnée | AXP9: =$P9 -> REGROUPEMENT : placettes + zone non échantillonnée | AXR9: =$E9 -> placettes IBP | AYB9: =$O9 -> zone non échantillonnée | AYC9: =$P9 -> REGROUPEMENT : placettes + zone non échantillonnée | AYE9: =$E9 -> placettes IBP | AYO9: =$O9 -> zone non échantillonnée | AYP9: =$P9 -> REGROUPEMENT : placettes + zone non échantillonnée | AYR9: =$E9 -> placettes IBP | AZB9: =$O9 -> zone non échantillonnée | AZC9: =$P9 -> REGROUPEMENT : placettes + zone non échantillonnée | AZE9: =$E9 -> placettes IBP | AZO9: =$O9 -> zone non échantillonnée | AZP9: =$P9 -> REGROUPEMENT : placettes + zone non échantillonnée | AZR9: =$E9 -> placettes IBP | BAB9: =$O9 -> zone non échantillonnée | BAC9: =$P9 -> REGROUPEMENT : placettes + zone non échantillonnée | BAE9: =$E9 -> placettes IBP | BAO9: =$O9 -> zone non échantillonnée | BAP9: =$P9 -> REGROUPEMENT : placettes + zone non échantillonnée | BAR9: =$E9 -> placettes IBP | BBB9: =$O9 -> zone non échantillonnée | BBC9: =$P9 -> REGROUPEMENT : placettes + zone non échantillonnée | BBE9: =$E9 -> placettes IBP | BBO9: =$O9 -> zone non échantillonnée | BBP9: =$P9 -> REGROUPEMENT : placettes + zone non échantillonnée | BBR9: =$E9 -> placettes IBP | BCB9: =$O9 -> zone non échantillonnée | BCC9: =$P9 -> REGROUPEMENT : placettes + zone non échantillonnée | BCE9: =$E9 -> placettes IBP | BCO9: =$O9 -> zone non échantillonnée | BCP9: =$P9 -> REGROUPEMENT : placettes + zone non échantillonnée | BCR9: =$E9 -> placettes IBP | BDB9: =$O9 -> zone non échantillonnée | BDC9: =$P9 -> REGROUPEMENT : placettes + zone non échantillonnée | BDE9: =$E9 -> placettes IBP | BDO9: =$O9 -> zone non échantillonnée | BDP9: =$P9 -> REGROUPEMENT : placettes + zone non échantillonnée | BDR9: =$E9 -> placettes IBP | BEB9: =$O9 -> zone non échantillonnée | BEC9: =$P9 -> REGROUPEMENT : placettes + zone non échantillonnée | BEE9: =$E9 -> placettes IBP | BEO9: =$O9 -> zone non échantillonnée | BEP9: =$P9 -> REGROUPEMENT : placettes + zone non échantillonnée | BER9: =$E9 -> placettes IBP | BFB9: =$O9 -> zone non échantillonnée | BFC9: =$P9 -> REGROUPEMENT : placettes + zone non échantillonnée | BFE9: =$E9 -> placettes IBP | BFO9: =$O9 -> zone non échantillonnée | BFP9: =$P9 -> REGROUPEMENT : placettes + zone non échantillonnée | BFR9: =$E9 -> placettes IBP | BGB9: =$O9 -> zone non échantillonnée | BGC9: =$P9 -> REGROUPEMENT : placettes + zone non échantillonnée | BGE9: =$E9 -> placettes IBP | BGO9: =$O9 -> zone non échantillonnée | BGP9: =$P9 -> REGROUPEMENT : placettes + zone non échantillonnée | BGR9: =$E9 -> placettes IBP | BHB9: =$O9 -> zone non échantillonnée | BHC9: =$P9 -> REGROUPEMENT : placettes + zone non échantillonnée | BHE9: =$E9 -> placettes IBP | BHO9: =$O9 -> zone non échantillonnée | BHP9: =$P9 -> REGROUPEMENT : placettes + zone non échantillonnée | BHR9: =$E9 -> placettes IBP | BIB9: =$O9 -> zone non échantillonnée | BIC9: =$P9 -> REGROUPEMENT : placettes + zone non échantillonnée | BIE9: =$E9 -> placettes IBP | BIO9: =$O9 -> zone non échantillonnée | BIP9: =$P9 -> REGROUPEMENT : placettes + zone non échantillonnée | BIR9: =$E9 -> placettes IBP | BJB9: =$O9 -> zone non échantillonnée | BJC9: =$P9 -> REGROUPEMENT : placettes + zone non échantillonnée | BJE9: =$E9 -> placettes IBP | BJO9: =$O9 -> zone non échantillonnée | BJP9: =$P9 -> REGROUPEMENT : placettes + zone non échantillonnée | BJR9: =$E9 -> placettes IBP | BKB9: =$O9 -> zone non échantillonnée | BKC9: =$P9 -> REGROUPEMENT : placettes + zone non échantillonnée | BKE9: =$E9 -> placettes IBP | BKO9: =$O9 -> zone non échantillonnée | BKP9: =$P9 -> REGROUPEMENT : placettes + zone non échantillonnée | BKR9: =$E9 -> placettes IBP | BLB9: =$O9 -> zone non échantillonnée | BLC9: =$P9 -> REGROUPEMENT : placettes + zone non échantillonnée | BLE9: =$E9 -> placettes IBP | BLO9: =$O9 -> zone non échantillonnée | BLP9: =$P9 -> REGROUPEMENT : placettes + zone non échantillonnée | BLR9: =$E9 -> placettes IBP | BMB9: =$O9 -> zone non échantillonnée | BMC9: =$P9 -> REGROUPEMENT : placettes + zone non échantillonnée | BME9: =$E9 -> placettes IBP | BMO9: =$O9 -> zone non échantillonnée | BMP9: =$P9 -> REGROUPEMENT : placettes + zone non échantillonnée | BMR9: =$E9 -> placettes IBP | BNB9: =$O9 -> zone non échantillonnée | BNC9: =$P9 -> REGROUPEMENT : placettes + zone non échantillonnée | BNE9: =$E9 -> placettes IBP | BNO9: =$O9 -> zone non échantillonnée | BNP9: =$P9 -> REGROUPEMENT : placettes + zone non échantillonnée | BNR9: =$E9 -> placettes IBP | BOB9: =$O9 -> zone non échantillonnée | BOC9: =$P9 -> REGROUPEMENT : placettes + zone non échantillonnée | BOE9: =$E9 -> placettes IBP | BOO9: =$O9 -> zone non échantillonnée | BOP9: =$P9 -> REGROUPEMENT : placettes + zone non échantillonnée | BOR9: =$E9 -> placettes IBP | BPB9: =$O9 -> zone non échantillonnée | BPC9: =$P9 -> REGROUPEMENT : placettes + zone non échantillonnée | BPE9: =$E9 -> placettes IBP | BPO9: =$O9 -> zone non échantillonnée | BPP9: =$P9 -> REGROUPEMENT : placettes + zone non échantillonnée | BPR9: =$E9 -> placettes IBP | BQB9: =$O9 -> zone non échantillonnée | BQC9: =$P9 -> REGROUPEMENT : placettes + zone non échantillonnée | BQE9: =$E9 -> placettes IBP | BQO9: =$O9 -> zone non échantillonnée | BQP9: =$P9 -> REGROUPEMENT : placettes + zone non échantillonnée | BQR9: =$E9 -> placettes IBP | BRB9: =$O9 -> zone non échantillonnée | BRC9: =$P9 -> REGROUPEMENT : placettes + zone non échantillonnée | BRE9: =$E9 -> placettes IBP | BRO9: =$O9 -> zone non échantillonnée | BRP9: =$P9 -> REGROUPEMENT : placettes + zone non échantillonnée | BRR9: =$E9 -> placettes IBP | BSB9: =$O9 -> zone non échantillonnée | BSC9: =$P9 -> REGROUPEMENT : placettes + zone non échantillonnée | BSE9: =$E9 -> placettes IBP | BSO9: =$O9 -> zone non échantillonnée | BSP9: =$P9 -> REGROUPEMENT : placettes + zone non échantillonnée | BSR9: =$E9 -> placettes IBP | BTB9: =$O9 -> zone non échantillonnée | BTC9: =$P9 -> REGROUPEMENT : placettes + zone non échantillonnée | BTE9: =$E9 -> placettes IBP | BTO9: =$O9 -> zone non échantillonnée | BTP9: =$P9 -> REGROUPEMENT : placettes + zone non échantillonnée | BTR9: =$E9 -> placettes IBP | BUB9: =$O9 -> zone non échantillonnée | BUC9: =$P9 -> REGROUPEMENT : placettes + zone non échantillonnée | BUE9: =$E9 -> placettes IBP | BUO9: =$O9 -> zone non échantillonnée | BUP9: =$P9 -> REGROUPEMENT : placettes + zone non échantillonnée | BUR9: =$E9 -> placettes IBP | BVB9: =$O9 -> zone non échantillonnée | BVC9: =$P9 -> REGROUPEMENT : placettes + zone non échantillonnée | BVE9: =$E9 -> placettes IBP | BVO9: =$O9 -> zone non échantillonnée | BVP9: =$P9 -> REGROUPEMENT : placettes + zone non échantillonnée | BVR9: =$E9 -> placettes IBP | BWB9: =$O9 -> zone non échantillonnée | BWC9: =$P9 -> REGROUPEMENT : placettes + zone non échantillonnée | BWE9: =$E9 -> placettes IBP | BWO9: =$O9 -> zone non échantillonnée | BWP9: =$P9 -> REGROUPEMENT : placettes + zone non échantillonnée | BWR9: =$E9 -> placettes IBP | BXB9: =$O9 -> zone non échantillonnée | BXC9: =$P9 -> REGROUPEMENT : placettes + zone non échantillonnée | BXE9: =$E9 -> placettes IBP | BXO9: =$O9 -> zone non échantillonnée | BXP9: =$P9 -> REGROUPEMENT : placettes + zone non échantillonnée | BXR9: =$E9 -> placettes IBP | BYB9: =$O9 -> zone non échantillonnée | BYC9: =$P9 -> REGROUPEMENT : placettes + zone non échantillonnée | BYE9: =$E9 -> placettes IBP | BYO9: =$O9 -> zone non échantillonnée | BYP9: =$P9 -> REGROUPEMENT : placettes + zone non échantillonnée | BYR9: =$E9 -> placettes IBP | BZB9: =$O9 -> zone non échantillonnée | BZC9: =$P9 -> REGROUPEMENT : placettes + zone non échantillonnée | BZE9: =$E9 -> placettes IBP | BZO9: =$O9 -> zone non échantillonnée | BZP9: =$P9 -> REGROUPEMENT : placettes + zone non échantillonnée | BZR9: =$E9 -> placettes IBP | CAB9: =$O9 -> zone non échantillonnée | CAC9: =$P9 -> REGROUPEMENT : placettes + zone non échantillonnée | CAE9: =$E9 -> placettes IBP | CAO9: =$O9 -> zone non échantillonnée | CAP9: =$P9 -> REGROUPEMENT : placettes + zone non échantillonnée | CAR9: =$E9 -> placettes IBP | CBB9: =$O9 -> zone non échantillonnée | CBC9: =$P9 -> REGROUPEMENT : placettes + zone non échantillonnée | CBE9: =$E9 -> placettes IBP | CBO9: =$O9 -> zone non échantillonnée | CBP9: =$P9 -> REGROUPEMENT : placettes + zone non échantillonnée | CBR9: =$E9 -> placettes IBP | CCB9: =$O9 -> zone non échantillonnée | CCC9: =$P9 -> REGROUPEMENT : placettes + zone non échantillonnée | CCE9: =$E9 -> placettes IBP | CCO9: =$O9 -> zone non échantillonnée | CCP9: =$P9 -> REGROUPEMENT : placettes + zone non échantillonnée | CCR9: =$E9 -> placettes IBP | CDB9: =$O9 -> zone non échantillonnée | CDC9: =$P9 -> REGROUPEMENT : placettes + zone non échantillonnée | CDE9: =$E9 -> placettes IBP | CDO9: =$O9 -> zone non échantillonnée | CDP9: =$P9 -> REGROUPEMENT : placettes + zone non échantillonnée | CDR9: =$E9 -> placettes IBP | CEB9: =$O9 -> zone non échantillonnée | CEC9: =$P9 -> REGROUPEMENT : placettes + zone non échantillonnée | CEE9: =$E9 -> placettes IBP | CEO9: =$O9 -> zone non échantillonnée | CEP9: =$P9 -> REGROUPEMENT : placettes + zone non échantillonnée | CER9: =$E9 -> placettes IBP | CFB9: =$O9 -> zone non échantillonnée | CFC9: =$P9 -> REGROUPEMENT : placettes + zone non échantillonnée | CFE9: =$E9 -> placettes IBP | CFO9: =$O9 -> zone non échantillonnée | CFP9: =$P9 -> REGROUPEMENT : placettes + zone non échantillonnée | CFR9: =$E9 -> placettes IBP | CGB9: =$O9 -> zone non échantillonnée | CGC9: =$P9 -> REGROUPEMENT : placettes + zone non échantillonnée | CGE9: =$E9 -> placettes IBP | CGO9: =$O9 -> zone non échantillonnée | CGP9: =$P9 -> REGROUPEMENT : placettes + zone non échantillonnée | CGR9: =$E9 -> placettes IBP | CHB9: =$O9 -> zone non échantillonnée | CHC9: =$P9 -> REGROUPEMENT : placettes + zone non échantillonnée | CHE9: =$E9 -> placettes IBP | CHO9: =$O9 -> zone non échantillonnée | CHP9: =$P9 -> REGROUPEMENT : placettes + zone non échantillonnée | CHR9: =$E9 -> placettes IBP | CIB9: =$O9 -> zone non échantillonnée | CIC9: =$P9 -> REGROUPEMENT : placettes + zone non échantillonnée | CIE9: =$E9 -> placettes IBP | CIO9: =$O9 -> zone non échantillonnée | CIP9: =$P9 -> REGROUPEMENT : placettes + zone non échantillonnée | CIR9: =$E9 -> placettes IBP | CJB9: =$O9 -> zone non échantillonnée | CJC9: =$P9 -> REGROUPEMENT : placettes + zone non échantillonnée | CJE9: =$E9 -> placettes IBP | CJO9: =$O9 -> zone non échantillonnée | CJP9: =$P9 -> REGROUPEMENT : placettes + zone non échantillonnée | CJR9: =$E9 -> placettes IBP | CKB9: =$O9 -> zone non échantillonnée | CKC9: =$P9 -> REGROUPEMENT : placettes + zone non échantillonnée | CKE9: =$E9 -> placettes IBP | CKO9: =$O9 -> zone non échantillonnée | CKP9: =$P9 -> REGROUPEMENT : placettes + zone non échantillonnée | CKR9: =$E9 -> placettes IBP | CLB9: =$O9 -> zone non échantillonnée | CLC9: =$P9 -> REGROUPEMENT : placettes + zone non échantillonnée | CLE9: =$E9 -> placettes IBP | CLO9: =$O9 -> zone non échantillonnée | CLP9: =$P9 -> REGROUPEMENT : placettes + zone non échantillonnée | CLR9: =$E9 -> placettes IBP | CMB9: =$O9 -> zone non échantillonnée | CMC9: =$P9 -> REGROUPEMENT : placettes + zone non échantillonnée | CME9: =$E9 -> placettes IBP | CMO9: =$O9 -> zone non échantillonnée | CMP9: =$P9 -> REGROUPEMENT : placettes + zone non échantillonnée | CMR9: =$E9 -> placettes IBP | CNB9: =$O9 -> zone non échantillonnée | CNC9: =$P9 -> REGROUPEMENT : placettes + zone non échantillonnée | CNE9: =$E9 -> placettes IBP | CNO9: =$O9 -> zone non échantillonnée | CNP9: =$P9 -> REGROUPEMENT : placettes + zone non échantillonnée | CNR9: =$E9 -> placettes IBP | COB9: =$O9 -> zone non échantillonnée | COC9: =$P9 -> REGROUPEMENT : placettes + zone non échantillonnée | COE9: =$E9 -> placettes IBP | COO9: =$O9 -> zone non échantillonnée | COP9: =$P9 -> REGROUPEMENT : placettes + zone non échantillonnée | COR9: =$E9 -> placettes IBP | CPB9: =$O9 -> zone non échantillonnée | CPC9: =$P9 -> REGROUPEMENT : placettes + zone non échantillonnée | CPE9: =$E9 -> placettes IBP | CPO9: =$O9 -> zone non échantillonnée | CPP9: =$P9 -> REGROUPEMENT : placettes + zone non échantillonnée | CPR9: =$E9 -> placettes IBP | CQB9: =$O9 -> zone non échantillonnée | CQC9: =$P9 -> REGROUPEMENT : placettes + zone non échantillonnée | CQE9: =$E9 -> placettes IBP | CQO9: =$O9 -> zone non échantillonnée | CQP9: =$P9 -> REGROUPEMENT : placettes + zone non échantillonnée | CQR9: =$E9 -> placettes IBP | CRB9: =$O9 -> zone non échantillonnée | CRC9: =$P9 -> REGROUPEMENT : placettes + zone non échantillonnée | CRE9: =$E9 -> placettes IBP | CRO9: =$O9 -> zone non échantillonnée | CRP9: =$P9 -> REGROUPEMENT : placettes + zone non échantillonnée | CRR9: =$E9 -> placettes IBP | CSB9: =$O9 -> zone non échantillonnée | CSC9: =$P9 -> REGROUPEMENT : placettes + zone non échantillonnée | CSE9: =$E9 -> placettes IBP | CSO9: =$O9 -> zone non échantillonnée | CSP9: =$P9 -> REGROUPEMENT : placettes + zone non échantillonnée | CSR9: =$E9 -> placettes IBP | CTB9: =$O9 -> zone non échantillonnée | CTC9: =$P9 -> REGROUPEMENT : placettes + zone non échantillonnée | CTE9: =$E9 -> placettes IBP | CTO9: =$O9 -> zone non échantillonnée | CTP9: =$P9 -> REGROUPEMENT : placettes + zone non échantillonnée | CTR9: =$E9 -> placettes IBP | CUB9: =$O9 -> zone non échantillonnée | CUC9: =$P9 -> REGROUPEMENT : placettes + zone non échantillonnée | CUE9: =$E9 -> placettes IBP | CUO9: =$O9 -> zone non échantillonnée | CUP9: =$P9 -> REGROUPEMENT : placettes + zone non échantillonnée | CUR9: =$E9 -> placettes IBP | CVB9: =$O9 -> zone non échantillonnée | CVC9: =$P9 -> REGROUPEMENT : placettes + zone non échantillonnée | CVE9: =$E9 -> placettes IBP | CVO9: =$O9 -> zone non échantillonnée | CVP9: =$P9 -> REGROUPEMENT : placettes + zone non échantillonnée
A10: do | E10: 1 | F10: =E10+1 -> 2 | G10: =F10+1 -> 3 | H10: 4 | I10: 5 | J10: 6 | K10: 7 | L10: 8 | M10: 9 | N10: 10 | P10: =Translation!$C$669 -> Résultats | Q10: =Translation!$C$860 -> calcul | R10: 1 | S10: =R10+1 -> 2 | T10: 3 | U10: 4 | V10: 5 | W10: 6 | X10: 7 | Y10: 8 | Z10: 9 | AA10: 10 | AC10: =$P10 -> Résultats | AD10: =Translation!$C$860 -> calcul | AE10: 1 | AF10: =AE10+1 -> 2 | AG10: =AF10+1 -> 3 | AH10: =AG10+1 -> 4 | AI10: =AH10+1 -> 5 | AJ10: =AI10+1 -> 6 | AK10: =AJ10+1 -> 7 | AL10: =AK10+1 -> 8 | AM10: =AL10+1 -> 9 | AN10: =AM10+1 -> 10 | AP10: =$P10 -> Résultats | AQ10: =Translation!$C$860 -> calcul | AR10: 1 | AS10: =AR10+1 -> 2 | AT10: =AS10+1 -> 3 | AU10: =AT10+1 -> 4 | AV10: =AU10+1 -> 5 | AW10: =AV10+1 -> 6 | AX10: =AW10+1 -> 7 | AY10: =AX10+1 -> 8 | AZ10: =AY10+1 -> 9 | BA10: =AZ10+1 -> 10 | BC10: =$P10 -> Résultats | BD10: =Translation!$C$860 -> calcul | BE10: 1 | BF10: =BE10+1 -> 2 | BG10: =BF10+1 -> 3 | BH10: =BG10+1 -> 4 | BI10: =BH10+1 -> 5 | BJ10: =BI10+1 -> 6 | BK10: =BJ10+1 -> 7 | BL10: =BK10+1 -> 8 | BM10: =BL10+1 -> 9 | BN10: =BM10+1 -> 10 | BP10: =$P10 -> Résultats | BQ10: =Translation!$C$860 -> calcul | BR10: 1 | BS10: =BR10+1 -> 2 | BT10: =BS10+1 -> 3 | BU10: =BT10+1 -> 4 | BV10: =BU10+1 -> 5 | BW10: =BV10+1 -> 6 | BX10: =BW10+1 -> 7 | BY10: =BX10+1 -> 8 | BZ10: =BY10+1 -> 9 | CA10: =BZ10+1 -> 10 | CC10: =$P10 -> Résultats | CD10: =Translation!$C$860 -> calcul | CE10: 1 | CF10: =CE10+1 -> 2 | CG10: =CF10+1 -> 3 | CH10: =CG10+1 -> 4 | CI10: =CH10+1 -> 5 | CJ10: =CI10+1 -> 6 | CK10: =CJ10+1 -> 7 | CL10: =CK10+1 -> 8 | CM10: =CL10+1 -> 9 | CN10: =CM10+1 -> 10 | CP10: =$P10 -> Résultats | CQ10: =Translation!$C$860 -> calcul | CR10: 1 | CS10: =CR10+1 -> 2 | CT10: =CS10+1 -> 3 | CU10: =CT10+1 -> 4 | CV10: =CU10+1 -> 5 | CW10: =CV10+1 -> 6 | CX10: =CW10+1 -> 7 | CY10: =CX10+1 -> 8 | CZ10: =CY10+1 -> 9 | DA10: =CZ10+1 -> 10 | DC10: =$P10 -> Résultats | DD10: =Translation!$C$860 -> calcul | DE10: 1 | DF10: =DE10+1 -> 2 | DG10: =DF10+1 -> 3 | DH10: =DG10+1 -> 4 | DI10: =DH10+1 -> 5 | DJ10: =DI10+1 -> 6 | DK10: =DJ10+1 -> 7 | DL10: =DK10+1 -> 8 | DM10: =DL10+1 -> 9 | DN10: =DM10+1 -> 10 | DP10: =$P10 -> Résultats | DQ10: =Translation!$C$860 -> calcul | DR10: 1 | DS10: =DR10+1 -> 2 | DT10: =DS10+1 -> 3 | DU10: =DT10+1 -> 4 | DV10: =DU10+1 -> 5 | DW10: =DV10+1 -> 6 | DX10: =DW10+1 -> 7 | DY10: =DX10+1 -> 8 | DZ10: =DY10+1 -> 9 | EA10: =DZ10+1 -> 10 | EC10: =$P10 -> Résultats | ED10: =Translation!$C$860 -> calcul | EE10: 1 | EF10: =EE10+1 -> 2 | EG10: =EF10+1 -> 3 | EH10: =EG10+1 -> 4 | EI10: =EH10+1 -> 5 | EJ10: =EI10+1 -> 6 | EK10: =EJ10+1 -> 7 | EL10: =EK10+1 -> 8 | EM10: =EL10+1 -> 9 | EN10: =EM10+1 -> 10 | EP10: =$P10 -> Résultats | EQ10: =Translation!$C$860 -> calcul | ER10: 1 | ES10: =ER10+1 -> 2 | ET10: =ES10+1 -> 3 | EU10: =ET10+1 -> 4 | EV10: =EU10+1 -> 5 | EW10: =EV10+1 -> 6 | EX10: =EW10+1 -> 7 | EY10: =EX10+1 -> 8 | EZ10: =EY10+1 -> 9 | FA10: =EZ10+1 -> 10 | FC10: =$P10 -> Résultats | FD10: =Translation!$C$860 -> calcul | FE10: 1 | FF10: =FE10+1 -> 2 | FG10: =FF10+1 -> 3 | FH10: =FG10+1 -> 4 | FI10: =FH10+1 -> 5 | FJ10: =FI10+1 -> 6 | FK10: =FJ10+1 -> 7 | FL10: =FK10+1 -> 8 | FM10: =FL10+1 -> 9 | FN10: =FM10+1 -> 10 | FP10: =$P10 -> Résultats | FQ10: =Translation!$C$860 -> calcul | FR10: 1 | FS10: =FR10+1 -> 2 | FT10: =FS10+1 -> 3 | FU10: =FT10+1 -> 4 | FV10: =FU10+1 -> 5 | FW10: =FV10+1 -> 6 | FX10: =FW10+1 -> 7 | FY10: =FX10+1 -> 8 | FZ10: =FY10+1 -> 9 | GA10: =FZ10+1 -> 10 | GC10: =$P10 -> Résultats | GD10: =Translation!$C$860 -> calcul | GE10: 1 | GF10: =GE10+1 -> 2 | GG10: =GF10+1 -> 3 | GH10: =GG10+1 -> 4 | GI10: =GH10+1 -> 5 | GJ10: =GI10+1 -> 6 | GK10: =GJ10+1 -> 7 | GL10: =GK10+1 -> 8 | GM10: =GL10+1 -> 9 | GN10: =GM10+1 -> 10 | GP10: =$P10 -> Résultats | GQ10: =Translation!$C$860 -> calcul | GR10: 1 | GS10: =GR10+1 -> 2 | GT10: =GS10+1 -> 3 | GU10: =GT10+1 -> 4 | GV10: =GU10+1 -> 5 | GW10: =GV10+1 -> 6 | GX10: =GW10+1 -> 7 | GY10: =GX10+1 -> 8 | GZ10: =GY10+1 -> 9 | HA10: =GZ10+1 -> 10 | HC10: =$P10 -> Résultats | HD10: =Translation!$C$860 -> calcul | HE10: 1 | HF10: =HE10+1 -> 2 | HG10: =HF10+1 -> 3 | HH10: =HG10+1 -> 4 | HI10: =HH10+1 -> 5 | HJ10: =HI10+1 -> 6 | HK10: =HJ10+1 -> 7 | HL10: =HK10+1 -> 8 | HM10: =HL10+1 -> 9 | HN10: =HM10+1 -> 10 | HP10: =$P10 -> Résultats | HQ10: =Translation!$C$860 -> calcul | HR10: 1 | HS10: =HR10+1 -> 2 | HT10: =HS10+1 -> 3 | HU10: =HT10+1 -> 4 | HV10: =HU10+1 -> 5 | HW10: =HV10+1 -> 6 | HX10: =HW10+1 -> 7 | HY10: =HX10+1 -> 8 | HZ10: =HY10+1 -> 9 | IA10: =HZ10+1 -> 10 | IC10: =$P10 -> Résultats | ID10: =Translation!$C$860 -> calcul | IE10: 1 | IF10: =IE10+1 -> 2 | IG10: =IF10+1 -> 3 | IH10: =IG10+1 -> 4 | II10: =IH10+1 -> 5 | IJ10: =II10+1 -> 6 | IK10: =IJ10+1 -> 7 | IL10: =IK10+1 -> 8 | IM10: =IL10+1 -> 9 | IN10: =IM10+1 -> 10 | IP10: =$P10 -> Résultats | IQ10: =Translation!$C$860 -> calcul | IR10: 1 | IS10: =IR10+1 -> 2 | IT10: =IS10+1 -> 3 | IU10: =IT10+1 -> 4 | IV10: =IU10+1 -> 5 | IW10: =IV10+1 -> 6 | IX10: =IW10+1 -> 7 | IY10: =IX10+1 -> 8 | IZ10: =IY10+1 -> 9 | JA10: =IZ10+1 -> 10 | JC10: =$P10 -> Résultats | JD10: =Translation!$C$860 -> calcul | JE10: 1 | JF10: =JE10+1 -> 2 | JG10: =JF10+1 -> 3 | JH10: =JG10+1 -> 4 | JI10: =JH10+1 -> 5 | JJ10: =JI10+1 -> 6 | JK10: =JJ10+1 -> 7 | JL10: =JK10+1 -> 8 | JM10: =JL10+1 -> 9 | JN10: =JM10+1 -> 10 | JP10: =$P10 -> Résultats | JQ10: =Translation!$C$860 -> calcul | JR10: 1 | JS10: =JR10+1 -> 2 | JT10: =JS10+1 -> 3 | JU10: =JT10+1 -> 4 | JV10: =JU10+1 -> 5 | JW10: =JV10+1 -> 6 | JX10: =JW10+1 -> 7 | JY10: =JX10+1 -> 8 | JZ10: =JY10+1 -> 9 | KA10: =JZ10+1 -> 10 | KC10: =$P10 -> Résultats | KD10: =Translation!$C$860 -> calcul | KE10: 1 | KF10: =KE10+1 -> 2 | KG10: =KF10+1 -> 3 | KH10: =KG10+1 -> 4 | KI10: =KH10+1 -> 5 | KJ10: =KI10+1 -> 6 | KK10: =KJ10+1 -> 7 | KL10: =KK10+1 -> 8 | KM10: =KL10+1 -> 9 | KN10: =KM10+1 -> 10 | KP10: =$P10 -> Résultats | KQ10: =Translation!$C$860 -> calcul | KR10: 1 | KS10: =KR10+1 -> 2 | KT10: =KS10+1 -> 3 | KU10: =KT10+1 -> 4 | KV10: =KU10+1 -> 5 | KW10: =KV10+1 -> 6 | KX10: =KW10+1 -> 7 | KY10: =KX10+1 -> 8 | KZ10: =KY10+1 -> 9 | LA10: =KZ10+1 -> 10 | LC10: =$P10 -> Résultats | LD10: =Translation!$C$860 -> calcul | LE10: 1 | LF10: =LE10+1 -> 2 | LG10: =LF10+1 -> 3 | LH10: =LG10+1 -> 4 | LI10: =LH10+1 -> 5 | LJ10: =LI10+1 -> 6 | LK10: =LJ10+1 -> 7 | LL10: =LK10+1 -> 8 | LM10: =LL10+1 -> 9 | LN10: =LM10+1 -> 10 | LP10: =$P10 -> Résultats | LQ10: =Translation!$C$860 -> calcul | LR10: 1 | LS10: =LR10+1 -> 2 | LT10: =LS10+1 -> 3 | LU10: =LT10+1 -> 4 | LV10: =LU10+1 -> 5 | LW10: =LV10+1 -> 6 | LX10: =LW10+1 -> 7 | LY10: =LX10+1 -> 8 | LZ10: =LY10+1 -> 9 | MA10: =LZ10+1 -> 10 | MC10: =$P10 -> Résultats | MD10: =Translation!$C$860 -> calcul | ME10: 1 | MF10: =ME10+1 -> 2 | MG10: =MF10+1 -> 3 | MH10: =MG10+1 -> 4 | MI10: =MH10+1 -> 5 | MJ10: =MI10+1 -> 6 | MK10: =MJ10+1 -> 7 | ML10: =MK10+1 -> 8 | MM10: =ML10+1 -> 9 | MN10: =MM10+1 -> 10 | MP10: =$P10 -> Résultats | MQ10: =Translation!$C$860 -> calcul | MR10: 1 | MS10: =MR10+1 -> 2 | MT10: =MS10+1 -> 3 | MU10: =MT10+1 -> 4 | MV10: =MU10+1 -> 5 | MW10: =MV10+1 -> 6 | MX10: =MW10+1 -> 7 | MY10: =MX10+1 -> 8 | MZ10: =MY10+1 -> 9 | NA10: =MZ10+1 -> 10 | NC10: =$P10 -> Résultats | ND10: =Translation!$C$860 -> calcul | NE10: 1 | NF10: =NE10+1 -> 2 | NG10: =NF10+1 -> 3 | NH10: =NG10+1 -> 4 | NI10: =NH10+1 -> 5 | NJ10: =NI10+1 -> 6 | NK10: =NJ10+1 -> 7 | NL10: =NK10+1 -> 8 | NM10: =NL10+1 -> 9 | NN10: =NM10+1 -> 10 | NP10: =$P10 -> Résultats | NQ10: =Translation!$C$860 -> calcul | NR10: 1 | NS10: =NR10+1 -> 2 | NT10: =NS10+1 -> 3 | NU10: =NT10+1 -> 4 | NV10: =NU10+1 -> 5 | NW10: =NV10+1 -> 6 | NX10: =NW10+1 -> 7 | NY10: =NX10+1 -> 8 | NZ10: =NY10+1 -> 9 | OA10: =NZ10+1 -> 10 | OC10: =$P10 -> Résultats | OD10: =Translation!$C$860 -> calcul | OE10: 1 | OF10: =OE10+1 -> 2 | OG10: =OF10+1 -> 3 | OH10: =OG10+1 -> 4 | OI10: =OH10+1 -> 5 | OJ10: =OI10+1 -> 6 | OK10: =OJ10+1 -> 7 | OL10: =OK10+1 -> 8 | OM10: =OL10+1 -> 9 | ON10: =OM10+1 -> 10 | OP10: =$P10 -> Résultats | OQ10: =Translation!$C$860 -> calcul | OR10: 1 | OS10: =OR10+1 -> 2 | OT10: =OS10+1 -> 3 | OU10: =OT10+1 -> 4 | OV10: =OU10+1 -> 5 | OW10: =OV10+1 -> 6 | OX10: =OW10+1 -> 7 | OY10: =OX10+1 -> 8 | OZ10: =OY10+1 -> 9 | PA10: =OZ10+1 -> 10 | PC10: =$P10 -> Résultats | PD10: =Translation!$C$860 -> calcul | PE10: 1 | PF10: =PE10+1 -> 2 | PG10: =PF10+1 -> 3 | PH10: =PG10+1 -> 4 | PI10: =PH10+1 -> 5 | PJ10: =PI10+1 -> 6 | PK10: =PJ10+1 -> 7 | PL10: =PK10+1 -> 8 | PM10: =PL10+1 -> 9 | PN10: =PM10+1 -> 10 | PP10: =$P10 -> Résultats | PQ10: =Translation!$C$860 -> calcul | PR10: 1 | PS10: =PR10+1 -> 2 | PT10: =PS10+1 -> 3 | PU10: =PT10+1 -> 4 | PV10: =PU10+1 -> 5 | PW10: =PV10+1 -> 6 | PX10: =PW10+1 -> 7 | PY10: =PX10+1 -> 8 | PZ10: =PY10+1 -> 9 | QA10: =PZ10+1 -> 10 | QC10: =$P10 -> Résultats | QD10: =Translation!$C$860 -> calcul | QE10: 1 | QF10: =QE10+1 -> 2 | QG10: =QF10+1 -> 3 | QH10: =QG10+1 -> 4 | QI10: =QH10+1 -> 5 | QJ10: =QI10+1 -> 6 | QK10: =QJ10+1 -> 7 | QL10: =QK10+1 -> 8 | QM10: =QL10+1 -> 9 | QN10: =QM10+1 -> 10 | QP10: =$P10 -> Résultats | QQ10: =Translation!$C$860 -> calcul | QR10: 1 | QS10: =QR10+1 -> 2 | QT10: =QS10+1 -> 3 | QU10: =QT10+1 -> 4 | QV10: =QU10+1 -> 5 | QW10: =QV10+1 -> 6 | QX10: =QW10+1 -> 7 | QY10: =QX10+1 -> 8 | QZ10: =QY10+1 -> 9 | RA10: =QZ10+1 -> 10 | RC10: =$P10 -> Résultats | RD10: =Translation!$C$860 -> calcul | RE10: 1 | RF10: =RE10+1 -> 2 | RG10: =RF10+1 -> 3 | RH10: =RG10+1 -> 4 | RI10: =RH10+1 -> 5 | RJ10: =RI10+1 -> 6 | RK10: =RJ10+1 -> 7 | RL10: =RK10+1 -> 8 | RM10: =RL10+1 -> 9 | RN10: =RM10+1 -> 10 | RP10: =$P10 -> Résultats | RQ10: =Translation!$C$860 -> calcul | RR10: 1 | RS10: =RR10+1 -> 2 | RT10: =RS10+1 -> 3 | RU10: =RT10+1 -> 4 | RV10: =RU10+1 -> 5 | RW10: =RV10+1 -> 6 | RX10: =RW10+1 -> 7 | RY10: =RX10+1 -> 8 | RZ10: =RY10+1 -> 9 | SA10: =RZ10+1 -> 10 | SC10: =$P10 -> Résultats | SD10: =Translation!$C$860 -> calcul | SE10: 1 | SF10: =SE10+1 -> 2 | SG10: =SF10+1 -> 3 | SH10: =SG10+1 -> 4 | SI10: =SH10+1 -> 5 | SJ10: =SI10+1 -> 6 | SK10: =SJ10+1 -> 7 | SL10: =SK10+1 -> 8 | SM10: =SL10+1 -> 9 | SN10: =SM10+1 -> 10 | SP10: =$P10 -> Résultats | SQ10: =Translation!$C$860 -> calcul | SR10: 1 | SS10: =SR10+1 -> 2 | ST10: =SS10+1 -> 3 | SU10: =ST10+1 -> 4 | SV10: =SU10+1 -> 5 | SW10: =SV10+1 -> 6 | SX10: =SW10+1 -> 7 | SY10: =SX10+1 -> 8 | SZ10: =SY10+1 -> 9 | TA10: =SZ10+1 -> 10 | TC10: =$P10 -> Résultats | TD10: =Translation!$C$860 -> calcul | TE10: 1 | TF10: =TE10+1 -> 2 | TG10: =TF10+1 -> 3 | TH10: =TG10+1 -> 4 | TI10: =TH10+1 -> 5 | TJ10: =TI10+1 -> 6 | TK10: =TJ10+1 -> 7 | TL10: =TK10+1 -> 8 | TM10: =TL10+1 -> 9 | TN10: =TM10+1 -> 10 | TP10: =$P10 -> Résultats | TQ10: =Translation!$C$860 -> calcul | TR10: 1 | TS10: =TR10+1 -> 2 | TT10: =TS10+1 -> 3 | TU10: =TT10+1 -> 4 | TV10: =TU10+1 -> 5 | TW10: =TV10+1 -> 6 | TX10: =TW10+1 -> 7 | TY10: =TX10+1 -> 8 | TZ10: =TY10+1 -> 9 | UA10: =TZ10+1 -> 10 | UC10: =$P10 -> Résultats | UD10: =Translation!$C$860 -> calcul | UE10: 1 | UF10: =UE10+1 -> 2 | UG10: =UF10+1 -> 3 | UH10: =UG10+1 -> 4 | UI10: =UH10+1 -> 5 | UJ10: =UI10+1 -> 6 | UK10: =UJ10+1 -> 7 | UL10: =UK10+1 -> 8 | UM10: =UL10+1 -> 9 | UN10: =UM10+1 -> 10 | UP10: =$P10 -> Résultats | UQ10: =Translation!$C$860 -> calcul | UR10: 1 | US10: =UR10+1 -> 2 | UT10: =US10+1 -> 3 | UU10: =UT10+1 -> 4 | UV10: =UU10+1 -> 5 | UW10: =UV10+1 -> 6 | UX10: =UW10+1 -> 7 | UY10: =UX10+1 -> 8 | UZ10: =UY10+1 -> 9 | VA10: =UZ10+1 -> 10 | VC10: =$P10 -> Résultats | VD10: =Translation!$C$860 -> calcul | VE10: 1 | VF10: =VE10+1 -> 2 | VG10: =VF10+1 -> 3 | VH10: =VG10+1 -> 4 | VI10: =VH10+1 -> 5 | VJ10: =VI10+1 -> 6 | VK10: =VJ10+1 -> 7 | VL10: =VK10+1 -> 8 | VM10: =VL10+1 -> 9 | VN10: =VM10+1 -> 10 | VP10: =$P10 -> Résultats | VQ10: =Translation!$C$860 -> calcul | VR10: 1 | VS10: =VR10+1 -> 2 | VT10: =VS10+1 -> 3 | VU10: =VT10+1 -> 4 | VV10: =VU10+1 -> 5 | VW10: =VV10+1 -> 6 | VX10: =VW10+1 -> 7 | VY10: =VX10+1 -> 8 | VZ10: =VY10+1 -> 9 | WA10: =VZ10+1 -> 10 | WC10: =$P10 -> Résultats | WD10: =Translation!$C$860 -> calcul | WE10: 1 | WF10: =WE10+1 -> 2 | WG10: =WF10+1 -> 3 | WH10: =WG10+1 -> 4 | WI10: =WH10+1 -> 5 | WJ10: =WI10+1 -> 6 | WK10: =WJ10+1 -> 7 | WL10: =WK10+1 -> 8 | WM10: =WL10+1 -> 9 | WN10: =WM10+1 -> 10 | WP10: =$P10 -> Résultats | WQ10: =Translation!$C$860 -> calcul | WR10: 1 | WS10: =WR10+1 -> 2 | WT10: =WS10+1 -> 3 | WU10: =WT10+1 -> 4 | WV10: =WU10+1 -> 5 | WW10: =WV10+1 -> 6 | WX10: =WW10+1 -> 7 | WY10: =WX10+1 -> 8 | WZ10: =WY10+1 -> 9 | XA10: =WZ10+1 -> 10 | XC10: =$P10 -> Résultats | XD10: =Translation!$C$860 -> calcul | XE10: 1 | XF10: =XE10+1 -> 2 | XG10: =XF10+1 -> 3 | XH10: =XG10+1 -> 4 | XI10: =XH10+1 -> 5 | XJ10: =XI10+1 -> 6 | XK10: =XJ10+1 -> 7 | XL10: =XK10+1 -> 8 | XM10: =XL10+1 -> 9 | XN10: =XM10+1 -> 10 | XP10: =$P10 -> Résultats | XQ10: =Translation!$C$860 -> calcul | XR10: 1 | XS10: =XR10+1 -> 2 | XT10: =XS10+1 -> 3 | XU10: =XT10+1 -> 4 | XV10: =XU10+1 -> 5 | XW10: =XV10+1 -> 6 | XX10: =XW10+1 -> 7 | XY10: =XX10+1 -> 8 | XZ10: =XY10+1 -> 9 | YA10: =XZ10+1 -> 10 | YC10: =$P10 -> Résultats | YD10: =Translation!$C$860 -> calcul | YE10: 1 | YF10: =YE10+1 -> 2 | YG10: =YF10+1 -> 3 | YH10: =YG10+1 -> 4 | YI10: =YH10+1 -> 5 | YJ10: =YI10+1 -> 6 | YK10: =YJ10+1 -> 7 | YL10: =YK10+1 -> 8 | YM10: =YL10+1 -> 9 | YN10: =YM10+1 -> 10 | YP10: =$P10 -> Résultats | YQ10: =Translation!$C$860 -> calcul | YR10: 1 | YS10: =YR10+1 -> 2 | YT10: =YS10+1 -> 3 | YU10: =YT10+1 -> 4 | YV10: =YU10+1 -> 5 | YW10: =YV10+1 -> 6 | YX10: =YW10+1 -> 7 | YY10: =YX10+1 -> 8 | YZ10: =YY10+1 -> 9 | ZA10: =YZ10+1 -> 10 | ZC10: =$P10 -> Résultats | ZD10: =Translation!$C$860 -> calcul | ZE10: 1 | ZF10: =ZE10+1 -> 2 | ZG10: =ZF10+1 -> 3 | ZH10: =ZG10+1 -> 4 | ZI10: =ZH10+1 -> 5 | ZJ10: =ZI10+1 -> 6 | ZK10: =ZJ10+1 -> 7 | ZL10: =ZK10+1 -> 8 | ZM10: =ZL10+1 -> 9 | ZN10: =ZM10+1 -> 10 | ZP10: =$P10 -> Résultats | ZQ10: =Translation!$C$860 -> calcul | ZR10: 1 | ZS10: =ZR10+1 -> 2 | ZT10: =ZS10+1 -> 3 | ZU10: =ZT10+1 -> 4 | ZV10: =ZU10+1 -> 5 | ZW10: =ZV10+1 -> 6 | ZX10: =ZW10+1 -> 7 | ZY10: =ZX10+1 -> 8 | ZZ10: =ZY10+1 -> 9 | AAA10: =ZZ10+1 -> 10 | AAC10: =$P10 -> Résultats | AAD10: =Translation!$C$860 -> calcul | AAE10: 1 | AAF10: =AAE10+1 -> 2 | AAG10: =AAF10+1 -> 3 | AAH10: =AAG10+1 -> 4 | AAI10: =AAH10+1 -> 5 | AAJ10: =AAI10+1 -> 6 | AAK10: =AAJ10+1 -> 7 | AAL10: =AAK10+1 -> 8 | AAM10: =AAL10+1 -> 9 | AAN10: =AAM10+1 -> 10 | AAP10: =$P10 -> Résultats | AAQ10: =Translation!$C$860 -> calcul | AAR10: 1 | AAS10: =AAR10+1 -> 2 | AAT10: =AAS10+1 -> 3 | AAU10: =AAT10+1 -> 4 | AAV10: =AAU10+1 -> 5 | AAW10: =AAV10+1 -> 6 | AAX10: =AAW10+1 -> 7 | AAY10: =AAX10+1 -> 8 | AAZ10: =AAY10+1 -> 9 | ABA10: =AAZ10+1 -> 10 | ABC10: =$P10 -> Résultats | ABD10: =Translation!$C$860 -> calcul | ABE10: 1 | ABF10: =ABE10+1 -> 2 | ABG10: =ABF10+1 -> 3 | ABH10: =ABG10+1 -> 4 | ABI10: =ABH10+1 -> 5 | ABJ10: =ABI10+1 -> 6 | ABK10: =ABJ10+1 -> 7 | ABL10: =ABK10+1 -> 8 | ABM10: =ABL10+1 -> 9 | ABN10: =ABM10+1 -> 10 | ABP10: =$P10 -> Résultats | ABQ10: =Translation!$C$860 -> calcul | ABR10: 1 | ABS10: =ABR10+1 -> 2 | ABT10: =ABS10+1 -> 3 | ABU10: =ABT10+1 -> 4 | ABV10: =ABU10+1 -> 5 | ABW10: =ABV10+1 -> 6 | ABX10: =ABW10+1 -> 7 | ABY10: =ABX10+1 -> 8 | ABZ10: =ABY10+1 -> 9 | ACA10: =ABZ10+1 -> 10 | ACC10: =$P10 -> Résultats | ACD10: =Translation!$C$860 -> calcul | ACE10: 1 | ACF10: =ACE10+1 -> 2 | ACG10: =ACF10+1 -> 3 | ACH10: =ACG10+1 -> 4 | ACI10: =ACH10+1 -> 5 | ACJ10: =ACI10+1 -> 6 | ACK10: =ACJ10+1 -> 7 | ACL10: =ACK10+1 -> 8 | ACM10: =ACL10+1 -> 9 | ACN10: =ACM10+1 -> 10 | ACP10: =$P10 -> Résultats | ACQ10: =Translation!$C$860 -> calcul | ACR10: 1 | ACS10: =ACR10+1 -> 2 | ACT10: =ACS10+1 -> 3 | ACU10: =ACT10+1 -> 4 | ACV10: =ACU10+1 -> 5 | ACW10: =ACV10+1 -> 6 | ACX10: =ACW10+1 -> 7 | ACY10: =ACX10+1 -> 8 | ACZ10: =ACY10+1 -> 9 | ADA10: =ACZ10+1 -> 10 | ADC10: =$P10 -> Résultats | ADD10: =Translation!$C$860 -> calcul | ADE10: 1 | ADF10: =ADE10+1 -> 2 | ADG10: =ADF10+1 -> 3 | ADH10: =ADG10+1 -> 4 | ADI10: =ADH10+1 -> 5 | ADJ10: =ADI10+1 -> 6 | ADK10: =ADJ10+1 -> 7 | ADL10: =ADK10+1 -> 8 | ADM10: =ADL10+1 -> 9 | ADN10: =ADM10+1 -> 10 | ADP10: =$P10 -> Résultats | ADQ10: =Translation!$C$860 -> calcul | ADR10: 1 | ADS10: =ADR10+1 -> 2 | ADT10: =ADS10+1 -> 3 | ADU10: =ADT10+1 -> 4 | ADV10: =ADU10+1 -> 5 | ADW10: =ADV10+1 -> 6 | ADX10: =ADW10+1 -> 7 | ADY10: =ADX10+1 -> 8 | ADZ10: =ADY10+1 -> 9 | AEA10: =ADZ10+1 -> 10 | AEC10: =$P10 -> Résultats | AED10: =Translation!$C$860 -> calcul | AEE10: 1 | AEF10: =AEE10+1 -> 2 | AEG10: =AEF10+1 -> 3 | AEH10: =AEG10+1 -> 4 | AEI10: =AEH10+1 -> 5 | AEJ10: =AEI10+1 -> 6 | AEK10: =AEJ10+1 -> 7 | AEL10: =AEK10+1 -> 8 | AEM10: =AEL10+1 -> 9 | AEN10: =AEM10+1 -> 10 | AEP10: =$P10 -> Résultats | AEQ10: =Translation!$C$860 -> calcul | AER10: 1 | AES10: =AER10+1 -> 2 | AET10: =AES10+1 -> 3 | AEU10: =AET10+1 -> 4 | AEV10: =AEU10+1 -> 5 | AEW10: =AEV10+1 -> 6 | AEX10: =AEW10+1 -> 7 | AEY10: =AEX10+1 -> 8 | AEZ10: =AEY10+1 -> 9 | AFA10: =AEZ10+1 -> 10 | AFC10: =$P10 -> Résultats | AFD10: =Translation!$C$860 -> calcul | AFE10: 1 | AFF10: =AFE10+1 -> 2 | AFG10: =AFF10+1 -> 3 | AFH10: =AFG10+1 -> 4 | AFI10: =AFH10+1 -> 5 | AFJ10: =AFI10+1 -> 6 | AFK10: =AFJ10+1 -> 7 | AFL10: =AFK10+1 -> 8 | AFM10: =AFL10+1 -> 9 | AFN10: =AFM10+1 -> 10 | AFP10: =$P10 -> Résultats | AFQ10: =Translation!$C$860 -> calcul | AFR10: 1 | AFS10: =AFR10+1 -> 2 | AFT10: =AFS10+1 -> 3 | AFU10: =AFT10+1 -> 4 | AFV10: =AFU10+1 -> 5 | AFW10: =AFV10+1 -> 6 | AFX10: =AFW10+1 -> 7 | AFY10: =AFX10+1 -> 8 | AFZ10: =AFY10+1 -> 9 | AGA10: =AFZ10+1 -> 10 | AGC10: =$P10 -> Résultats | AGD10: =Translation!$C$860 -> calcul | AGE10: 1 | AGF10: =AGE10+1 -> 2 | AGG10: =AGF10+1 -> 3 | AGH10: =AGG10+1 -> 4 | AGI10: =AGH10+1 -> 5 | AGJ10: =AGI10+1 -> 6 | AGK10: =AGJ10+1 -> 7 | AGL10: =AGK10+1 -> 8 | AGM10: =AGL10+1 -> 9 | AGN10: =AGM10+1 -> 10 | AGP10: =$P10 -> Résultats | AGQ10: =Translation!$C$860 -> calcul | AGR10: 1 | AGS10: =AGR10+1 -> 2 | AGT10: =AGS10+1 -> 3 | AGU10: =AGT10+1 -> 4 | AGV10: =AGU10+1 -> 5 | AGW10: =AGV10+1 -> 6 | AGX10: =AGW10+1 -> 7 | AGY10: =AGX10+1 -> 8 | AGZ10: =AGY10+1 -> 9 | AHA10: =AGZ10+1 -> 10 | AHC10: =$P10 -> Résultats | AHD10: =Translation!$C$860 -> calcul | AHE10: 1 | AHF10: =AHE10+1 -> 2 | AHG10: =AHF10+1 -> 3 | AHH10: =AHG10+1 -> 4 | AHI10: =AHH10+1 -> 5 | AHJ10: =AHI10+1 -> 6 | AHK10: =AHJ10+1 -> 7 | AHL10: =AHK10+1 -> 8 | AHM10: =AHL10+1 -> 9 | AHN10: =AHM10+1 -> 10 | AHP10: =$P10 -> Résultats | AHQ10: =Translation!$C$860 -> calcul | AHR10: 1 | AHS10: =AHR10+1 -> 2 | AHT10: =AHS10+1 -> 3 | AHU10: =AHT10+1 -> 4 | AHV10: =AHU10+1 -> 5 | AHW10: =AHV10+1 -> 6 | AHX10: =AHW10+1 -> 7 | AHY10: =AHX10+1 -> 8 | AHZ10: =AHY10+1 -> 9 | AIA10: =AHZ10+1 -> 10 | AIC10: =$P10 -> Résultats | AID10: =Translation!$C$860 -> calcul | AIE10: 1 | AIF10: =AIE10+1 -> 2 | AIG10: =AIF10+1 -> 3 | AIH10: =AIG10+1 -> 4 | AII10: =AIH10+1 -> 5 | AIJ10: =AII10+1 -> 6 | AIK10: =AIJ10+1 -> 7 | AIL10: =AIK10+1 -> 8 | AIM10: =AIL10+1 -> 9 | AIN10: =AIM10+1 -> 10 | AIP10: =$P10 -> Résultats | AIQ10: =Translation!$C$860 -> calcul | AIR10: 1 | AIS10: =AIR10+1 -> 2 | AIT10: =AIS10+1 -> 3 | AIU10: =AIT10+1 -> 4 | AIV10: =AIU10+1 -> 5 | AIW10: =AIV10+1 -> 6 | AIX10: =AIW10+1 -> 7 | AIY10: =AIX10+1 -> 8 | AIZ10: =AIY10+1 -> 9 | AJA10: =AIZ10+1 -> 10 | AJC10: =$P10 -> Résultats | AJD10: =Translation!$C$860 -> calcul | AJE10: 1 | AJF10: =AJE10+1 -> 2 | AJG10: =AJF10+1 -> 3 | AJH10: =AJG10+1 -> 4 | AJI10: =AJH10+1 -> 5 | AJJ10: =AJI10+1 -> 6 | AJK10: =AJJ10+1 -> 7 | AJL10: =AJK10+1 -> 8 | AJM10: =AJL10+1 -> 9 | AJN10: =AJM10+1 -> 10 | AJP10: =$P10 -> Résultats | AJQ10: =Translation!$C$860 -> calcul | AJR10: 1 | AJS10: =AJR10+1 -> 2 | AJT10: =AJS10+1 -> 3 | AJU10: =AJT10+1 -> 4 | AJV10: =AJU10+1 -> 5 | AJW10: =AJV10+1 -> 6 | AJX10: =AJW10+1 -> 7 | AJY10: =AJX10+1 -> 8 | AJZ10: =AJY10+1 -> 9 | AKA10: =AJZ10+1 -> 10 | AKC10: =$P10 -> Résultats | AKD10: =Translation!$C$860 -> calcul | AKE10: 1 | AKF10: =AKE10+1 -> 2 | AKG10: =AKF10+1 -> 3 | AKH10: =AKG10+1 -> 4 | AKI10: =AKH10+1 -> 5 | AKJ10: =AKI10+1 -> 6 | AKK10: =AKJ10+1 -> 7 | AKL10: =AKK10+1 -> 8 | AKM10: =AKL10+1 -> 9 | AKN10: =AKM10+1 -> 10 | AKP10: =$P10 -> Résultats | AKQ10: =Translation!$C$860 -> calcul | AKR10: 1 | AKS10: =AKR10+1 -> 2 | AKT10: =AKS10+1 -> 3 | AKU10: =AKT10+1 -> 4 | AKV10: =AKU10+1 -> 5 | AKW10: =AKV10+1 -> 6 | AKX10: =AKW10+1 -> 7 | AKY10: =AKX10+1 -> 8 | AKZ10: =AKY10+1 -> 9 | ALA10: =AKZ10+1 -> 10 | ALC10: =$P10 -> Résultats | ALD10: =Translation!$C$860 -> calcul | ALE10: 1 | ALF10: =ALE10+1 -> 2 | ALG10: =ALF10+1 -> 3 | ALH10: =ALG10+1 -> 4 | ALI10: =ALH10+1 -> 5 | ALJ10: =ALI10+1 -> 6 | ALK10: =ALJ10+1 -> 7 | ALL10: =ALK10+1 -> 8 | ALM10: =ALL10+1 -> 9 | ALN10: =ALM10+1 -> 10 | ALP10: =$P10 -> Résultats | ALQ10: =Translation!$C$860 -> calcul | ALR10: 1 | ALS10: =ALR10+1 -> 2 | ALT10: =ALS10+1 -> 3 | ALU10: =ALT10+1 -> 4 | ALV10: =ALU10+1 -> 5 | ALW10: =ALV10+1 -> 6 | ALX10: =ALW10+1 -> 7 | ALY10: =ALX10+1 -> 8 | ALZ10: =ALY10+1 -> 9 | AMA10: =ALZ10+1 -> 10 | AMC10: =$P10 -> Résultats | AMD10: =Translation!$C$860 -> calcul | AME10: 1 | AMF10: =AME10+1 -> 2 | AMG10: =AMF10+1 -> 3 | AMH10: =AMG10+1 -> 4 | AMI10: =AMH10+1 -> 5 | AMJ10: =AMI10+1 -> 6 | AMK10: =AMJ10+1 -> 7 | AML10: =AMK10+1 -> 8 | AMM10: =AML10+1 -> 9 | AMN10: =AMM10+1 -> 10 | AMP10: =$P10 -> Résultats | AMQ10: =Translation!$C$860 -> calcul | AMR10: 1 | AMS10: =AMR10+1 -> 2 | AMT10: =AMS10+1 -> 3 | AMU10: =AMT10+1 -> 4 | AMV10: =AMU10+1 -> 5 | AMW10: =AMV10+1 -> 6 | AMX10: =AMW10+1 -> 7 | AMY10: =AMX10+1 -> 8 | AMZ10: =AMY10+1 -> 9 | ANA10: =AMZ10+1 -> 10 | ANC10: =$P10 -> Résultats | AND10: =Translation!$C$860 -> calcul | ANE10: 1 | ANF10: =ANE10+1 -> 2 | ANG10: =ANF10+1 -> 3 | ANH10: =ANG10+1 -> 4 | ANI10: =ANH10+1 -> 5 | ANJ10: =ANI10+1 -> 6 | ANK10: =ANJ10+1 -> 7 | ANL10: =ANK10+1 -> 8 | ANM10: =ANL10+1 -> 9 | ANN10: =ANM10+1 -> 10 | ANP10: =$P10 -> Résultats | ANQ10: =Translation!$C$860 -> calcul | ANR10: 1 | ANS10: =ANR10+1 -> 2 | ANT10: =ANS10+1 -> 3 | ANU10: =ANT10+1 -> 4 | ANV10: =ANU10+1 -> 5 | ANW10: =ANV10+1 -> 6 | ANX10: =ANW10+1 -> 7 | ANY10: =ANX10+1 -> 8 | ANZ10: =ANY10+1 -> 9 | AOA10: =ANZ10+1 -> 10 | AOC10: =$P10 -> Résultats | AOD10: =Translation!$C$860 -> calcul | AOE10: 1 | AOF10: =AOE10+1 -> 2 | AOG10: =AOF10+1 -> 3 | AOH10: =AOG10+1 -> 4 | AOI10: =AOH10+1 -> 5 | AOJ10: =AOI10+1 -> 6 | AOK10: =AOJ10+1 -> 7 | AOL10: =AOK10+1 -> 8 | AOM10: =AOL10+1 -> 9 | AON10: =AOM10+1 -> 10 | AOP10: =$P10 -> Résultats | AOQ10: =Translation!$C$860 -> calcul | AOR10: 1 | AOS10: =AOR10+1 -> 2 | AOT10: =AOS10+1 -> 3 | AOU10: =AOT10+1 -> 4 | AOV10: =AOU10+1 -> 5 | AOW10: =AOV10+1 -> 6 | AOX10: =AOW10+1 -> 7 | AOY10: =AOX10+1 -> 8 | AOZ10: =AOY10+1 -> 9 | APA10: =AOZ10+1 -> 10 | APC10: =$P10 -> Résultats | APD10: =Translation!$C$860 -> calcul | APE10: 1 | APF10: =APE10+1 -> 2 | APG10: =APF10+1 -> 3 | APH10: =APG10+1 -> 4 | API10: =APH10+1 -> 5 | APJ10: =API10+1 -> 6 | APK10: =APJ10+1 -> 7 | APL10: =APK10+1 -> 8 | APM10: =APL10+1 -> 9 | APN10: =APM10+1 -> 10 | APP10: =$P10 -> Résultats | APQ10: =Translation!$C$860 -> calcul | APR10: 1 | APS10: =APR10+1 -> 2 | APT10: =APS10+1 -> 3 | APU10: =APT10+1 -> 4 | APV10: =APU10+1 -> 5 | APW10: =APV10+1 -> 6 | APX10: =APW10+1 -> 7 | APY10: =APX10+1 -> 8 | APZ10: =APY10+1 -> 9 | AQA10: =APZ10+1 -> 10 | AQC10: =$P10 -> Résultats | AQD10: =Translation!$C$860 -> calcul | AQE10: 1 | AQF10: =AQE10+1 -> 2 | AQG10: =AQF10+1 -> 3 | AQH10: =AQG10+1 -> 4 | AQI10: =AQH10+1 -> 5 | AQJ10: =AQI10+1 -> 6 | AQK10: =AQJ10+1 -> 7 | AQL10: =AQK10+1 -> 8 | AQM10: =AQL10+1 -> 9 | AQN10: =AQM10+1 -> 10 | AQP10: =$P10 -> Résultats | AQQ10: =Translation!$C$860 -> calcul | AQR10: 1 | AQS10: =AQR10+1 -> 2 | AQT10: =AQS10+1 -> 3 | AQU10: =AQT10+1 -> 4 | AQV10: =AQU10+1 -> 5 | AQW10: =AQV10+1 -> 6 | AQX10: =AQW10+1 -> 7 | AQY10: =AQX10+1 -> 8 | AQZ10: =AQY10+1 -> 9 | ARA10: =AQZ10+1 -> 10 | ARC10: =$P10 -> Résultats | ARD10: =Translation!$C$860 -> calcul | ARE10: 1 | ARF10: =ARE10+1 -> 2 | ARG10: =ARF10+1 -> 3 | ARH10: =ARG10+1 -> 4 | ARI10: =ARH10+1 -> 5 | ARJ10: =ARI10+1 -> 6 | ARK10: =ARJ10+1 -> 7 | ARL10: =ARK10+1 -> 8 | ARM10: =ARL10+1 -> 9 | ARN10: =ARM10+1 -> 10 | ARP10: =$P10 -> Résultats | ARQ10: =Translation!$C$860 -> calcul | ARR10: 1 | ARS10: =ARR10+1 -> 2 | ART10: =ARS10+1 -> 3 | ARU10: =ART10+1 -> 4 | ARV10: =ARU10+1 -> 5 | ARW10: =ARV10+1 -> 6 | ARX10: =ARW10+1 -> 7 | ARY10: =ARX10+1 -> 8 | ARZ10: =ARY10+1 -> 9 | ASA10: =ARZ10+1 -> 10 | ASC10: =$P10 -> Résultats | ASD10: =Translation!$C$860 -> calcul | ASE10: 1 | ASF10: =ASE10+1 -> 2 | ASG10: =ASF10+1 -> 3 | ASH10: =ASG10+1 -> 4 | ASI10: =ASH10+1 -> 5 | ASJ10: =ASI10+1 -> 6 | ASK10: =ASJ10+1 -> 7 | ASL10: =ASK10+1 -> 8 | ASM10: =ASL10+1 -> 9 | ASN10: =ASM10+1 -> 10 | ASP10: =$P10 -> Résultats | ASQ10: =Translation!$C$860 -> calcul | ASR10: 1 | ASS10: =ASR10+1 -> 2 | AST10: =ASS10+1 -> 3 | ASU10: =AST10+1 -> 4 | ASV10: =ASU10+1 -> 5 | ASW10: =ASV10+1 -> 6 | ASX10: =ASW10+1 -> 7 | ASY10: =ASX10+1 -> 8 | ASZ10: =ASY10+1 -> 9 | ATA10: =ASZ10+1 -> 10 | ATC10: =$P10 -> Résultats | ATD10: =Translation!$C$860 -> calcul | ATE10: 1 | ATF10: =ATE10+1 -> 2 | ATG10: =ATF10+1 -> 3 | ATH10: =ATG10+1 -> 4 | ATI10: =ATH10+1 -> 5 | ATJ10: =ATI10+1 -> 6 | ATK10: =ATJ10+1 -> 7 | ATL10: =ATK10+1 -> 8 | ATM10: =ATL10+1 -> 9 | ATN10: =ATM10+1 -> 10 | ATP10: =$P10 -> Résultats | ATQ10: =Translation!$C$860 -> calcul | ATR10: 1 | ATS10: =ATR10+1 -> 2 | ATT10: =ATS10+1 -> 3 | ATU10: =ATT10+1 -> 4 | ATV10: =ATU10+1 -> 5 | ATW10: =ATV10+1 -> 6 | ATX10: =ATW10+1 -> 7 | ATY10: =ATX10+1 -> 8 | ATZ10: =ATY10+1 -> 9 | AUA10: =ATZ10+1 -> 10 | AUC10: =$P10 -> Résultats | AUD10: =Translation!$C$860 -> calcul | AUE10: 1 | AUF10: =AUE10+1 -> 2 | AUG10: =AUF10+1 -> 3 | AUH10: =AUG10+1 -> 4 | AUI10: =AUH10+1 -> 5 | AUJ10: =AUI10+1 -> 6 | AUK10: =AUJ10+1 -> 7 | AUL10: =AUK10+1 -> 8 | AUM10: =AUL10+1 -> 9 | AUN10: =AUM10+1 -> 10 | AUP10: =$P10 -> Résultats | AUQ10: =Translation!$C$860 -> calcul | AUR10: 1 | AUS10: =AUR10+1 -> 2 | AUT10: =AUS10+1 -> 3 | AUU10: =AUT10+1 -> 4 | AUV10: =AUU10+1 -> 5 | AUW10: =AUV10+1 -> 6 | AUX10: =AUW10+1 -> 7 | AUY10: =AUX10+1 -> 8 | AUZ10: =AUY10+1 -> 9 | AVA10: =AUZ10+1 -> 10 | AVC10: =$P10 -> Résultats | AVD10: =Translation!$C$860 -> calcul | AVE10: 1 | AVF10: =AVE10+1 -> 2 | AVG10: =AVF10+1 -> 3 | AVH10: =AVG10+1 -> 4 | AVI10: =AVH10+1 -> 5 | AVJ10: =AVI10+1 -> 6 | AVK10: =AVJ10+1 -> 7 | AVL10: =AVK10+1 -> 8 | AVM10: =AVL10+1 -> 9 | AVN10: =AVM10+1 -> 10 | AVP10: =$P10 -> Résultats | AVQ10: =Translation!$C$860 -> calcul | AVR10: 1 | AVS10: =AVR10+1 -> 2 | AVT10: =AVS10+1 -> 3 | AVU10: =AVT10+1 -> 4 | AVV10: =AVU10+1 -> 5 | AVW10: =AVV10+1 -> 6 | AVX10: =AVW10+1 -> 7 | AVY10: =AVX10+1 -> 8 | AVZ10: =AVY10+1 -> 9 | AWA10: =AVZ10+1 -> 10 | AWC10: =$P10 -> Résultats | AWD10: =Translation!$C$860 -> calcul | AWE10: 1 | AWF10: =AWE10+1 -> 2 | AWG10: =AWF10+1 -> 3 | AWH10: =AWG10+1 -> 4 | AWI10: =AWH10+1 -> 5 | AWJ10: =AWI10+1 -> 6 | AWK10: =AWJ10+1 -> 7 | AWL10: =AWK10+1 -> 8 | AWM10: =AWL10+1 -> 9 | AWN10: =AWM10+1 -> 10 | AWP10: =$P10 -> Résultats | AWQ10: =Translation!$C$860 -> calcul | AWR10: 1 | AWS10: =AWR10+1 -> 2 | AWT10: =AWS10+1 -> 3 | AWU10: =AWT10+1 -> 4 | AWV10: =AWU10+1 -> 5 | AWW10: =AWV10+1 -> 6 | AWX10: =AWW10+1 -> 7 | AWY10: =AWX10+1 -> 8 | AWZ10: =AWY10+1 -> 9 | AXA10: =AWZ10+1 -> 10 | AXC10: =$P10 -> Résultats | AXD10: =Translation!$C$860 -> calcul | AXE10: 1 | AXF10: =AXE10+1 -> 2 | AXG10: =AXF10+1 -> 3 | AXH10: =AXG10+1 -> 4 | AXI10: =AXH10+1 -> 5 | AXJ10: =AXI10+1 -> 6 | AXK10: =AXJ10+1 -> 7 | AXL10: =AXK10+1 -> 8 | AXM10: =AXL10+1 -> 9 | AXN10: =AXM10+1 -> 10 | AXP10: =$P10 -> Résultats | AXQ10: =Translation!$C$860 -> calcul | AXR10: 1 | AXS10: =AXR10+1 -> 2 | AXT10: =AXS10+1 -> 3 | AXU10: =AXT10+1 -> 4 | AXV10: =AXU10+1 -> 5 | AXW10: =AXV10+1 -> 6 | AXX10: =AXW10+1 -> 7 | AXY10: =AXX10+1 -> 8 | AXZ10: =AXY10+1 -> 9 | AYA10: =AXZ10+1 -> 10 | AYC10: =$P10 -> Résultats | AYD10: =Translation!$C$860 -> calcul | AYE10: 1 | AYF10: =AYE10+1 -> 2 | AYG10: =AYF10+1 -> 3 | AYH10: =AYG10+1 -> 4 | AYI10: =AYH10+1 -> 5 | AYJ10: =AYI10+1 -> 6 | AYK10: =AYJ10+1 -> 7 | AYL10: =AYK10+1 -> 8 | AYM10: =AYL10+1 -> 9 | AYN10: =AYM10+1 -> 10 | AYP10: =$P10 -> Résultats | AYQ10: =Translation!$C$860 -> calcul | AYR10: 1 | AYS10: =AYR10+1 -> 2 | AYT10: =AYS10+1 -> 3 | AYU10: =AYT10+1 -> 4 | AYV10: =AYU10+1 -> 5 | AYW10: =AYV10+1 -> 6 | AYX10: =AYW10+1 -> 7 | AYY10: =AYX10+1 -> 8 | AYZ10: =AYY10+1 -> 9 | AZA10: =AYZ10+1 -> 10 | AZC10: =$P10 -> Résultats | AZD10: =Translation!$C$860 -> calcul | AZE10: 1 | AZF10: =AZE10+1 -> 2 | AZG10: =AZF10+1 -> 3 | AZH10: =AZG10+1 -> 4 | AZI10: =AZH10+1 -> 5 | AZJ10: =AZI10+1 -> 6 | AZK10: =AZJ10+1 -> 7 | AZL10: =AZK10+1 -> 8 | AZM10: =AZL10+1 -> 9 | AZN10: =AZM10+1 -> 10 | AZP10: =$P10 -> Résultats | AZQ10: =Translation!$C$860 -> calcul | AZR10: 1 | AZS10: =AZR10+1 -> 2 | AZT10: =AZS10+1 -> 3 | AZU10: =AZT10+1 -> 4 | AZV10: =AZU10+1 -> 5 | AZW10: =AZV10+1 -> 6 | AZX10: =AZW10+1 -> 7 | AZY10: =AZX10+1 -> 8 | AZZ10: =AZY10+1 -> 9 | BAA10: =AZZ10+1 -> 10 | BAC10: =$P10 -> Résultats | BAD10: =Translation!$C$860 -> calcul | BAE10: 1 | BAF10: =BAE10+1 -> 2 | BAG10: =BAF10+1 -> 3 | BAH10: =BAG10+1 -> 4 | BAI10: =BAH10+1 -> 5 | BAJ10: =BAI10+1 -> 6 | BAK10: =BAJ10+1 -> 7 | BAL10: =BAK10+1 -> 8 | BAM10: =BAL10+1 -> 9 | BAN10: =BAM10+1 -> 10 | BAP10: =$P10 -> Résultats | BAQ10: =Translation!$C$860 -> calcul | BAR10: 1 | BAS10: =BAR10+1 -> 2 | BAT10: =BAS10+1 -> 3 | BAU10: =BAT10+1 -> 4 | BAV10: =BAU10+1 -> 5 | BAW10: =BAV10+1 -> 6 | BAX10: =BAW10+1 -> 7 | BAY10: =BAX10+1 -> 8 | BAZ10: =BAY10+1 -> 9 | BBA10: =BAZ10+1 -> 10 | BBC10: =$P10 -> Résultats | BBD10: =Translation!$C$860 -> calcul | BBE10: 1 | BBF10: =BBE10+1 -> 2 | BBG10: =BBF10+1 -> 3 | BBH10: =BBG10+1 -> 4 | BBI10: =BBH10+1 -> 5 | BBJ10: =BBI10+1 -> 6 | BBK10: =BBJ10+1 -> 7 | BBL10: =BBK10+1 -> 8 | BBM10: =BBL10+1 -> 9 | BBN10: =BBM10+1 -> 10 | BBP10: =$P10 -> Résultats | BBQ10: =Translation!$C$860 -> calcul | BBR10: 1 | BBS10: =BBR10+1 -> 2 | BBT10: =BBS10+1 -> 3 | BBU10: =BBT10+1 -> 4 | BBV10: =BBU10+1 -> 5 | BBW10: =BBV10+1 -> 6 | BBX10: =BBW10+1 -> 7 | BBY10: =BBX10+1 -> 8 | BBZ10: =BBY10+1 -> 9 | BCA10: =BBZ10+1 -> 10 | BCC10: =$P10 -> Résultats | BCD10: =Translation!$C$860 -> calcul | BCE10: 1 | BCF10: =BCE10+1 -> 2 | BCG10: =BCF10+1 -> 3 | BCH10: =BCG10+1 -> 4 | BCI10: =BCH10+1 -> 5 | BCJ10: =BCI10+1 -> 6 | BCK10: =BCJ10+1 -> 7 | BCL10: =BCK10+1 -> 8 | BCM10: =BCL10+1 -> 9 | BCN10: =BCM10+1 -> 10 | BCP10: =$P10 -> Résultats | BCQ10: =Translation!$C$860 -> calcul | BCR10: 1 | BCS10: =BCR10+1 -> 2 | BCT10: =BCS10+1 -> 3 | BCU10: =BCT10+1 -> 4 | BCV10: =BCU10+1 -> 5 | BCW10: =BCV10+1 -> 6 | BCX10: =BCW10+1 -> 7 | BCY10: =BCX10+1 -> 8 | BCZ10: =BCY10+1 -> 9 | BDA10: =BCZ10+1 -> 10 | BDC10: =$P10 -> Résultats | BDD10: =Translation!$C$860 -> calcul | BDE10: 1 | BDF10: =BDE10+1 -> 2 | BDG10: =BDF10+1 -> 3 | BDH10: =BDG10+1 -> 4 | BDI10: =BDH10+1 -> 5 | BDJ10: =BDI10+1 -> 6 | BDK10: =BDJ10+1 -> 7 | BDL10: =BDK10+1 -> 8 | BDM10: =BDL10+1 -> 9 | BDN10: =BDM10+1 -> 10 | BDP10: =$P10 -> Résultats | BDQ10: =Translation!$C$860 -> calcul | BDR10: 1 | BDS10: =BDR10+1 -> 2 | BDT10: =BDS10+1 -> 3 | BDU10: =BDT10+1 -> 4 | BDV10: =BDU10+1 -> 5 | BDW10: =BDV10+1 -> 6 | BDX10: =BDW10+1 -> 7 | BDY10: =BDX10+1 -> 8 | BDZ10: =BDY10+1 -> 9 | BEA10: =BDZ10+1 -> 10 | BEC10: =$P10 -> Résultats | BED10: =Translation!$C$860 -> calcul | BEE10: 1 | BEF10: =BEE10+1 -> 2 | BEG10: =BEF10+1 -> 3 | BEH10: =BEG10+1 -> 4 | BEI10: =BEH10+1 -> 5 | BEJ10: =BEI10+1 -> 6 | BEK10: =BEJ10+1 -> 7 | BEL10: =BEK10+1 -> 8 | BEM10: =BEL10+1 -> 9 | BEN10: =BEM10+1 -> 10 | BEP10: =$P10 -> Résultats | BEQ10: =Translation!$C$860 -> calcul | BER10: 1 | BES10: =BER10+1 -> 2 | BET10: =BES10+1 -> 3 | BEU10: =BET10+1 -> 4 | BEV10: =BEU10+1 -> 5 | BEW10: =BEV10+1 -> 6 | BEX10: =BEW10+1 -> 7 | BEY10: =BEX10+1 -> 8 | BEZ10: =BEY10+1 -> 9 | BFA10: =BEZ10+1 -> 10 | BFC10: =$P10 -> Résultats | BFD10: =Translation!$C$860 -> calcul | BFE10: 1 | BFF10: =BFE10+1 -> 2 | BFG10: =BFF10+1 -> 3 | BFH10: =BFG10+1 -> 4 | BFI10: =BFH10+1 -> 5 | BFJ10: =BFI10+1 -> 6 | BFK10: =BFJ10+1 -> 7 | BFL10: =BFK10+1 -> 8 | BFM10: =BFL10+1 -> 9 | BFN10: =BFM10+1 -> 10 | BFP10: =$P10 -> Résultats | BFQ10: =Translation!$C$860 -> calcul | BFR10: 1 | BFS10: =BFR10+1 -> 2 | BFT10: =BFS10+1 -> 3 | BFU10: =BFT10+1 -> 4 | BFV10: =BFU10+1 -> 5 | BFW10: =BFV10+1 -> 6 | BFX10: =BFW10+1 -> 7 | BFY10: =BFX10+1 -> 8 | BFZ10: =BFY10+1 -> 9 | BGA10: =BFZ10+1 -> 10 | BGC10: =$P10 -> Résultats | BGD10: =Translation!$C$860 -> calcul | BGE10: 1 | BGF10: =BGE10+1 -> 2 | BGG10: =BGF10+1 -> 3 | BGH10: =BGG10+1 -> 4 | BGI10: =BGH10+1 -> 5 | BGJ10: =BGI10+1 -> 6 | BGK10: =BGJ10+1 -> 7 | BGL10: =BGK10+1 -> 8 | BGM10: =BGL10+1 -> 9 | BGN10: =BGM10+1 -> 10 | BGP10: =$P10 -> Résultats | BGQ10: =Translation!$C$860 -> calcul | BGR10: 1 | BGS10: =BGR10+1 -> 2 | BGT10: =BGS10+1 -> 3 | BGU10: =BGT10+1 -> 4 | BGV10: =BGU10+1 -> 5 | BGW10: =BGV10+1 -> 6 | BGX10: =BGW10+1 -> 7 | BGY10: =BGX10+1 -> 8 | BGZ10: =BGY10+1 -> 9 | BHA10: =BGZ10+1 -> 10 | BHC10: =$P10 -> Résultats | BHD10: =Translation!$C$860 -> calcul | BHE10: 1 | BHF10: =BHE10+1 -> 2 | BHG10: =BHF10+1 -> 3 | BHH10: =BHG10+1 -> 4 | BHI10: =BHH10+1 -> 5 | BHJ10: =BHI10+1 -> 6 | BHK10: =BHJ10+1 -> 7 | BHL10: =BHK10+1 -> 8 | BHM10: =BHL10+1 -> 9 | BHN10: =BHM10+1 -> 10 | BHP10: =$P10 -> Résultats | BHQ10: =Translation!$C$860 -> calcul | BHR10: 1 | BHS10: =BHR10+1 -> 2 | BHT10: =BHS10+1 -> 3 | BHU10: =BHT10+1 -> 4 | BHV10: =BHU10+1 -> 5 | BHW10: =BHV10+1 -> 6 | BHX10: =BHW10+1 -> 7 | BHY10: =BHX10+1 -> 8 | BHZ10: =BHY10+1 -> 9 | BIA10: =BHZ10+1 -> 10 | BIC10: =$P10 -> Résultats | BID10: =Translation!$C$860 -> calcul | BIE10: 1 | BIF10: =BIE10+1 -> 2 | BIG10: =BIF10+1 -> 3 | BIH10: =BIG10+1 -> 4 | BII10: =BIH10+1 -> 5 | BIJ10: =BII10+1 -> 6 | BIK10: =BIJ10+1 -> 7 | BIL10: =BIK10+1 -> 8 | BIM10: =BIL10+1 -> 9 | BIN10: =BIM10+1 -> 10 | BIP10: =$P10 -> Résultats | BIQ10: =Translation!$C$860 -> calcul | BIR10: 1 | BIS10: =BIR10+1 -> 2 | BIT10: =BIS10+1 -> 3 | BIU10: =BIT10+1 -> 4 | BIV10: =BIU10+1 -> 5 | BIW10: =BIV10+1 -> 6 | BIX10: =BIW10+1 -> 7 | BIY10: =BIX10+1 -> 8 | BIZ10: =BIY10+1 -> 9 | BJA10: =BIZ10+1 -> 10 | BJC10: =$P10 -> Résultats | BJD10: =Translation!$C$860 -> calcul | BJE10: 1 | BJF10: =BJE10+1 -> 2 | BJG10: =BJF10+1 -> 3 | BJH10: =BJG10+1 -> 4 | BJI10: =BJH10+1 -> 5 | BJJ10: =BJI10+1 -> 6 | BJK10: =BJJ10+1 -> 7 | BJL10: =BJK10+1 -> 8 | BJM10: =BJL10+1 -> 9 | BJN10: =BJM10+1 -> 10 | BJP10: =$P10 -> Résultats | BJQ10: =Translation!$C$860 -> calcul | BJR10: 1 | BJS10: =BJR10+1 -> 2 | BJT10: =BJS10+1 -> 3 | BJU10: =BJT10+1 -> 4 | BJV10: =BJU10+1 -> 5 | BJW10: =BJV10+1 -> 6 | BJX10: =BJW10+1 -> 7 | BJY10: =BJX10+1 -> 8 | BJZ10: =BJY10+1 -> 9 | BKA10: =BJZ10+1 -> 10 | BKC10: =$P10 -> Résultats | BKD10: =Translation!$C$860 -> calcul | BKE10: 1 | BKF10: =BKE10+1 -> 2 | BKG10: =BKF10+1 -> 3 | BKH10: =BKG10+1 -> 4 | BKI10: =BKH10+1 -> 5 | BKJ10: =BKI10+1 -> 6 | BKK10: =BKJ10+1 -> 7 | BKL10: =BKK10+1 -> 8 | BKM10: =BKL10+1 -> 9 | BKN10: =BKM10+1 -> 10 | BKP10: =$P10 -> Résultats | BKQ10: =Translation!$C$860 -> calcul | BKR10: 1 | BKS10: =BKR10+1 -> 2 | BKT10: =BKS10+1 -> 3 | BKU10: =BKT10+1 -> 4 | BKV10: =BKU10+1 -> 5 | BKW10: =BKV10+1 -> 6 | BKX10: =BKW10+1 -> 7 | BKY10: =BKX10+1 -> 8 | BKZ10: =BKY10+1 -> 9 | BLA10: =BKZ10+1 -> 10 | BLC10: =$P10 -> Résultats | BLD10: =Translation!$C$860 -> calcul | BLE10: 1 | BLF10: =BLE10+1 -> 2 | BLG10: =BLF10+1 -> 3 | BLH10: =BLG10+1 -> 4 | BLI10: =BLH10+1 -> 5 | BLJ10: =BLI10+1 -> 6 | BLK10: =BLJ10+1 -> 7 | BLL10: =BLK10+1 -> 8 | BLM10: =BLL10+1 -> 9 | BLN10: =BLM10+1 -> 10 | BLP10: =$P10 -> Résultats | BLQ10: =Translation!$C$860 -> calcul | BLR10: 1 | BLS10: =BLR10+1 -> 2 | BLT10: =BLS10+1 -> 3 | BLU10: =BLT10+1 -> 4 | BLV10: =BLU10+1 -> 5 | BLW10: =BLV10+1 -> 6 | BLX10: =BLW10+1 -> 7 | BLY10: =BLX10+1 -> 8 | BLZ10: =BLY10+1 -> 9 | BMA10: =BLZ10+1 -> 10 | BMC10: =$P10 -> Résultats | BMD10: =Translation!$C$860 -> calcul | BME10: 1 | BMF10: =BME10+1 -> 2 | BMG10: =BMF10+1 -> 3 | BMH10: =BMG10+1 -> 4 | BMI10: =BMH10+1 -> 5 | BMJ10: =BMI10+1 -> 6 | BMK10: =BMJ10+1 -> 7 | BML10: =BMK10+1 -> 8 | BMM10: =BML10+1 -> 9 | BMN10: =BMM10+1 -> 10 | BMP10: =$P10 -> Résultats | BMQ10: =Translation!$C$860 -> calcul | BMR10: 1 | BMS10: =BMR10+1 -> 2 | BMT10: =BMS10+1 -> 3 | BMU10: =BMT10+1 -> 4 | BMV10: =BMU10+1 -> 5 | BMW10: =BMV10+1 -> 6 | BMX10: =BMW10+1 -> 7 | BMY10: =BMX10+1 -> 8 | BMZ10: =BMY10+1 -> 9 | BNA10: =BMZ10+1 -> 10 | BNC10: =$P10 -> Résultats | BND10: =Translation!$C$860 -> calcul | BNE10: 1 | BNF10: =BNE10+1 -> 2 | BNG10: =BNF10+1 -> 3 | BNH10: =BNG10+1 -> 4 | BNI10: =BNH10+1 -> 5 | BNJ10: =BNI10+1 -> 6 | BNK10: =BNJ10+1 -> 7 | BNL10: =BNK10+1 -> 8 | BNM10: =BNL10+1 -> 9 | BNN10: =BNM10+1 -> 10 | BNP10: =$P10 -> Résultats | BNQ10: =Translation!$C$860 -> calcul | BNR10: 1 | BNS10: =BNR10+1 -> 2 | BNT10: =BNS10+1 -> 3 | BNU10: =BNT10+1 -> 4 | BNV10: =BNU10+1 -> 5 | BNW10: =BNV10+1 -> 6 | BNX10: =BNW10+1 -> 7 | BNY10: =BNX10+1 -> 8 | BNZ10: =BNY10+1 -> 9 | BOA10: =BNZ10+1 -> 10 | BOC10: =$P10 -> Résultats | BOD10: =Translation!$C$860 -> calcul | BOE10: 1 | BOF10: =BOE10+1 -> 2 | BOG10: =BOF10+1 -> 3 | BOH10: =BOG10+1 -> 4 | BOI10: =BOH10+1 -> 5 | BOJ10: =BOI10+1 -> 6 | BOK10: =BOJ10+1 -> 7 | BOL10: =BOK10+1 -> 8 | BOM10: =BOL10+1 -> 9 | BON10: =BOM10+1 -> 10 | BOP10: =$P10 -> Résultats | BOQ10: =Translation!$C$860 -> calcul | BOR10: 1 | BOS10: =BOR10+1 -> 2 | BOT10: =BOS10+1 -> 3 | BOU10: =BOT10+1 -> 4 | BOV10: =BOU10+1 -> 5 | BOW10: =BOV10+1 -> 6 | BOX10: =BOW10+1 -> 7 | BOY10: =BOX10+1 -> 8 | BOZ10: =BOY10+1 -> 9 | BPA10: =BOZ10+1 -> 10 | BPC10: =$P10 -> Résultats | BPD10: =Translation!$C$860 -> calcul | BPE10: 1 | BPF10: =BPE10+1 -> 2 | BPG10: =BPF10+1 -> 3 | BPH10: =BPG10+1 -> 4 | BPI10: =BPH10+1 -> 5 | BPJ10: =BPI10+1 -> 6 | BPK10: =BPJ10+1 -> 7 | BPL10: =BPK10+1 -> 8 | BPM10: =BPL10+1 -> 9 | BPN10: =BPM10+1 -> 10 | BPP10: =$P10 -> Résultats | BPQ10: =Translation!$C$860 -> calcul | BPR10: 1 | BPS10: =BPR10+1 -> 2 | BPT10: =BPS10+1 -> 3 | BPU10: =BPT10+1 -> 4 | BPV10: =BPU10+1 -> 5 | BPW10: =BPV10+1 -> 6 | BPX10: =BPW10+1 -> 7 | BPY10: =BPX10+1 -> 8 | BPZ10: =BPY10+1 -> 9 | BQA10: =BPZ10+1 -> 10 | BQC10: =$P10 -> Résultats | BQD10: =Translation!$C$860 -> calcul | BQE10: 1 | BQF10: =BQE10+1 -> 2 | BQG10: =BQF10+1 -> 3 | BQH10: =BQG10+1 -> 4 | BQI10: =BQH10+1 -> 5 | BQJ10: =BQI10+1 -> 6 | BQK10: =BQJ10+1 -> 7 | BQL10: =BQK10+1 -> 8 | BQM10: =BQL10+1 -> 9 | BQN10: =BQM10+1 -> 10 | BQP10: =$P10 -> Résultats | BQQ10: =Translation!$C$860 -> calcul | BQR10: 1 | BQS10: =BQR10+1 -> 2 | BQT10: =BQS10+1 -> 3 | BQU10: =BQT10+1 -> 4 | BQV10: =BQU10+1 -> 5 | BQW10: =BQV10+1 -> 6 | BQX10: =BQW10+1 -> 7 | BQY10: =BQX10+1 -> 8 | BQZ10: =BQY10+1 -> 9 | BRA10: =BQZ10+1 -> 10 | BRC10: =$P10 -> Résultats | BRD10: =Translation!$C$860 -> calcul | BRE10: 1 | BRF10: =BRE10+1 -> 2 | BRG10: =BRF10+1 -> 3 | BRH10: =BRG10+1 -> 4 | BRI10: =BRH10+1 -> 5 | BRJ10: =BRI10+1 -> 6 | BRK10: =BRJ10+1 -> 7 | BRL10: =BRK10+1 -> 8 | BRM10: =BRL10+1 -> 9 | BRN10: =BRM10+1 -> 10 | BRP10: =$P10 -> Résultats | BRQ10: =Translation!$C$860 -> calcul | BRR10: 1 | BRS10: =BRR10+1 -> 2 | BRT10: =BRS10+1 -> 3 | BRU10: =BRT10+1 -> 4 | BRV10: =BRU10+1 -> 5 | BRW10: =BRV10+1 -> 6 | BRX10: =BRW10+1 -> 7 | BRY10: =BRX10+1 -> 8 | BRZ10: =BRY10+1 -> 9 | BSA10: =BRZ10+1 -> 10 | BSC10: =$P10 -> Résultats | BSD10: =Translation!$C$860 -> calcul | BSE10: 1 | BSF10: =BSE10+1 -> 2 | BSG10: =BSF10+1 -> 3 | BSH10: =BSG10+1 -> 4 | BSI10: =BSH10+1 -> 5 | BSJ10: =BSI10+1 -> 6 | BSK10: =BSJ10+1 -> 7 | BSL10: =BSK10+1 -> 8 | BSM10: =BSL10+1 -> 9 | BSN10: =BSM10+1 -> 10 | BSP10: =$P10 -> Résultats | BSQ10: =Translation!$C$860 -> calcul | BSR10: 1 | BSS10: =BSR10+1 -> 2 | BST10: =BSS10+1 -> 3 | BSU10: =BST10+1 -> 4 | BSV10: =BSU10+1 -> 5 | BSW10: =BSV10+1 -> 6 | BSX10: =BSW10+1 -> 7 | BSY10: =BSX10+1 -> 8 | BSZ10: =BSY10+1 -> 9 | BTA10: =BSZ10+1 -> 10 | BTC10: =$P10 -> Résultats | BTD10: =Translation!$C$860 -> calcul | BTE10: 1 | BTF10: =BTE10+1 -> 2 | BTG10: =BTF10+1 -> 3 | BTH10: =BTG10+1 -> 4 | BTI10: =BTH10+1 -> 5 | BTJ10: =BTI10+1 -> 6 | BTK10: =BTJ10+1 -> 7 | BTL10: =BTK10+1 -> 8 | BTM10: =BTL10+1 -> 9 | BTN10: =BTM10+1 -> 10 | BTP10: =$P10 -> Résultats | BTQ10: =Translation!$C$860 -> calcul | BTR10: 1 | BTS10: =BTR10+1 -> 2 | BTT10: =BTS10+1 -> 3 | BTU10: =BTT10+1 -> 4 | BTV10: =BTU10+1 -> 5 | BTW10: =BTV10+1 -> 6 | BTX10: =BTW10+1 -> 7 | BTY10: =BTX10+1 -> 8 | BTZ10: =BTY10+1 -> 9 | BUA10: =BTZ10+1 -> 10 | BUC10: =$P10 -> Résultats | BUD10: =Translation!$C$860 -> calcul | BUE10: 1 | BUF10: =BUE10+1 -> 2 | BUG10: =BUF10+1 -> 3 | BUH10: =BUG10+1 -> 4 | BUI10: =BUH10+1 -> 5 | BUJ10: =BUI10+1 -> 6 | BUK10: =BUJ10+1 -> 7 | BUL10: =BUK10+1 -> 8 | BUM10: =BUL10+1 -> 9 | BUN10: =BUM10+1 -> 10 | BUP10: =$P10 -> Résultats | BUQ10: =Translation!$C$860 -> calcul | BUR10: 1 | BUS10: =BUR10+1 -> 2 | BUT10: =BUS10+1 -> 3 | BUU10: =BUT10+1 -> 4 | BUV10: =BUU10+1 -> 5 | BUW10: =BUV10+1 -> 6 | BUX10: =BUW10+1 -> 7 | BUY10: =BUX10+1 -> 8 | BUZ10: =BUY10+1 -> 9 | BVA10: =BUZ10+1 -> 10 | BVC10: =$P10 -> Résultats | BVD10: =Translation!$C$860 -> calcul | BVE10: 1 | BVF10: =BVE10+1 -> 2 | BVG10: =BVF10+1 -> 3 | BVH10: =BVG10+1 -> 4 | BVI10: =BVH10+1 -> 5 | BVJ10: =BVI10+1 -> 6 | BVK10: =BVJ10+1 -> 7 | BVL10: =BVK10+1 -> 8 | BVM10: =BVL10+1 -> 9 | BVN10: =BVM10+1 -> 10 | BVP10: =$P10 -> Résultats | BVQ10: =Translation!$C$860 -> calcul | BVR10: 1 | BVS10: =BVR10+1 -> 2 | BVT10: =BVS10+1 -> 3 | BVU10: =BVT10+1 -> 4 | BVV10: =BVU10+1 -> 5 | BVW10: =BVV10+1 -> 6 | BVX10: =BVW10+1 -> 7 | BVY10: =BVX10+1 -> 8 | BVZ10: =BVY10+1 -> 9 | BWA10: =BVZ10+1 -> 10 | BWC10: =$P10 -> Résultats | BWD10: =Translation!$C$860 -> calcul | BWE10: 1 | BWF10: =BWE10+1 -> 2 | BWG10: =BWF10+1 -> 3 | BWH10: =BWG10+1 -> 4 | BWI10: =BWH10+1 -> 5 | BWJ10: =BWI10+1 -> 6 | BWK10: =BWJ10+1 -> 7 | BWL10: =BWK10+1 -> 8 | BWM10: =BWL10+1 -> 9 | BWN10: =BWM10+1 -> 10 | BWP10: =$P10 -> Résultats | BWQ10: =Translation!$C$860 -> calcul | BWR10: 1 | BWS10: =BWR10+1 -> 2 | BWT10: =BWS10+1 -> 3 | BWU10: =BWT10+1 -> 4 | BWV10: =BWU10+1 -> 5 | BWW10: =BWV10+1 -> 6 | BWX10: =BWW10+1 -> 7 | BWY10: =BWX10+1 -> 8 | BWZ10: =BWY10+1 -> 9 | BXA10: =BWZ10+1 -> 10 | BXC10: =$P10 -> Résultats | BXD10: =Translation!$C$860 -> calcul | BXE10: 1 | BXF10: =BXE10+1 -> 2 | BXG10: =BXF10+1 -> 3 | BXH10: =BXG10+1 -> 4 | BXI10: =BXH10+1 -> 5 | BXJ10: =BXI10+1 -> 6 | BXK10: =BXJ10+1 -> 7 | BXL10: =BXK10+1 -> 8 | BXM10: =BXL10+1 -> 9 | BXN10: =BXM10+1 -> 10 | BXP10: =$P10 -> Résultats | BXQ10: =Translation!$C$860 -> calcul | BXR10: 1 | BXS10: =BXR10+1 -> 2 | BXT10: =BXS10+1 -> 3 | BXU10: =BXT10+1 -> 4 | BXV10: =BXU10+1 -> 5 | BXW10: =BXV10+1 -> 6 | BXX10: =BXW10+1 -> 7 | BXY10: =BXX10+1 -> 8 | BXZ10: =BXY10+1 -> 9 | BYA10: =BXZ10+1 -> 10 | BYC10: =$P10 -> Résultats | BYD10: =Translation!$C$860 -> calcul | BYE10: 1 | BYF10: =BYE10+1 -> 2 | BYG10: =BYF10+1 -> 3 | BYH10: =BYG10+1 -> 4 | BYI10: =BYH10+1 -> 5 | BYJ10: =BYI10+1 -> 6 | BYK10: =BYJ10+1 -> 7 | BYL10: =BYK10+1 -> 8 | BYM10: =BYL10+1 -> 9 | BYN10: =BYM10+1 -> 10 | BYP10: =$P10 -> Résultats | BYQ10: =Translation!$C$860 -> calcul | BYR10: 1 | BYS10: =BYR10+1 -> 2 | BYT10: =BYS10+1 -> 3 | BYU10: =BYT10+1 -> 4 | BYV10: =BYU10+1 -> 5 | BYW10: =BYV10+1 -> 6 | BYX10: =BYW10+1 -> 7 | BYY10: =BYX10+1 -> 8 | BYZ10: =BYY10+1 -> 9 | BZA10: =BYZ10+1 -> 10 | BZC10: =$P10 -> Résultats | BZD10: =Translation!$C$860 -> calcul | BZE10: 1 | BZF10: =BZE10+1 -> 2 | BZG10: =BZF10+1 -> 3 | BZH10: =BZG10+1 -> 4 | BZI10: =BZH10+1 -> 5 | BZJ10: =BZI10+1 -> 6 | BZK10: =BZJ10+1 -> 7 | BZL10: =BZK10+1 -> 8 | BZM10: =BZL10+1 -> 9 | BZN10: =BZM10+1 -> 10 | BZP10: =$P10 -> Résultats | BZQ10: =Translation!$C$860 -> calcul | BZR10: 1 | BZS10: =BZR10+1 -> 2 | BZT10: =BZS10+1 -> 3 | BZU10: =BZT10+1 -> 4 | BZV10: =BZU10+1 -> 5 | BZW10: =BZV10+1 -> 6 | BZX10: =BZW10+1 -> 7 | BZY10: =BZX10+1 -> 8 | BZZ10: =BZY10+1 -> 9 | CAA10: =BZZ10+1 -> 10 | CAC10: =$P10 -> Résultats | CAD10: =Translation!$C$860 -> calcul | CAE10: 1 | CAF10: =CAE10+1 -> 2 | CAG10: =CAF10+1 -> 3 | CAH10: =CAG10+1 -> 4 | CAI10: =CAH10+1 -> 5 | CAJ10: =CAI10+1 -> 6 | CAK10: =CAJ10+1 -> 7 | CAL10: =CAK10+1 -> 8 | CAM10: =CAL10+1 -> 9 | CAN10: =CAM10+1 -> 10 | CAP10: =$P10 -> Résultats | CAQ10: =Translation!$C$860 -> calcul | CAR10: 1 | CAS10: =CAR10+1 -> 2 | CAT10: =CAS10+1 -> 3 | CAU10: =CAT10+1 -> 4 | CAV10: =CAU10+1 -> 5 | CAW10: =CAV10+1 -> 6 | CAX10: =CAW10+1 -> 7 | CAY10: =CAX10+1 -> 8 | CAZ10: =CAY10+1 -> 9 | CBA10: =CAZ10+1 -> 10 | CBC10: =$P10 -> Résultats | CBD10: =Translation!$C$860 -> calcul | CBE10: 1 | CBF10: =CBE10+1 -> 2 | CBG10: =CBF10+1 -> 3 | CBH10: =CBG10+1 -> 4 | CBI10: =CBH10+1 -> 5 | CBJ10: =CBI10+1 -> 6 | CBK10: =CBJ10+1 -> 7 | CBL10: =CBK10+1 -> 8 | CBM10: =CBL10+1 -> 9 | CBN10: =CBM10+1 -> 10 | CBP10: =$P10 -> Résultats | CBQ10: =Translation!$C$860 -> calcul | CBR10: 1 | CBS10: =CBR10+1 -> 2 | CBT10: =CBS10+1 -> 3 | CBU10: =CBT10+1 -> 4 | CBV10: =CBU10+1 -> 5 | CBW10: =CBV10+1 -> 6 | CBX10: =CBW10+1 -> 7 | CBY10: =CBX10+1 -> 8 | CBZ10: =CBY10+1 -> 9 | CCA10: =CBZ10+1 -> 10 | CCC10: =$P10 -> Résultats | CCD10: =Translation!$C$860 -> calcul | CCE10: 1 | CCF10: =CCE10+1 -> 2 | CCG10: =CCF10+1 -> 3 | CCH10: =CCG10+1 -> 4 | CCI10: =CCH10+1 -> 5 | CCJ10: =CCI10+1 -> 6 | CCK10: =CCJ10+1 -> 7 | CCL10: =CCK10+1 -> 8 | CCM10: =CCL10+1 -> 9 | CCN10: =CCM10+1 -> 10 | CCP10: =$P10 -> Résultats | CCQ10: =Translation!$C$860 -> calcul | CCR10: 1 | CCS10: =CCR10+1 -> 2 | CCT10: =CCS10+1 -> 3 | CCU10: =CCT10+1 -> 4 | CCV10: =CCU10+1 -> 5 | CCW10: =CCV10+1 -> 6 | CCX10: =CCW10+1 -> 7 | CCY10: =CCX10+1 -> 8 | CCZ10: =CCY10+1 -> 9 | CDA10: =CCZ10+1 -> 10 | CDC10: =$P10 -> Résultats | CDD10: =Translation!$C$860 -> calcul | CDE10: 1 | CDF10: =CDE10+1 -> 2 | CDG10: =CDF10+1 -> 3 | CDH10: =CDG10+1 -> 4 | CDI10: =CDH10+1 -> 5 | CDJ10: =CDI10+1 -> 6 | CDK10: =CDJ10+1 -> 7 | CDL10: =CDK10+1 -> 8 | CDM10: =CDL10+1 -> 9 | CDN10: =CDM10+1 -> 10 | CDP10: =$P10 -> Résultats | CDQ10: =Translation!$C$860 -> calcul | CDR10: 1 | CDS10: =CDR10+1 -> 2 | CDT10: =CDS10+1 -> 3 | CDU10: =CDT10+1 -> 4 | CDV10: =CDU10+1 -> 5 | CDW10: =CDV10+1 -> 6 | CDX10: =CDW10+1 -> 7 | CDY10: =CDX10+1 -> 8 | CDZ10: =CDY10+1 -> 9 | CEA10: =CDZ10+1 -> 10 | CEC10: =$P10 -> Résultats | CED10: =Translation!$C$860 -> calcul | CEE10: 1 | CEF10: =CEE10+1 -> 2 | CEG10: =CEF10+1 -> 3 | CEH10: =CEG10+1 -> 4 | CEI10: =CEH10+1 -> 5 | CEJ10: =CEI10+1 -> 6 | CEK10: =CEJ10+1 -> 7 | CEL10: =CEK10+1 -> 8 | CEM10: =CEL10+1 -> 9 | CEN10: =CEM10+1 -> 10 | CEP10: =$P10 -> Résultats | CEQ10: =Translation!$C$860 -> calcul | CER10: 1 | CES10: =CER10+1 -> 2 | CET10: =CES10+1 -> 3 | CEU10: =CET10+1 -> 4 | CEV10: =CEU10+1 -> 5 | CEW10: =CEV10+1 -> 6 | CEX10: =CEW10+1 -> 7 | CEY10: =CEX10+1 -> 8 | CEZ10: =CEY10+1 -> 9 | CFA10: =CEZ10+1 -> 10 | CFC10: =$P10 -> Résultats | CFD10: =Translation!$C$860 -> calcul | CFE10: 1 | CFF10: =CFE10+1 -> 2 | CFG10: =CFF10+1 -> 3 | CFH10: =CFG10+1 -> 4 | CFI10: =CFH10+1 -> 5 | CFJ10: =CFI10+1 -> 6 | CFK10: =CFJ10+1 -> 7 | CFL10: =CFK10+1 -> 8 | CFM10: =CFL10+1 -> 9 | CFN10: =CFM10+1 -> 10 | CFP10: =$P10 -> Résultats | CFQ10: =Translation!$C$860 -> calcul | CFR10: 1 | CFS10: =CFR10+1 -> 2 | CFT10: =CFS10+1 -> 3 | CFU10: =CFT10+1 -> 4 | CFV10: =CFU10+1 -> 5 | CFW10: =CFV10+1 -> 6 | CFX10: =CFW10+1 -> 7 | CFY10: =CFX10+1 -> 8 | CFZ10: =CFY10+1 -> 9 | CGA10: =CFZ10+1 -> 10 | CGC10: =$P10 -> Résultats | CGD10: =Translation!$C$860 -> calcul | CGE10: 1 | CGF10: =CGE10+1 -> 2 | CGG10: =CGF10+1 -> 3 | CGH10: =CGG10+1 -> 4 | CGI10: =CGH10+1 -> 5 | CGJ10: =CGI10+1 -> 6 | CGK10: =CGJ10+1 -> 7 | CGL10: =CGK10+1 -> 8 | CGM10: =CGL10+1 -> 9 | CGN10: =CGM10+1 -> 10 | CGP10: =$P10 -> Résultats | CGQ10: =Translation!$C$860 -> calcul | CGR10: 1 | CGS10: =CGR10+1 -> 2 | CGT10: =CGS10+1 -> 3 | CGU10: =CGT10+1 -> 4 | CGV10: =CGU10+1 -> 5 | CGW10: =CGV10+1 -> 6 | CGX10: =CGW10+1 -> 7 | CGY10: =CGX10+1 -> 8 | CGZ10: =CGY10+1 -> 9 | CHA10: =CGZ10+1 -> 10 | CHC10: =$P10 -> Résultats | CHD10: =Translation!$C$860 -> calcul | CHE10: 1 | CHF10: =CHE10+1 -> 2 | CHG10: =CHF10+1 -> 3 | CHH10: =CHG10+1 -> 4 | CHI10: =CHH10+1 -> 5 | CHJ10: =CHI10+1 -> 6 | CHK10: =CHJ10+1 -> 7 | CHL10: =CHK10+1 -> 8 | CHM10: =CHL10+1 -> 9 | CHN10: =CHM10+1 -> 10 | CHP10: =$P10 -> Résultats | CHQ10: =Translation!$C$860 -> calcul | CHR10: 1 | CHS10: =CHR10+1 -> 2 | CHT10: =CHS10+1 -> 3 | CHU10: =CHT10+1 -> 4 | CHV10: =CHU10+1 -> 5 | CHW10: =CHV10+1 -> 6 | CHX10: =CHW10+1 -> 7 | CHY10: =CHX10+1 -> 8 | CHZ10: =CHY10+1 -> 9 | CIA10: =CHZ10+1 -> 10 | CIC10: =$P10 -> Résultats | CID10: =Translation!$C$860 -> calcul | CIE10: 1 | CIF10: =CIE10+1 -> 2 | CIG10: =CIF10+1 -> 3 | CIH10: =CIG10+1 -> 4 | CII10: =CIH10+1 -> 5 | CIJ10: =CII10+1 -> 6 | CIK10: =CIJ10+1 -> 7 | CIL10: =CIK10+1 -> 8 | CIM10: =CIL10+1 -> 9 | CIN10: =CIM10+1 -> 10 | CIP10: =$P10 -> Résultats | CIQ10: =Translation!$C$860 -> calcul | CIR10: 1 | CIS10: =CIR10+1 -> 2 | CIT10: =CIS10+1 -> 3 | CIU10: =CIT10+1 -> 4 | CIV10: =CIU10+1 -> 5 | CIW10: =CIV10+1 -> 6 | CIX10: =CIW10+1 -> 7 | CIY10: =CIX10+1 -> 8 | CIZ10: =CIY10+1 -> 9 | CJA10: =CIZ10+1 -> 10 | CJC10: =$P10 -> Résultats | CJD10: =Translation!$C$860 -> calcul | CJE10: 1 | CJF10: =CJE10+1 -> 2 | CJG10: =CJF10+1 -> 3 | CJH10: =CJG10+1 -> 4 | CJI10: =CJH10+1 -> 5 | CJJ10: =CJI10+1 -> 6 | CJK10: =CJJ10+1 -> 7 | CJL10: =CJK10+1 -> 8 | CJM10: =CJL10+1 -> 9 | CJN10: =CJM10+1 -> 10 | CJP10: =$P10 -> Résultats | CJQ10: =Translation!$C$860 -> calcul | CJR10: 1 | CJS10: =CJR10+1 -> 2 | CJT10: =CJS10+1 -> 3 | CJU10: =CJT10+1 -> 4 | CJV10: =CJU10+1 -> 5 | CJW10: =CJV10+1 -> 6 | CJX10: =CJW10+1 -> 7 | CJY10: =CJX10+1 -> 8 | CJZ10: =CJY10+1 -> 9 | CKA10: =CJZ10+1 -> 10 | CKC10: =$P10 -> Résultats | CKD10: =Translation!$C$860 -> calcul | CKE10: 1 | CKF10: =CKE10+1 -> 2 | CKG10: =CKF10+1 -> 3 | CKH10: =CKG10+1 -> 4 | CKI10: =CKH10+1 -> 5 | CKJ10: =CKI10+1 -> 6 | CKK10: =CKJ10+1 -> 7 | CKL10: =CKK10+1 -> 8 | CKM10: =CKL10+1 -> 9 | CKN10: =CKM10+1 -> 10 | CKP10: =$P10 -> Résultats | CKQ10: =Translation!$C$860 -> calcul | CKR10: 1 | CKS10: =CKR10+1 -> 2 | CKT10: =CKS10+1 -> 3 | CKU10: =CKT10+1 -> 4 | CKV10: =CKU10+1 -> 5 | CKW10: =CKV10+1 -> 6 | CKX10: =CKW10+1 -> 7 | CKY10: =CKX10+1 -> 8 | CKZ10: =CKY10+1 -> 9 | CLA10: =CKZ10+1 -> 10 | CLC10: =$P10 -> Résultats | CLD10: =Translation!$C$860 -> calcul | CLE10: 1 | CLF10: =CLE10+1 -> 2 | CLG10: =CLF10+1 -> 3 | CLH10: =CLG10+1 -> 4 | CLI10: =CLH10+1 -> 5 | CLJ10: =CLI10+1 -> 6 | CLK10: =CLJ10+1 -> 7 | CLL10: =CLK10+1 -> 8 | CLM10: =CLL10+1 -> 9 | CLN10: =CLM10+1 -> 10 | CLP10: =$P10 -> Résultats | CLQ10: =Translation!$C$860 -> calcul | CLR10: 1 | CLS10: =CLR10+1 -> 2 | CLT10: =CLS10+1 -> 3 | CLU10: =CLT10+1 -> 4 | CLV10: =CLU10+1 -> 5 | CLW10: =CLV10+1 -> 6 | CLX10: =CLW10+1 -> 7 | CLY10: =CLX10+1 -> 8 | CLZ10: =CLY10+1 -> 9 | CMA10: =CLZ10+1 -> 10 | CMC10: =$P10 -> Résultats | CMD10: =Translation!$C$860 -> calcul | CME10: 1 | CMF10: =CME10+1 -> 2 | CMG10: =CMF10+1 -> 3 | CMH10: =CMG10+1 -> 4 | CMI10: =CMH10+1 -> 5 | CMJ10: =CMI10+1 -> 6 | CMK10: =CMJ10+1 -> 7 | CML10: =CMK10+1 -> 8 | CMM10: =CML10+1 -> 9 | CMN10: =CMM10+1 -> 10 | CMP10: =$P10 -> Résultats | CMQ10: =Translation!$C$860 -> calcul | CMR10: 1 | CMS10: =CMR10+1 -> 2 | CMT10: =CMS10+1 -> 3 | CMU10: =CMT10+1 -> 4 | CMV10: =CMU10+1 -> 5 | CMW10: =CMV10+1 -> 6 | CMX10: =CMW10+1 -> 7 | CMY10: =CMX10+1 -> 8 | CMZ10: =CMY10+1 -> 9 | CNA10: =CMZ10+1 -> 10 | CNC10: =$P10 -> Résultats | CND10: =Translation!$C$860 -> calcul | CNE10: 1 | CNF10: =CNE10+1 -> 2 | CNG10: =CNF10+1 -> 3 | CNH10: =CNG10+1 -> 4 | CNI10: =CNH10+1 -> 5 | CNJ10: =CNI10+1 -> 6 | CNK10: =CNJ10+1 -> 7 | CNL10: =CNK10+1 -> 8 | CNM10: =CNL10+1 -> 9 | CNN10: =CNM10+1 -> 10 | CNP10: =$P10 -> Résultats | CNQ10: =Translation!$C$860 -> calcul | CNR10: 1 | CNS10: =CNR10+1 -> 2 | CNT10: =CNS10+1 -> 3 | CNU10: =CNT10+1 -> 4 | CNV10: =CNU10+1 -> 5 | CNW10: =CNV10+1 -> 6 | CNX10: =CNW10+1 -> 7 | CNY10: =CNX10+1 -> 8 | CNZ10: =CNY10+1 -> 9 | COA10: =CNZ10+1 -> 10 | COC10: =$P10 -> Résultats | COD10: =Translation!$C$860 -> calcul | COE10: 1 | COF10: =COE10+1 -> 2 | COG10: =COF10+1 -> 3 | COH10: =COG10+1 -> 4 | COI10: =COH10+1 -> 5 | COJ10: =COI10+1 -> 6 | COK10: =COJ10+1 -> 7 | COL10: =COK10+1 -> 8 | COM10: =COL10+1 -> 9 | CON10: =COM10+1 -> 10 | COP10: =$P10 -> Résultats | COQ10: =Translation!$C$860 -> calcul | COR10: 1 | COS10: =COR10+1 -> 2 | COT10: =COS10+1 -> 3 | COU10: =COT10+1 -> 4 | COV10: =COU10+1 -> 5 | COW10: =COV10+1 -> 6 | COX10: =COW10+1 -> 7 | COY10: =COX10+1 -> 8 | COZ10: =COY10+1 -> 9 | CPA10: =COZ10+1 -> 10 | CPC10: =$P10 -> Résultats | CPD10: =Translation!$C$860 -> calcul | CPE10: 1 | CPF10: =CPE10+1 -> 2 | CPG10: =CPF10+1 -> 3 | CPH10: =CPG10+1 -> 4 | CPI10: =CPH10+1 -> 5 | CPJ10: =CPI10+1 -> 6 | CPK10: =CPJ10+1 -> 7 | CPL10: =CPK10+1 -> 8 | CPM10: =CPL10+1 -> 9 | CPN10: =CPM10+1 -> 10 | CPP10: =$P10 -> Résultats | CPQ10: =Translation!$C$860 -> calcul | CPR10: 1 | CPS10: =CPR10+1 -> 2 | CPT10: =CPS10+1 -> 3 | CPU10: =CPT10+1 -> 4 | CPV10: =CPU10+1 -> 5 | CPW10: =CPV10+1 -> 6 | CPX10: =CPW10+1 -> 7 | CPY10: =CPX10+1 -> 8 | CPZ10: =CPY10+1 -> 9 | CQA10: =CPZ10+1 -> 10 | CQC10: =$P10 -> Résultats | CQD10: =Translation!$C$860 -> calcul | CQE10: 1 | CQF10: =CQE10+1 -> 2 | CQG10: =CQF10+1 -> 3 | CQH10: =CQG10+1 -> 4 | CQI10: =CQH10+1 -> 5 | CQJ10: =CQI10+1 -> 6 | CQK10: =CQJ10+1 -> 7 | CQL10: =CQK10+1 -> 8 | CQM10: =CQL10+1 -> 9 | CQN10: =CQM10+1 -> 10 | CQP10: =$P10 -> Résultats | CQQ10: =Translation!$C$860 -> calcul | CQR10: 1 | CQS10: =CQR10+1 -> 2 | CQT10: =CQS10+1 -> 3 | CQU10: =CQT10+1 -> 4 | CQV10: =CQU10+1 -> 5 | CQW10: =CQV10+1 -> 6 | CQX10: =CQW10+1 -> 7 | CQY10: =CQX10+1 -> 8 | CQZ10: =CQY10+1 -> 9 | CRA10: =CQZ10+1 -> 10 | CRC10: =$P10 -> Résultats | CRD10: =Translation!$C$860 -> calcul | CRE10: 1 | CRF10: =CRE10+1 -> 2 | CRG10: =CRF10+1 -> 3 | CRH10: =CRG10+1 -> 4 | CRI10: =CRH10+1 -> 5 | CRJ10: =CRI10+1 -> 6 | CRK10: =CRJ10+1 -> 7 | CRL10: =CRK10+1 -> 8 | CRM10: =CRL10+1 -> 9 | CRN10: =CRM10+1 -> 10 | CRP10: =$P10 -> Résultats | CRQ10: =Translation!$C$860 -> calcul | CRR10: 1 | CRS10: =CRR10+1 -> 2 | CRT10: =CRS10+1 -> 3 | CRU10: =CRT10+1 -> 4 | CRV10: =CRU10+1 -> 5 | CRW10: =CRV10+1 -> 6 | CRX10: =CRW10+1 -> 7 | CRY10: =CRX10+1 -> 8 | CRZ10: =CRY10+1 -> 9 | CSA10: =CRZ10+1 -> 10 | CSC10: =$P10 -> Résultats | CSD10: =Translation!$C$860 -> calcul | CSE10: 1 | CSF10: =CSE10+1 -> 2 | CSG10: =CSF10+1 -> 3 | CSH10: =CSG10+1 -> 4 | CSI10: =CSH10+1 -> 5 | CSJ10: =CSI10+1 -> 6 | CSK10: =CSJ10+1 -> 7 | CSL10: =CSK10+1 -> 8 | CSM10: =CSL10+1 -> 9 | CSN10: =CSM10+1 -> 10 | CSP10: =$P10 -> Résultats | CSQ10: =Translation!$C$860 -> calcul | CSR10: 1 | CSS10: =CSR10+1 -> 2 | CST10: =CSS10+1 -> 3 | CSU10: =CST10+1 -> 4 | CSV10: =CSU10+1 -> 5 | CSW10: =CSV10+1 -> 6 | CSX10: =CSW10+1 -> 7 | CSY10: =CSX10+1 -> 8 | CSZ10: =CSY10+1 -> 9 | CTA10: =CSZ10+1 -> 10 | CTC10: =$P10 -> Résultats | CTD10: =Translation!$C$860 -> calcul | CTE10: 1 | CTF10: =CTE10+1 -> 2 | CTG10: =CTF10+1 -> 3 | CTH10: =CTG10+1 -> 4 | CTI10: =CTH10+1 -> 5 | CTJ10: =CTI10+1 -> 6 | CTK10: =CTJ10+1 -> 7 | CTL10: =CTK10+1 -> 8 | CTM10: =CTL10+1 -> 9 | CTN10: =CTM10+1 -> 10 | CTP10: =$P10 -> Résultats | CTQ10: =Translation!$C$860 -> calcul | CTR10: 1 | CTS10: =CTR10+1 -> 2 | CTT10: =CTS10+1 -> 3 | CTU10: =CTT10+1 -> 4 | CTV10: =CTU10+1 -> 5 | CTW10: =CTV10+1 -> 6 | CTX10: =CTW10+1 -> 7 | CTY10: =CTX10+1 -> 8 | CTZ10: =CTY10+1 -> 9 | CUA10: =CTZ10+1 -> 10 | CUC10: =$P10 -> Résultats | CUD10: =Translation!$C$860 -> calcul | CUE10: 1 | CUF10: =CUE10+1 -> 2 | CUG10: =CUF10+1 -> 3 | CUH10: =CUG10+1 -> 4 | CUI10: =CUH10+1 -> 5 | CUJ10: =CUI10+1 -> 6 | CUK10: =CUJ10+1 -> 7 | CUL10: =CUK10+1 -> 8 | CUM10: =CUL10+1 -> 9 | CUN10: =CUM10+1 -> 10 | CUP10: =$P10 -> Résultats | CUQ10: =Translation!$C$860 -> calcul | CUR10: 1 | CUS10: =CUR10+1 -> 2 | CUT10: =CUS10+1 -> 3 | CUU10: =CUT10+1 -> 4 | CUV10: =CUU10+1 -> 5 | CUW10: =CUV10+1 -> 6 | CUX10: =CUW10+1 -> 7 | CUY10: =CUX10+1 -> 8 | CUZ10: =CUY10+1 -> 9 | CVA10: =CUZ10+1 -> 10 | CVC10: =$P10 -> Résultats | CVD10: =Translation!$C$860 -> calcul | CVE10: 1 | CVF10: =CVE10+1 -> 2 | CVG10: =CVF10+1 -> 3 | CVH10: =CVG10+1 -> 4 | CVI10: =CVH10+1 -> 5 | CVJ10: =CVI10+1 -> 6 | CVK10: =CVJ10+1 -> 7 | CVL10: =CVK10+1 -> 8 | CVM10: =CVL10+1 -> 9 | CVN10: =CVM10+1 -> 10 | CVP10: =$P10 -> Résultats | CVQ10: =Translation!$C$860 -> calcul
